Workbook

Sheet Main
B10: 2019-02-04
B12: Sheet No. | C12: Template Name | D12: Summary
B13: 1 | C13: Future Intra | D13: For Intraday trading in F&O segment
B14: 2 | C14: Cash Intra | D14: For Intraday trading in cash market segment
B15: 3 | C15: Mid-cap Intra | D15: For Intraday trading in Mid-cap stocks
B16: 4 | C16: Bulk Deals | D16: Reveals Bulk Deals carried on NSE & BSE
B17: 5 | C17: Call Tracker

Sheet Future Intra
M5: Back to Main Page
A6: FOR INTRA DAY TRADING | L6: =Main!B10 -> 2019-02-04
A9: Sr.no | B9: Sector | C9: Scrip | D9: CLOSE RATE | E9: Pivot Point | F9: Supports | I9: Resistances
B10: Sector | D10: Point | E10: Point | F10: S1 | G10: S2 | H10: S3 | I10: R1 | J10: R2 | K10: R3 | L10: HIGH | M10: LOW | N10: OI | O10: % Change in OI
A11: 1 | B11: Index | C11: BANKNIFTY | D11: 27144.65 | E11: 27231.53 | F11: 26863.12 | G11: 26581.58 | H11: 26213.17 | I11: 27513.07 | J11: 27881.48 | K11: 28163.02 | L11: 27599.95 | M11: 26950 | N11: 1447060 | O11: 0.22%
A12: 2 | B12: Index | C12: NIFTY | D12: 10914.05 | E12: 10924.12 | F12: 10825.03 | G12: 10736.02 | H12: 10636.93 | I12: 11013.13 | J12: 11112.22 | K12: 11201.23 | L12: 11023.2 | M12: 10835.1 | N12: 19530075 | O12: 4.49%
A13: 3 | B13: Index | C13: NIFTYIT | D13: 15784.00 | E13: 15717.00 | F13: 15624.00 | G13: 15464.00 | H13: 15371.00 | I13: 15877.00 | J13: 15970.00 | K13: 16130.00 | L13: 15810 | M13: 15557 | N13: 29800 | O13: 36.07%
A14: 4 | B14: Cement | C14: ACC | D14: 1422.80 | E14: 1429.00 | F14: 1402.15 | G14: 1381.50 | H14: 1354.65 | I14: 1449.65 | J14: 1476.50 | K14: 1497.15 | L14: 1455.85 | M14: 1408.35 | N14: 1554800 | O14: 3.87%
A15: 5 | B15: Others | C15: ADANIENT | D15: 142.80 | E15: 140.85 | F15: 137.10 | G15: 131.40 | H15: 127.65 | I15: 146.55 | J15: 150.30 | K15: 156.00 | L15: 144.6 | M15: 135.15 | N15: 40944000 | O15: 2.15%
A16: 6 | B16: Others | C16: ADANIPORTS | D16: 340.75 | E16: 341.75 | F16: 334.50 | G16: 328.25 | H16: 321.00 | I16: 348.00 | J16: 355.25 | K16: 361.50 | L16: 349 | M16: 335.5 | N16: 22522500 | O16: -1.48%
A17: 7 | B17: Power | C17: ADANIPOWER | D17: 44.30 | E17: 44.37 | F17: 41.68 | G17: 39.07 | H17: 36.38 | I17: 46.98 | J17: 49.67 | K17: 52.28 | L17: 47.05 | M17: 41.75 | N17: 153460000 | O17: 1.70%
A18: 8 | B18: Pharma | C18: AJANTPHARM | D18: 983.00 | E18: 995.88 | F18: 958.57 | G18: 934.13 | H18: 896.82 | I18: 1020.32 | J18: 1057.63 | K18: 1082.07 | L18: 1033.2 | M18: 971.45 | N18: 715000 | O18: 9.75%
A19: 9 | B19: Banking | C19: ALBK | D19: 43.55 | E19: 44.00 | F19: 42.35 | G19: 41.15 | H19: 39.50 | I19: 45.20 | J19: 46.85 | K19: 48.05 | L19: 45.65 | M19: 42.8 | N19: 17797000 | O19: 8.14%
A20: 10 | B20: Automobile | C20: AMARAJABAT | D20: 762.70 | E20: 757.92 | F20: 750.83 | G20: 738.97 | H20: 731.88 | I20: 769.78 | J20: 776.87 | K20: 788.73 | L20: 765 | M20: 746.05 | N20: 966700 | O20: 2.68%
A21: 11 | B21: Cement | C21: AMBUJACEM | D21: 211.60 | E21: 212.17 | F21: 208.93 | G21: 206.27 | H21: 203.03 | I21: 214.83 | J21: 218.07 | K21: 220.73 | L21: 215.4 | M21: 209.5 | N21: 9862500 | O21: 2.28%
A22: 12 | B22: Others | C22: APOLLOHOSP | D22: 1347.30 | E22: 1343.53 | F22: 1325.07 | G22: 1302.83 | H22: 1284.37 | I22: 1365.77 | J22: 1384.23 | K22: 1406.47 | L22: 1362 | M22: 1321.3 | N22: 731000 | O22: -2.08%
A23: 13 | B23: Automobile | C23: APOLLOTYRE | D23: 208.95 | E23: 208.60 | F23: 205.20 | G23: 201.45 | H23: 198.05 | I23: 212.35 | J23: 215.75 | K23: 219.50 | L23: 212 | M23: 204.85 | N23: 9474000 | O23: -1.03%
A24: 14 | B24: Textile | C24: ARVIND | D24: 88.70 | E24: 88.67 | F24: 87.38 | G24: 86.07 | H24: 84.78 | I24: 89.98 | J24: 91.27 | K24: 92.58 | L24: 89.95 | M24: 87.35 | N24: 6158000 | O24: 6.58%
A25: 15 | B25: Automobile | C25: ASHOKLEY | D25: 84.25 | E25: 84.40 | F25: 81.10 | G25: 77.95 | H25: 74.65 | I25: 87.55 | J25: 90.85 | K25: 94.00 | L25: 87.7 | M25: 81.25 | N25: 85308000 | O25: 11.92%
A26: 16 | B26: FMCG | C26: ASIANPAINT | D26: 1461.40 | E26: 1451.43 | F26: 1426.07 | G26: 1390.73 | H26: 1365.37 | I26: 1486.77 | J26: 1512.13 | K26: 1547.47 | L26: 1476.8 | M26: 1416.1 | N26: 5721600 | O26: 3.87%
A27: 17 | B27: Pharma | C27: AUROPHARMA | D27: 801.90 | E27: 797.17 | F27: 787.83 | G27: 773.77 | H27: 764.43 | I27: 811.23 | J27: 820.57 | K27: 834.63 | L27: 806.5 | M27: 783.1 | N27: 16743000 | O27: 2.03%
A28: 18 | B28: Banking | C28: AXISBANK | D28: 717.80 | E28: 716.40 | F28: 707.50 | G28: 697.20 | H28: 688.30 | I28: 726.70 | J28: 735.60 | K28: 745.90 | L28: 725.3 | M28: 706.1 | N28: 39308400 | O28: -0.11%
A29: 19 | B29: Automobile | C29: BAJAJ-AUTO | D29: 2617.60 | E29: 2619.27 | F29: 2553.53 | G29: 2489.47 | H29: 2423.73 | I29: 2683.33 | J29: 2749.07 | K29: 2813.13 | L29: 2685 | M29: 2555.2 | N29: 2175250 | O29: 3.08%
A30: 20 | B30: Others | C30: BAJAJFINSV | D30: 6136.35 | E30: 6164.78 | F30: 6071.57 | G30: 6006.78 | H30: 5913.57 | I30: 6229.57 | J30: 6322.78 | K30: 6387.57 | L30: 6258 | M30: 6100 | N30: 710875 | O30: 7.14%
A31: 21 | B31: Finance | C31: BAJFINANCE | D31: 2635.50 | E31: 2640.72 | F31: 2584.18 | G31: 2532.87 | H31: 2476.33 | I31: 2692.03 | J31: 2748.57 | K31: 2799.88 | L31: 2697.25 | M31: 2589.4 | N31: 6173250 | O31: -0.43%
A32: 22 | B32: Others | C32: BALKRISIND | D32: 825.45 | E32: 826.40 | F32: 811.15 | G32: 796.85 | H32: 781.60 | I32: 840.70 | J32: 855.95 | K32: 870.25 | L32: 841.65 | M32: 812.1 | N32: 2654400 | O32: 4.44%
A33: 23 | B33: Banking | C33: BANKBARODA | D33: 111.35 | E33: 111.75 | F33: 108.90 | G33: 106.45 | H33: 103.60 | I33: 114.20 | J33: 117.05 | K33: 119.50 | L33: 114.6 | M33: 109.3 | N33: 63152000 | O33: -2.24%
A34: 24 | B34: Banking | C34: BANKINDIA | D34: 95.05 | E34: 97.83 | F34: 88.37 | G34: 81.68 | H34: 72.22 | I34: 104.52 | J34: 113.98 | K34: 120.67 | L34: 107.3 | M34: 91.15 | N34: 24252000 | O34: 0.50%
A35: 25 | B35: FMCG | C35: BATAINDIA | D35: 1148.40 | E35: 1140.50 | F35: 1126.40 | G35: 1104.40 | H35: 1090.30 | I35: 1162.50 | J35: 1176.60 | K35: 1198.60 | L35: 1154.6 | M35: 1118.5 | N35: 1840850 | O35: 1.64%
A36: 26 | B36: Capital_Goods | C36: BEL | D36: 84.65 | E36: 84.73 | F36: 83.12 | G36: 81.58 | H36: 79.97 | I36: 86.27 | J36: 87.88 | K36: 89.42 | L36: 86.35 | M36: 83.2 | N36: 29892000 | O36: -3.71%
A37: 27 | B37: Infrastructure | C37: BEML | D37: 803.65 | E37: 807.23 | F37: 791.47 | G37: 779.28 | H37: 763.52 | I37: 819.42 | J37: 835.18 | K37: 847.37 | L37: 823 | M37: 795.05 | N37: 1439900 | O37: 2.70%
A38: 28 | B38: Others | C38: BERGEPAINT | D38: 327.05 | E38: 326.12 | F38: 321.33 | G38: 315.62 | H38: 310.83 | I38: 331.83 | J38: 336.62 | K38: 342.33 | L38: 330.9 | M38: 320.4 | N38: 6087400 | O38: 3.32%
A39: 29 | B39: Finance | C39: BHARATFIN | D39: 953.70 | E39: 955.33 | F39: 941.97 | G39: 930.23 | H39: 916.87 | I39: 967.07 | J39: 980.43 | K39: 992.17 | L39: 968.7 | M39: 943.6 | N39: 4429500 | O39: 3.12%
A40: 30 | B40: Automobile | C40: BHARATFORG | D40: 496.95 | E40: 498.38 | F40: 488.57 | G40: 480.18 | H40: 470.37 | I40: 506.77 | J40: 516.58 | K40: 524.97 | L40: 508.2 | M40: 490 | N40: 12405600 | O40: -2.02%
A41: 31 | B41: Telecom | C41: BHARTIARTL | D41: 312.80 | E41: 313.85 | F41: 305.75 | G41: 298.70 | H41: 290.60 | I41: 320.90 | J41: 329.00 | K41: 336.05 | L41: 321.95 | M41: 306.8 | N41: 33517200 | O41: 1.37%
A42: 32 | B42: Capital_Goods | C42: BHEL | D42: 64.10 | E42: 64.33 | F42: 63.12 | G42: 62.13 | H42: 60.92 | I42: 65.32 | J42: 66.53 | K42: 67.52 | L42: 65.55 | M42: 63.35 | N42: 43050000 | O42: 0.79%
A43: 33 | B43: Pharma | C43: BIOCON | D43: 670.40 | E43: 663.18 | F43: 653.12 | G43: 635.83 | H43: 625.77 | I43: 680.47 | J43: 690.53 | K43: 707.82 | L43: 673.25 | M43: 645.9 | N43: 5231700 | O43: 5.81%
A44: 34 | B44: Automobile | C44: BOSCHLTD | D44: 19382.65 | E44: 19245.05 | F44: 19020.15 | G44: 18657.65 | H44: 18432.75 | I44: 19607.55 | J44: 19832.45 | K44: 20194.95 | L44: 19469.95 | M44: 18882.55 | N44: 155820 | O44: -1.09%
A45: 35 | B45: Oil_Gas | C45: BPCL | D45: 334.90 | E45: 336.10 | F45: 331.25 | G45: 327.60 | H45: 322.75 | I45: 339.75 | J45: 344.60 | K45: 348.25 | L45: 340.95 | M45: 332.45 | N45: 4602600 | O45: 0.67%
A46: 36 | B46: FMCG | C46: BRITANNIA | D46: 3271.65 | E46: 3264.83 | F46: 3220.97 | G46: 3170.28 | H46: 3126.42 | I46: 3315.52 | J46: 3359.38 | K46: 3410.07 | L46: 3308.7 | M46: 3214.15 | N46: 2966400 | O46: 1.83%
A47: 37 | B47: Pharma | C47: CADILAHC | D47: 324.90 | E47: 322.88 | F47: 320.02 | G47: 315.13 | H47: 312.27 | I47: 327.77 | J47: 330.63 | K47: 335.52 | L47: 325.75 | M47: 318 | N47: 8212800 | O47: 0.81%
A48: 38 | B48: Banking | C48: CANBK | D48: 239.10 | E48: 242.70 | F48: 231.90 | G48: 224.70 | H48: 213.90 | I48: 249.90 | J48: 260.70 | K48: 267.90 | L48: 253.5 | M48: 235.5 | N48: 11324000 | O48: 10.20%
A49: 39 | B49: Others | C49: CANFINHOME | D49: 260.20 | E49: 256.93 | F49: 249.87 | G49: 239.53 | H49: 232.47 | I49: 267.27 | J49: 274.33 | K49: 284.67 | L49: 264 | M49: 246.6 | N49: 4226400 | O49: 2.35%
A50: 40 | B50: Oil_Gas | C50: CASTROLIND | D50: 161.90 | E50: 161.60 | F50: 159.90 | G50: 157.90 | H50: 156.20 | I50: 163.60 | J50: 165.30 | K50: 167.30 | L50: 163.3 | M50: 159.6 | N50: 6704800 | O50: -4.50%
A51: 41 | B51: Automobile | C51: CEATLTD | D51: 1075.60 | E51: 1082.40 | F51: 1058.90 | G51: 1042.20 | H51: 1018.70 | I51: 1099.10 | J51: 1122.60 | K51: 1139.30 | L51: 1105.9 | M51: 1065.7 | N51: 1250000 | O51: 11.61%
A52: 42 | B52: Textile | C52: CENTURYTEX | D52: 796.30 | E52: 799.12 | F52: 783.53 | G52: 770.77 | H52: 755.18 | I52: 811.88 | J52: 827.47 | K52: 840.23 | L52: 814.7 | M52: 786.35 | N52: 4574400 | O52: 0.07%
A53: 43 | B53: Power | C53: CESC | D53: 692.70 | E53: 691.22 | F53: 682.53 | G53: 672.37 | H53: 663.68 | I53: 701.38 | J53: 710.07 | K53: 720.23 | L53: 699.9 | M53: 681.05 | N53: 1055450 | O53: 6.97%
A54: 44 | B54: Power | C54: CGPOWER | D54: 38.30 | E54: 38.15 | F54: 37.35 | G54: 36.40 | H54: 35.60 | I54: 39.10 | J54: 39.90 | K54: 40.85 | L54: 38.95 | M54: 37.2 | N54: 41664000 | O54: 0.35%
A55: 45 | B55: Others | C55: CHENNPETRO | D55: 237.90 | E55: 238.52 | F55: 234.63 | G55: 231.37 | H55: 227.48 | I55: 241.78 | J55: 245.67 | K55: 248.93 | L55: 242.4 | M55: 235.25 | N55: 1373400 | O55: 1.73%
A56: 46 | B56: Others | C56: CHOLAFIN | D56: 1217.75 | E56: 1215.68 | F56: 1179.07 | G56: 1140.38 | H56: 1103.77 | I56: 1254.37 | J56: 1290.98 | K56: 1329.67 | L56: 1252.3 | M56: 1177 | N56: 851000 | O56: 0.18%
A57: 47 | B57: Pharma | C57: CIPLA | D57: 522.80 | E57: 520.67 | F57: 516.88 | G57: 510.97 | H57: 507.18 | I57: 526.58 | J57: 530.37 | K57: 536.28 | L57: 524.45 | M57: 514.75 | N57: 7280000 | O57: -1.05%
A58: 48 | B58: Others | C58: COALINDIA | D58: 223.90 | E58: 224.73 | F58: 222.52 | G58: 221.13 | H58: 218.92 | I58: 226.12 | J58: 228.33 | K58: 229.72 | L58: 226.95 | M58: 223.35 | N58: 18488800 | O58: 2.25%
A59: 49 | B59: FMCG | C59: COLPAL | D59: 1300.25 | E59: 1302.67 | F59: 1289.38 | G59: 1278.52 | H59: 1265.23 | I59: 1313.53 | J59: 1326.82 | K59: 1337.68 | L59: 1315.95 | M59: 1291.8 | N59: 1514100 | O59: 4.24%
A60: 50 | B60: Others | C60: CONCOR | D60: 659.35 | E60: 658.28 | F60: 650.57 | G60: 641.78 | H60: 634.07 | I60: 667.07 | J60: 674.78 | K60: 683.57 | L60: 666 | M60: 649.5 | N60: 1646250 | O60: 1.70%
A61: 51 | B61: Capital_Goods | C61: CUMMINSIND | D61: 796.10 | E61: 797.27 | F61: 789.58 | G61: 783.07 | H61: 775.38 | I61: 803.78 | J61: 811.47 | K61: 817.98 | L61: 804.95 | M61: 790.75 | N61: 1521800 | O61: 1.97%
A62: 52 | B62: FMCG | C62: DABUR | D62: 453.50 | E62: 451.70 | F62: 444.90 | G62: 436.30 | H62: 429.50 | I62: 460.30 | J62: 467.10 | K62: 475.70 | L62: 458.5 | M62: 443.1 | N62: 13601250 | O62: -1.77%
A63: 53 | B63: Banking | C63: DCBBANK | D63: 178.05 | E63: 177.97 | F63: 175.33 | G63: 172.62 | H63: 169.98 | I63: 180.68 | J63: 183.32 | K63: 186.03 | L63: 180.6 | M63: 175.25 | N63: 3064500 | O63: 1.34%
A64: 54 | B64: Finance | C64: DHFL | D64: 110.00 | E64: 115.40 | F64: 95.05 | G64: 80.10 | H64: 59.75 | I64: 130.35 | J64: 150.70 | K64: 165.65 | L64: 135.75 | M64: 100.45 | N64: 22114500 | O64: 15.16%
A65: 55 | B65: Media | C65: DISHTV | D65: 24.50 | E65: 24.55 | F65: 23.35 | G65: 22.20 | H65: 21.00 | I65: 25.70 | J65: 26.90 | K65: 28.05 | L65: 25.75 | M65: 23.4 | N65: 55416000 | O65: -4.23%
A66: 56 | B66: Pharma | C66: DIVISLAB | D66: 1541.75 | E66: 1533.22 | F66: 1507.53 | G66: 1473.32 | H66: 1447.63 | I66: 1567.43 | J66: 1593.12 | K66: 1627.33 | L66: 1558.9 | M66: 1499 | N66: 3309200 | O66: 5.21%
A67: 57 | B67: Realty | C67: DLF | D67: 166.70 | E67: 170.70 | F67: 159.50 | G67: 152.30 | H67: 141.10 | I67: 177.90 | J67: 189.10 | K67: 196.30 | L67: 181.9 | M67: 163.5 | N67: 23917400 | O67: 4.46%
A68: 58 | B68: Pharma | C68: DRREDDY | D68: 2799.35 | E68: 2781.98 | F68: 2742.32 | G68: 2685.28 | H68: 2645.62 | I68: 2839.02 | J68: 2878.68 | K68: 2935.72 | L68: 2821.65 | M68: 2724.95 | N68: 3581250 | O68: -2.53%
A69: 59 | B69: Automobile | C69: EICHERMOT | D69: 19697.25 | E69: 19705.80 | F69: 19166.60 | G69: 18635.95 | H69: 18096.75 | I69: 20236.45 | J69: 20775.65 | K69: 21306.30 | L69: 20245 | M69: 19175.15 | N69: 351500 | O69: -2.23%
A70: 60 | B70: Infrastructure | C70: ENGINERSIN | D70: 113.90 | E70: 113.48 | F70: 112.12 | G70: 110.33 | H70: 108.97 | I70: 115.27 | J70: 116.63 | K70: 118.42 | L70: 114.85 | M70: 111.7 | N70: 7166800 | O70: -2.94%
A71: 61 | B71: Finance | C71: EQUITAS | D71: 125.25 | E71: 124.07 | F71: 121.68 | G71: 118.12 | H71: 115.73 | I71: 127.63 | J71: 130.02 | K71: 133.58 | L71: 126.45 | M71: 120.5 | N71: 12604000 | O71: 20.82%
A72: 62 | B72: Automobile | C72: ESCORTS | D72: 678.60 | E72: 673.53 | F72: 662.07 | G72: 645.53 | H72: 634.07 | I72: 690.07 | J72: 701.53 | K72: 718.07 | L72: 685 | M72: 657 | N72: 4396700 | O72: 12.40%
A73: 63 | B73: Automobile | C73: EXIDEIND | D73: 227.40 | E73: 228.05 | F73: 224.85 | G73: 222.30 | H73: 219.10 | I73: 230.60 | J73: 233.80 | K73: 236.35 | L73: 231.25 | M73: 225.5 | N73: 7478000 | O73: 4.15%
A74: 64 | B74: Banking | C74: FEDERALBNK | D74: 86.45 | E74: 86.72 | F74: 85.03 | G74: 83.62 | H74: 81.93 | I74: 88.13 | J74: 89.82 | K74: 91.23 | L74: 88.4 | M74: 85.3 | N74: 47726000 | O74: -0.15%
A75: 65 | B75: Oil_Gas | C75: GAIL | D75: 328.80 | E75: 327.50 | F75: 324.20 | G75: 319.60 | H75: 316.30 | I75: 332.10 | J75: 335.40 | K75: 340.00 | L75: 330.8 | M75: 322.9 | N75: 9097137 | O75: 1.67%
A76: 66 | B76: Pharma | C76: GLENMARK | D76: 665.25 | E76: 661.02 | F76: 653.98 | G76: 642.72 | H76: 635.68 | I76: 672.28 | J76: 679.32 | K76: 690.58 | L76: 668.05 | M76: 649.75 | N76: 3735000 | O76: -0.03%
A77: 67 | B77: Infrastructure | C77: GMRINFRA | D77: 15.15 | E77: 15.28 | F77: 14.92 | G77: 14.68 | H77: 14.32 | I77: 15.52 | J77: 15.88 | K77: 16.12 | L77: 15.65 | M77: 15.05 | N77: 166095000 | O77: 4.77%
A78: 68 | B78: Others | C78: GODFRYPHLP | D78: 948.00 | E78: 948.67 | F78: 927.33 | G78: 906.67 | H78: 885.33 | I78: 969.33 | J78: 990.67 | K78: 1011.33 | L78: 970 | M78: 928 | N78: 455000 | O78: 0.78%
A79: 69 | B79: FMCG | C79: GODREJCP | D79: 713.45 | E79: 710.32 | F79: 699.63 | G79: 685.82 | H79: 675.13 | I79: 724.13 | J79: 734.82 | K79: 748.63 | L79: 721 | M79: 696.5 | N79: 5533200 | O79: 3.59%
A80: 70 | B80: FMCG | C80: GODREJIND | D80: 507.25 | E80: 507.43 | F80: 498.87 | G80: 490.48 | H80: 481.92 | I80: 515.82 | J80: 524.38 | K80: 532.77 | L80: 516 | M80: 499.05 | N80: 1501500 | O80: -0.60%
A81: 71 | B81: Cement | C81: GRASIM | D81: 723.20 | E81: 723.42 | F81: 713.03 | G81: 702.87 | H81: 692.48 | I81: 733.58 | J81: 743.97 | K81: 754.13 | L81: 733.8 | M81: 713.25 | N81: 11046000 | O81: 0.42%
A82: 72 | B82: Others | C82: GSFC | D82: 96.40 | E82: 96.52 | F82: 93.53 | G82: 90.67 | H82: 87.68 | I82: 99.38 | J82: 102.37 | K82: 105.23 | L82: 99.5 | M82: 93.65 | N82: 12652400 | O82: -0.52%
A83: 73 | B83: Others | C83: HAVELLS | D83: 739.75 | E83: 732.63 | F83: 720.97 | G83: 702.18 | H83: 690.52 | I83: 751.42 | J83: 763.08 | K83: 781.87 | L83: 744.3 | M83: 713.85 | N83: 4952000 | O83: 10.12%
A84: 74 | B84: Technology | C84: HCLTECH | D84: 1044.10 | E84: 1035.85 | F84: 1020.80 | G84: 997.50 | H84: 982.45 | I84: 1059.15 | J84: 1074.20 | K84: 1097.50 | L84: 1050.9 | M84: 1012.55 | N84: 9639000 | O84: -3.81%
A85: 75 | B85: Finance | C85: HDFC | D85: 1967.30 | E85: 1960.97 | F85: 1940.08 | G85: 1912.87 | H85: 1891.98 | I85: 1988.18 | J85: 2009.07 | K85: 2036.28 | L85: 1981.85 | M85: 1933.75 | N85: 27626000 | O85: 1.45%
A86: 76 | B86: Banking | C86: HDFCBANK | D86: 2092.10 | E86: 2098.52 | F86: 2074.13 | G86: 2056.17 | H86: 2031.78 | I86: 2116.48 | J86: 2140.87 | K86: 2158.83 | L86: 2122.9 | M86: 2080.55 | N86: 11551250 | O86: -2.27%
A87: 77 | B87: Automobile | C87: HEROMOTOCO | D87: 2766.70 | E87: 2713.67 | F87: 2629.33 | G87: 2491.97 | H87: 2407.63 | I87: 2851.03 | J87: 2935.37 | K87: 3072.73 | L87: 2798 | M87: 2576.3 | N87: 2054800 | O87: 26.39%
A88: 78 | B88: Technology | C88: HEXAWARE | D88: 349.20 | E88: 347.82 | F88: 341.13 | G88: 333.07 | H88: 326.38 | I88: 355.88 | J88: 362.57 | K88: 370.63 | L88: 354.5 | M88: 339.75 | N88: 3378000 | O88: 6.48%
A89: 79 | B89: Metals | C89: HINDALCO | D89: 211.50 | E89: 209.38 | F89: 206.12 | G89: 200.73 | H89: 197.47 | I89: 214.77 | J89: 218.03 | K89: 223.42 | L89: 212.65 | M89: 204 | N89: 33201000 | O89: -0.21%
A90: 80 | B90: Oil_Gas | C90: HINDPETRO | D90: 229.80 | E90: 229.75 | F90: 226.70 | G90: 223.60 | H90: 220.55 | I90: 232.85 | J90: 235.90 | K90: 239.00 | L90: 232.8 | M90: 226.65 | N90: 12925500 | O90: 5.05%
A91: 81 | B91: FMCG | C91: HINDUNILVR | D91: 1805.30 | E91: 1805.40 | F91: 1771.80 | G91: 1738.30 | H91: 1704.70 | I91: 1838.90 | J91: 1872.50 | K91: 1906.00 | L91: 1839 | M91: 1771.9 | N91: 10769400 | O91: 2.77%
A92: 82 | B92: Metals | C92: HINDZINC | D92: 255.75 | E92: 253.03 | F92: 245.37 | G92: 234.98 | H92: 227.32 | I92: 263.42 | J92: 271.08 | K92: 281.47 | L92: 260.7 | M92: 242.65 | N92: 5299200 | O92: 20.26%
A93: 83 | B93: Finance | C93: IBULHSGFIN | D93: 671.30 | E93: 673.55 | F93: 652.75 | G93: 634.20 | H93: 613.40 | I93: 692.10 | J93: 712.90 | K93: 731.45 | L93: 694.35 | M93: 655 | N93: 13380500 | O93: -0.94%
A94: 84 | B94: Banking | C94: ICICIBANK | D94: 355.85 | E94: 356.88 | F94: 348.42 | G94: 340.98 | H94: 332.52 | I94: 364.32 | J94: 372.78 | K94: 380.22 | L94: 365.35 | M94: 349.45 | N94: 91247750 | O94: 0.42%
A95: 85 | B95: Others | C95: ICICIPRULI | D95: 287.70 | E95: 288.55 | F95: 283.35 | G95: 279.00 | H95: 273.80 | I95: 292.90 | J95: 298.10 | K95: 302.45 | L95: 293.75 | M95: 284.2 | N95: 6343500 | O95: 1.10%
A96: 86 | B96: Banking | C96: IDBI | D96: 52.70 | E96: 53.70 | F96: 51.10 | G96: 49.50 | H96: 46.90 | I96: 55.30 | J96: 57.90 | K96: 59.50 | L96: 56.3 | M96: 52.1 | N96: 35860000 | O96: 10.27%
A97: 87 | B97: Telecom | C97: IDEA | D97: 31.05 | E97: 30.93 | F97: 30.32 | G97: 29.58 | H97: 28.97 | I97: 31.67 | J97: 32.28 | K97: 33.02 | L97: 31.55 | M97: 30.2 | N97: 143568000 | O97: -1.14%
A98: 88 | B98: Finance | C98: IDFC | D98: 38.90 | E98: 39.15 | F98: 38.30 | G98: 37.70 | H98: 36.85 | I98: 39.75 | J98: 40.60 | K98: 41.20 | L98: 40 | M98: 38.55 | N98: 102550800 | O98: 0.70%
A99: 89 | B99: Banking | C99: IDFCFIRSTB | D99: 44.95 | E99: 45.03 | F99: 44.32 | G99: 43.68 | H99: 42.97 | I99: 45.67 | J99: 46.38 | K99: 47.02 | L99: 45.75 | M99: 44.4 | N99: 138804000 | O99: -1.33%
A100: 90 | B100: Finance | C100: IFCI | D100: 13.60 | E100: 13.65 | F100: 13.30 | G100: 13.00 | H100: 12.65 | I100: 13.95 | J100: 14.30 | K100: 14.60 | L100: 14 | M100: 13.35 | N100: 52150000 | O100: -0.20%
A101: 91 | B101: Oil_Gas | C101: IGL | D101: 285.90 | E101: 286.83 | F101: 283.57 | G101: 281.23 | H101: 277.97 | I101: 289.17 | J101: 292.43 | K101: 294.77 | L101: 290.1 | M101: 284.5 | N101: 2411750 | O101: -13.08%
A102: 92 | B102: Cement | C102: INDIACEM | D102: 82.00 | E102: 83.07 | F102: 79.53 | G102: 77.07 | H102: 73.53 | I102: 85.53 | J102: 89.07 | K102: 91.53 | L102: 86.6 | M102: 80.6 | N102: 19044000 | O102: 1.34%
A103: 93 | B103: Banking | C103: INDIANB | D103: 221.80 | E103: 222.78 | F103: 216.27 | G103: 210.73 | H103: 204.22 | I103: 228.32 | J103: 234.83 | K103: 240.37 | L103: 229.3 | M103: 217.25 | N103: 3406000 | O103: 2.65%
A104: 94 | B104: Others | C104: INDIGO | D104: 1179.90 | E104: 1183.82 | F104: 1163.18 | G104: 1146.47 | H104: 1125.83 | I104: 1200.53 | J104: 1221.17 | K104: 1237.88 | L104: 1204.45 | M104: 1167.1 | N104: 2383800 | O104: 1.46%
A105: 95 | B105: Banking | C105: INDUSINDBK | D105: 1515.30 | E105: 1516.53 | F105: 1494.32 | G105: 1473.33 | H105: 1451.12 | I105: 1537.52 | J105: 1559.73 | K105: 1580.72 | L105: 1538.75 | M105: 1495.55 | N105: 6716400 | O105: 1.46%
A106: 96 | B106: Technology | C106: INFIBEAM | D106: 37.75 | E106: 38.20 | F106: 36.30 | G106: 34.85 | H106: 32.95 | I106: 39.65 | J106: 41.55 | K106: 43.00 | L106: 40.1 | M106: 36.75 | N106: 16504000 | O106: 2.74%
A107: 97 | B107: Telecom | C107: INFRATEL | D107: 297.80 | E107: 296.57 | F107: 294.13 | G107: 290.47 | H107: 288.03 | I107: 300.23 | J107: 302.67 | K107: 306.33 | L107: 299 | M107: 292.9 | N107: 7714000 | O107: 1.71%
A108: 98 | B108: Technology | C108: INFY | D108: 760.80 | E108: 758.15 | F108: 751.55 | G108: 742.30 | H108: 735.70 | I108: 767.40 | J108: 774.00 | K108: 783.25 | L108: 764.75 | M108: 748.9 | N108: 39614400 | O108: 1.56%
A109: 99 | B109: Oil_Gas | C109: IOC | D109: 137.95 | E109: 138.07 | F109: 136.73 | G109: 135.52 | H109: 134.18 | I109: 139.28 | J109: 140.62 | K109: 141.83 | L109: 139.4 | M109: 136.85 | N109: 29557500 | O109: -1.88%
A110: 100 | B110: Infrastructure | C110: IRB | D110: 144.60 | E110: 145.90 | F110: 141.35 | G110: 138.10 | H110: 133.55 | I110: 149.15 | J110: 153.70 | K110: 156.95 | L110: 150.45 | M110: 142.65 | N110: 6553600 | O110: 1.59%
A111: 101 | B111: FMCG | C111: ITC | D111: 282.30 | E111: 282.98 | F111: 279.37 | G111: 276.43 | H111: 272.82 | I111: 285.92 | J111: 289.53 | K111: 292.47 | L111: 286.6 | M111: 280.05 | N111: 69345600 | O111: -0.50%
A112: 102 | B112: Others | C112: JETAIRWAYS | D112: 243.40 | E112: 247.90 | F112: 218.95 | G112: 194.50 | H112: 165.55 | I112: 272.35 | J112: 301.30 | K112: 325.75 | L112: 276.85 | M112: 223.45 | N112: 6463600 | O112: 25.72%
A113: 103 | B113: Metals | C113: JINDALSTEL | D113: 130.45 | E113: 132.67 | F113: 126.83 | G113: 123.22 | H113: 117.38 | I113: 136.28 | J113: 142.12 | K113: 145.73 | L113: 138.5 | M113: 129.05 | N113: 27330750 | O113: 5.36%
A114: 104 | B114: Others | C114: JISLJALEQS | D114: 59.40 | E114: 60.20 | F114: 57.40 | G114: 55.40 | H114: 52.60 | I114: 62.20 | J114: 65.00 | K114: 67.00 | L114: 63 | M114: 58.2 | N114: 38403000 | O114: 2.89%
A115: 105 | B115: Realty | C115: JPASSOCIAT | D115: 6.75 | E115: 6.87 | F115: 6.53 | G115: 6.32 | H115: 5.98 | I115: 7.08 | J115: 7.42 | K115: 7.63 | L115: 7.2 | M115: 6.65 | N115: 109890000 | O115: 2.30%
A116: 106 | B116: Metals | C116: JSWSTEEL | D116: 276.05 | E116: 275.35 | F116: 268.90 | G116: 261.75 | H116: 255.30 | I116: 282.50 | J116: 288.95 | K116: 296.10 | L116: 281.8 | M116: 268.2 | N116: 53439000 | O116: 1.20%
A117: 107 | B117: Others | C117: JUBLFOOD | D117: 1360.15 | E117: 1327.25 | F117: 1282.50 | G117: 1204.85 | H117: 1160.10 | I117: 1404.90 | J117: 1449.65 | K117: 1527.30 | L117: 1372 | M117: 1249.6 | N117: 3424500 | O117: -4.72%
A118: 108 | B118: Others | C118: JUSTDIAL | D118: 478.15 | E118: 478.40 | F118: 469.80 | G118: 461.45 | H118: 452.85 | I118: 486.75 | J118: 495.35 | K118: 503.70 | L118: 487 | M118: 470.05 | N118: 2214800 | O118: 1.35%
A119: 109 | B119: Others | C119: KAJARIACER | D119: 550.80 | E119: 547.37 | F119: 542.98 | G119: 535.17 | H119: 530.78 | I119: 555.18 | J119: 559.57 | K119: 567.38 | L119: 551.75 | M119: 539.55 | N119: 2203500 | O119: -9.12%
A120: 110 | B120: Banking | C120: KOTAKBANK | D120: 1261.55 | E120: 1260.75 | F120: 1247.80 | G120: 1234.05 | H120: 1221.10 | I120: 1274.50 | J120: 1287.45 | K120: 1301.20 | L120: 1273.7 | M120: 1247 | N120: 9566400 | O120: -1.04%
A121: 111 | B121: Technology | C121: KPIT | D121: 115.15 | E121: 115.05 | F121: 113.50 | G121: 111.85 | H121: 110.30 | I121: 116.70 | J121: 118.25 | K121: 119.90 | L121: 116.6 | M121: 113.4 | N121: 2385000 | O121: -0.56%
A122: 112 | B122: Others | C122: KSCL | D122: 585.30 | E122: 591.05 | F122: 572.25 | G122: 559.20 | H122: 540.40 | I122: 604.10 | J122: 622.90 | K122: 635.95 | L122: 609.85 | M122: 578 | N122: 919500 | O122: 4.79%
A123: 113 | B123: Banking | C123: KTKBANK | D123: 118.45 | E123: 118.65 | F123: 115.35 | G123: 112.25 | H123: 108.95 | I123: 121.75 | J123: 125.05 | K123: 128.15 | L123: 121.95 | M123: 115.55 | N123: 13136500 | O123: -3.19%
A124: 114 | B124: Finance | C124: L&TFH | D124: 130.70 | E124: 131.35 | F124: 127.35 | G124: 124.00 | H124: 120.00 | I124: 134.70 | J124: 138.70 | K124: 142.05 | L124: 135.35 | M124: 128 | N124: 24651000 | O124: -0.29%
A125: 115 | B125: Finance | C125: LICHSGFIN | D125: 462.85 | E125: 462.52 | F125: 450.63 | G125: 438.42 | H125: 426.53 | I125: 474.73 | J125: 486.62 | K125: 498.83 | L125: 474.4 | M125: 450.3 | N125: 9517200 | O125: 5.72%
A126: 116 | B126: Capital_Goods | C126: LT | D126: 1314.70 | E126: 1319.17 | F126: 1304.33 | G126: 1293.97 | H126: 1279.13 | I126: 1329.53 | J126: 1344.37 | K126: 1354.73 | L126: 1334 | M126: 1308.8 | N126: 7046625 | O126: -2.20%
A127: 117 | B127: Pharma | C127: LUPIN | D127: 885.25 | E127: 882.32 | F127: 874.78 | G127: 864.32 | H127: 856.78 | I127: 892.78 | J127: 900.32 | K127: 910.78 | L127: 889.85 | M127: 871.85 | N127: 7950600 | O127: 0.68%
A128: 118 | B128: Automobile | C128: M&M | D128: 691.45 | E128: 697.82 | F128: 676.63 | G128: 661.82 | H128: 640.63 | I128: 712.63 | J128: 733.82 | K128: 748.63 | L128: 719 | M128: 683 | N128: 18450000 | O128: 5.93%
A129: 119 | B129: Finance | C129: M&MFIN | D129: 419.20 | E129: 416.50 | F129: 406.90 | G129: 394.60 | H129: 385.00 | I129: 428.80 | J129: 438.40 | K129: 450.70 | L129: 426.1 | M129: 404.2 | N129: 12283750 | O129: 5.81%
A130: 120 | B130: Others | C130: MANAPPURAM | D130: 93.70 | E130: 93.23 | F130: 92.37 | G130: 91.03 | H130: 90.17 | I130: 94.57 | J130: 95.43 | K130: 96.77 | L130: 94.1 | M130: 91.9 | N130: 7668000 | O130: -2.67%
A131: 121 | B131: FMCG | C131: MARICO | D131: 375.25 | E131: 372.38 | F131: 367.87 | G131: 360.48 | H131: 355.97 | I131: 379.77 | J131: 384.28 | K131: 391.67 | L131: 376.9 | M131: 365 | N131: 5465200 | O131: 3.96%
A132: 122 | B132: Automobile | C132: MARUTI | D132: 6981.10 | E132: 6957.75 | F132: 6695.50 | G132: 6409.90 | H132: 6147.65 | I132: 7243.35 | J132: 7505.60 | K132: 7791.20 | L132: 7220 | M132: 6672.15 | N132: 2535975 | O132: -3.93%
A133: 123 | B133: FMCG | C133: MCDOWELL-N | D133: 547.20 | E133: 548.87 | F133: 533.33 | G133: 519.47 | H133: 503.93 | I133: 562.73 | J133: 578.27 | K133: 592.13 | L133: 564.4 | M133: 535 | N133: 12415000 | O133: 0.25%
A134: 124 | B134: Others | C134: MCX | D134: 717.45 | E134: 716.95 | F134: 707.20 | G134: 696.95 | H134: 687.20 | I134: 727.20 | J134: 736.95 | K134: 747.20 | L134: 726.7 | M134: 706.7 | N134: 2278500 | O134: 0.56%
A135: 125 | B135: Finance | C135: MFSL | D135: 378.15 | E135: 385.83 | F135: 366.82 | G135: 355.48 | H135: 336.47 | I135: 397.17 | J135: 416.18 | K135: 427.52 | L135: 404.85 | M135: 374.5 | N135: 2445600 | O135: 4.14%
A136: 126 | B136: Others | C136: MGL | D136: 922.60 | E136: 919.80 | F136: 910.40 | G136: 898.20 | H136: 888.80 | I136: 932.00 | J136: 941.40 | K136: 953.60 | L136: 929.2 | M136: 907.6 | N136: 892800 | O136: -0.87%
A137: 127 | B137: Technology | C137: MINDTREE | D137: 905.30 | E137: 901.18 | F137: 892.87 | G137: 880.43 | H137: 872.12 | I137: 913.62 | J137: 921.93 | K137: 934.37 | L137: 909.5 | M137: 888.75 | N137: 2323200 | O137: -0.10%
A138: 128 | B138: Automobile | C138: MOTHERSUMI | D138: 140.05 | E138: 142.22 | F138: 136.28 | G138: 132.52 | H138: 126.58 | I138: 145.98 | J138: 151.92 | K138: 155.68 | L138: 148.15 | M138: 138.45 | N138: 28289100 | O138: 2.40%
A139: 129 | B139: Automobile | C139: MRF | D139: 61632.95 | E139: 62042.57 | F139: 60990.38 | G139: 60347.82 | H139: 59295.63 | I139: 62685.13 | J139: 63737.32 | K139: 64379.88 | L139: 63094.75 | M139: 61400 | N139: 27760 | O139: 1.72%
A140: 130 | B140: Others | C140: MRPL | D140: 67.95 | E140: 68.07 | F140: 67.08 | G140: 66.22 | H140: 65.23 | I140: 68.93 | J140: 69.92 | K140: 70.78 | L140: 69.05 | M140: 67.2 | N140: 5089000 | O140: 3.12%
A141: 131 | B141: Finance | C141: MUTHOOTFIN | D141: 492.30 | E141: 493.77 | F141: 479.73 | G141: 467.17 | H141: 453.13 | I141: 506.33 | J141: 520.37 | K141: 532.93 | L141: 507.8 | M141: 481.2 | N141: 1270500 | O141: -5.15%
A142: 132 | B142: Others | C142: NATIONALUM | D142: 59.15 | E142: 59.27 | F142: 58.53 | G142: 57.92 | H142: 57.18 | I142: 59.88 | J142: 60.62 | K142: 61.23 | L142: 60 | M142: 58.65 | N142: 24152000 | O142: 1.92%
A143: 133 | B143: Others | C143: NBCC | D143: 58.15 | E143: 58.43 | F143: 56.62 | G143: 55.08 | H143: 53.27 | I143: 59.97 | J143: 61.78 | K143: 63.32 | L143: 60.25 | M143: 56.9 | N143: 30584000 | O143: -0.47%
A144: 134 | B144: Infrastructure | C144: NCC | D144: 79.45 | E144: 80.08 | F144: 77.77 | G144: 76.08 | H144: 73.77 | I144: 81.77 | J144: 84.08 | K144: 85.77 | L144: 82.4 | M144: 78.4 | N144: 47312000 | O144: 4.06%
A145: 135 | B145: Others | C145: NESTLEIND | D145: 11595.25 | E145: 11592.05 | F145: 11485.10 | G145: 11374.95 | H145: 11268.00 | I145: 11702.20 | J145: 11809.15 | K145: 11919.30 | L145: 11699 | M145: 11481.9 | N145: 294450 | O145: 3.17%
A146: 136 | B146: Power | C146: NHPC | D146: 24.65 | E146: 24.60 | F146: 24.30 | G146: 23.95 | H146: 23.65 | I146: 24.95 | J146: 25.25 | K146: 25.60 | L146: 24.9 | M146: 24.25 | N146: 15093000 | O146: -1.76%
A147: 137 | B147: Technology | C147: NIITTECH | D147: 1326.20 | E147: 1325.17 | F147: 1306.83 | G147: 1287.47 | H147: 1269.13 | I147: 1344.53 | J147: 1362.87 | K147: 1382.23 | L147: 1343.5 | M147: 1305.8 | N147: 1631250 | O147: 0.09%
A148: 138 | B148: Metals | C148: NMDC | D148: 95.65 | E148: 96.03 | F148: 93.97 | G148: 92.28 | H148: 90.22 | I148: 97.72 | J148: 99.78 | K148: 101.47 | L148: 98.1 | M148: 94.35 | N148: 24162000 | O148: -3.43%
A149: 139 | B149: Power | C149: NTPC | D149: 137.10 | E149: 136.85 | F149: 136.05 | G149: 135.00 | H149: 134.20 | I149: 137.90 | J149: 138.70 | K149: 139.75 | L149: 137.65 | M149: 135.8 | N149: 25516000 | O149: 3.42%
A150: 140 | B150: Technology | C150: OFSS | D150: 3814.90 | E150: 3808.05 | F150: 3780.90 | G150: 3746.90 | H150: 3719.75 | I150: 3842.05 | J150: 3869.20 | K150: 3903.20 | L150: 3835.2 | M150: 3774.05 | N150: 144750 | O150: 0.94%
A151: 141 | B151: Oil_Gas | C151: OIL | D151: 168.80 | E151: 167.97 | F151: 165.78 | G151: 162.77 | H151: 160.58 | I151: 170.98 | J151: 173.17 | K151: 176.18 | L151: 170.15 | M151: 164.95 | N151: 5159682 | O151: -9.59%
A152: 142 | B152: Oil_Gas | C152: ONGC | D152: 141.80 | E152: 141.68 | F152: 140.17 | G152: 138.53 | H152: 137.02 | I152: 143.32 | J152: 144.83 | K152: 146.47 | L152: 143.2 | M152: 140.05 | N152: 28222500 | O152: -0.25%
A153: 143 | B153: Banking | C153: ORIENTBANK | D153: 95.25 | E153: 95.88 | F153: 91.82 | G153: 88.38 | H153: 84.32 | I153: 99.32 | J153: 103.38 | K153: 106.82 | L153: 99.95 | M153: 92.45 | N153: 12614000 | O153: 5.69%
A154: 144 | B154: Textile | C154: PAGEIND | D154: 24115.15 | E154: 23918.87 | F154: 23597.73 | G154: 23080.32 | H154: 22759.18 | I154: 24436.28 | J154: 24757.42 | K154: 25274.83 | L154: 24240 | M154: 23401.45 | N154: 185850 | O154: -3.53%
A155: 145 | B155: Others | C155: PCJEWELLER | D155: 71.50 | E155: 72.32 | F155: 69.98 | G155: 68.47 | H155: 66.13 | I155: 73.83 | J155: 76.17 | K155: 77.68 | L155: 74.65 | M155: 70.8 | N155: 8092500 | O155: -0.48%
A156: 146 | B156: Pharma | C156: PEL | D156: 2159.15 | E156: 2123.93 | F156: 2060.27 | G156: 1961.38 | H156: 1897.72 | I156: 2222.82 | J156: 2286.48 | K156: 2385.37 | L156: 2187.6 | M156: 2025.05 | N156: 3384212 | O156: -0.36%
A157: 147 | B157: Oil_Gas | C157: PETRONET | D157: 222.15 | E157: 223.93 | F157: 216.92 | G157: 211.68 | H157: 204.67 | I157: 229.17 | J157: 236.18 | K157: 241.42 | L157: 230.95 | M157: 218.7 | N157: 11880000 | O157: -4.02%
A158: 148 | B158: Finance | C158: PFC | D158: 103.85 | E158: 103.48 | F158: 101.82 | G158: 99.78 | H158: 98.12 | I158: 105.52 | J158: 107.18 | K158: 109.22 | L158: 105.15 | M158: 101.45 | N158: 28805200 | O158: -1.11%
A159: 149 | B159: FMCG | C159: PIDILITIND | D159: 1128.15 | E159: 1132.35 | F159: 1113.00 | G159: 1097.85 | H159: 1078.50 | I159: 1147.50 | J159: 1166.85 | K159: 1182.00 | L159: 1151.7 | M159: 1117.2 | N159: 2394500 | O159: 9.61%
A160: 150 | B160: Banking | C160: PNB | D160: 74.10 | E160: 75.48 | F160: 72.17 | G160: 70.23 | H160: 66.92 | I160: 77.42 | J160: 80.73 | K160: 82.67 | L160: 78.8 | M160: 73.55 | N160: 103411000 | O160: 0.65%
A161: 151 | B161: Power | C161: POWERGRID | D161: 188.70 | E161: 188.12 | F161: 185.73 | G161: 182.77 | H161: 180.38 | I161: 191.08 | J161: 193.47 | K161: 196.43 | L161: 190.5 | M161: 185.15 | N161: 8640000 | O161: 8.54%
A162: 152 | B162: Others | C162: PVR | D162: 1580.10 | E162: 1600.17 | F162: 1545.93 | G162: 1511.77 | H162: 1457.53 | I162: 1634.33 | J162: 1688.57 | K162: 1722.73 | L162: 1654.4 | M162: 1566 | N162: 1695200 | O162: 0.71%
A163: 153 | B163: Cement | C163: RAMCOCEM | D163: 603.75 | E163: 602.47 | F163: 593.43 | G163: 583.12 | H163: 574.08 | I163: 612.78 | J163: 621.82 | K163: 632.13 | L163: 611.5 | M163: 592.15 | N163: 632800 | O163: -17.00%
A164: 154 | B164: Others | C164: RAYMOND | D164: 745.55 | E164: 751.02 | F164: 734.03 | G164: 722.52 | H164: 705.53 | I164: 762.53 | J164: 779.52 | K164: 791.03 | L164: 768 | M164: 739.5 | N164: 3956800 | O164: 3.06%
A165: 155 | B165: Banking | C165: RBLBANK | D165: 577.05 | E165: 574.95 | F165: 570.00 | G165: 562.95 | H165: 558.00 | I165: 582.00 | J165: 586.95 | K165: 594.00 | L165: 579.9 | M165: 567.9 | N165: 5320800 | O165: -1.53%
A166: 156 | B166: Telecom | C166: RCOM | D166: 11.35 | E166: 11.48 | F166: 10.92 | G166: 10.48 | H166: 9.92 | I166: 11.92 | J166: 12.48 | K166: 12.92 | L166: 12.05 | M166: 11.05 | N166: 93262000 | O166: 9.07%
A167: 157 | B167: Power | C167: RECLTD | D167: 123.85 | E167: 123.30 | F167: 121.70 | G167: 119.55 | H167: 117.95 | I167: 125.45 | J167: 127.05 | K167: 129.20 | L167: 124.9 | M167: 121.15 | N167: 31074000 | O167: 0.21%
A168: 158 | B168: Finance | C168: RELCAPITAL | D168: 189.65 | E168: 192.58 | F168: 183.52 | G168: 177.38 | H168: 168.32 | I168: 198.72 | J168: 207.78 | K168: 213.92 | L168: 201.65 | M168: 186.45 | N168: 11187000 | O168: 2.49%
A169: 159 | B169: Oil_Gas | C169: RELIANCE | D169: 1255.00 | E169: 1248.90 | F169: 1237.80 | G169: 1220.60 | H169: 1209.50 | I169: 1266.10 | J169: 1277.20 | K169: 1294.40 | L169: 1260 | M169: 1231.7 | N169: 49315000 | O169: 3.80%
A170: 160 | B170: Power | C170: RELINFRA | D170: 267.85 | E170: 270.78 | F170: 260.97 | G170: 254.08 | H170: 244.27 | I170: 277.67 | J170: 287.48 | K170: 294.37 | L170: 280.6 | M170: 263.9 | N170: 10822500 | O170: 3.40%
A171: 161 | B171: Others | C171: REPCOHOME | D171: 397.30 | E171: 401.93 | F171: 388.42 | G171: 379.53 | H171: 366.02 | I171: 410.82 | J171: 424.33 | K171: 433.22 | L171: 415.45 | M171: 393.05 | N171: 849200 | O171: -2.53%
A172: 162 | B172: Power | C172: RPOWER | D172: 26.45 | E172: 26.67 | F172: 25.98 | G172: 25.52 | H172: 24.83 | I172: 27.13 | J172: 27.82 | K172: 28.28 | L172: 27.35 | M172: 26.2 | N172: 44176000 | O172: -0.18%
A173: 163 | B173: Metals | C173: SAIL | D173: 46.35 | E173: 46.77 | F173: 45.48 | G173: 44.62 | H173: 43.33 | I173: 47.63 | J173: 48.92 | K173: 49.78 | L173: 48.05 | M173: 45.9 | N173: 84348000 | O173: 0.29%
A174: 164 | B174: Banking | C174: SBIN | D174: 285.05 | E174: 290.47 | F174: 276.93 | G174: 268.82 | H174: 255.28 | I174: 298.58 | J174: 312.12 | K174: 320.23 | L174: 304 | M174: 282.35 | N174: 96066000 | O174: 25.55%
A175: 165 | B175: Cement | C175: SHREECEM | D175: 15862.45 | E175: 15902.72 | F175: 15610.53 | G175: 15358.62 | H175: 15066.43 | I175: 16154.63 | J175: 16446.82 | K175: 16698.73 | L175: 16194.9 | M175: 15650.8 | N175: 81750 | O175: 6.10%
A176: 166 | B176: Capital_Goods | C176: SIEMENS | D176: 1031.20 | E176: 1033.07 | F176: 1019.13 | G176: 1007.07 | H176: 993.13 | I176: 1045.13 | J176: 1059.07 | K176: 1071.13 | L176: 1047 | M176: 1021 | N176: 1663200 | O176: -0.40%
A177: 167 | B177: Banking | C177: SOUTHBANK | D177: 13.15 | E177: 13.25 | F177: 12.95 | G177: 12.75 | H177: 12.45 | I177: 13.45 | J177: 13.75 | K177: 13.95 | L177: 13.55 | M177: 13.05 | N177: 149929884 | O177: -0.46%
A178: 168 | B178: Others | C178: SREINFRA | D178: 28.80 | E178: 29.12 | F178: 27.88 | G178: 26.97 | H178: 25.73 | I178: 30.03 | J178: 31.27 | K178: 32.18 | L178: 30.35 | M178: 28.2 | N178: 13920000 | O178: 4.04%
A179: 169 | B179: Textile | C179: SRF | D179: 1971.25 | E179: 1984.82 | F179: 1948.63 | G179: 1926.02 | H179: 1889.83 | I179: 2007.43 | J179: 2043.62 | K179: 2066.23 | L179: 2021 | M179: 1962.2 | N179: 710500 | O179: 7.33%
A180: 170 | B180: Finance | C180: SRTRANSFIN | D180: 1050.90 | E180: 1043.88 | F180: 1024.87 | G180: 998.83 | H180: 979.82 | I180: 1069.92 | J180: 1088.93 | K180: 1114.97 | L180: 1062.9 | M180: 1017.85 | N180: 4669200 | O180: 0.56%
A181: 171 | B181: Pharma | C181: STAR | D181: 448.35 | E181: 452.33 | F181: 438.12 | G181: 427.88 | H181: 413.67 | I181: 462.57 | J181: 476.78 | K181: 487.02 | L181: 466.55 | M181: 442.1 | N181: 4406600 | O181: 8.09%
A182: 172 | B182: Pharma | C182: SUNPHARMA | D182: 425.20 | E182: 424.80 | F182: 419.10 | G182: 413.00 | H182: 407.30 | I182: 430.90 | J182: 436.60 | K182: 442.70 | L182: 430.5 | M182: 418.7 | N182: 55383900 | O182: 0.78%
A183: 173 | B183: Media | C183: SUNTV | D183: 532.85 | E183: 534.93 | F183: 522.07 | G183: 511.28 | H183: 498.42 | I183: 545.72 | J183: 558.58 | K183: 569.37 | L183: 547.8 | M183: 524.15 | N183: 6970000 | O183: -0.64%
A184: 174 | B184: Power | C184: SUZLON | D184: 5.00 | E184: 4.95 | F184: 4.85 | G184: 4.70 | H184: 4.60 | I184: 5.10 | J184: 5.20 | K184: 5.35 | L184: 5.05 | M184: 4.8 | N184: 300884000 | O184: 0.66%
A185: 175 | B185: Banking | C185: SYNDIBANK | D185: 37.60 | E185: 37.60 | F185: 36.60 | G185: 35.60 | H185: 34.60 | I185: 38.60 | J185: 39.60 | K185: 40.60 | L185: 38.6 | M185: 36.6 | N185: 25695000 | O185: 8.76%
A186: 176 | B186: Fertilisers | C186: TATACHEM | D186: 671.95 | E186: 672.72 | F186: 664.43 | G186: 656.92 | H186: 648.63 | I186: 680.23 | J186: 688.52 | K186: 696.03 | L186: 681 | M186: 665.2 | N186: 2397750 | O186: 3.06%
A187: 177 | B187: Telecom | C187: TATACOMM | D187: 502.00 | E187: 500.28 | F187: 492.37 | G187: 482.73 | H187: 474.82 | I187: 509.92 | J187: 517.83 | K187: 527.47 | L187: 508.2 | M187: 490.65 | N187: 2754000 | O187: -1.22%
A188: 178 | B188: Technology | C188: TATAELXSI | D188: 894.80 | E188: 891.20 | F188: 882.60 | G188: 870.40 | H188: 861.80 | I188: 903.40 | J188: 912.00 | K188: 924.20 | L188: 899.8 | M188: 879 | N188: 1561200 | O188: -2.96%
A189: 179 | B189: FMCG | C189: TATAGLOBAL | D189: 205.35 | E189: 205.75 | F189: 202.30 | G189: 199.25 | H189: 195.80 | I189: 208.80 | J189: 212.25 | K189: 215.30 | L189: 209.2 | M189: 202.7 | N189: 9490500 | O189: 1.44%
A190: 180 | B190: Automobile | C190: TATAMOTORS | D190: 182.75 | E190: 183.48 | F190: 179.87 | G190: 176.98 | H190: 173.37 | I190: 186.37 | J190: 189.98 | K190: 192.87 | L190: 187.1 | M190: 180.6 | N190: 58432000 | O190: 2.58%
A191: 181 | B191: Automobile | C191: TATAMTRDVR | D191: 94.60 | E191: 94.85 | F191: 93.05 | G191: 91.50 | H191: 89.70 | I191: 96.40 | J191: 98.20 | K191: 99.75 | L191: 96.65 | M191: 93.3 | N191: 31600800 | O191: 0.17%
A192: 182 | B192: Power | C192: TATAPOWER | D192: 71.70 | E192: 71.60 | F192: 70.60 | G192: 69.50 | H192: 68.50 | I192: 72.70 | J192: 73.70 | K192: 74.80 | L192: 72.6 | M192: 70.5 | N192: 43632000 | O192: 0.50%
A193: 183 | B193: Metals | C193: TATASTEEL | D193: 476.35 | E193: 477.60 | F193: 470.20 | G193: 464.05 | H193: 456.65 | I193: 483.75 | J193: 491.15 | K193: 497.30 | L193: 485 | M193: 471.45 | N193: 39565751 | O193: 0.30%
A194: 184 | B194: Technology | C194: TCS | D194: 2041.55 | E194: 2032.63 | F194: 2019.17 | G194: 1996.78 | H194: 1983.32 | I194: 2055.02 | J194: 2068.48 | K194: 2090.87 | L194: 2046.1 | M194: 2010.25 | N194: 12862750 | O194: 3.65%
A195: 185 | B195: Technology | C195: TECHM | D195: 750.65 | E195: 745.90 | F195: 736.75 | G195: 722.85 | H195: 713.70 | I195: 759.80 | J195: 768.95 | K195: 782.85 | L195: 755.05 | M195: 732 | N195: 12343200 | O195: 5.00%
A196: 186 | B196: FMCG | C196: TITAN | D196: 997.45 | E196: 998.77 | F196: 988.88 | G196: 980.32 | H196: 970.43 | I196: 1007.33 | J196: 1017.22 | K196: 1025.78 | L196: 1008.65 | M196: 990.2 | N196: 14658750 | O196: 7.33%
A197: 187 | B197: Pharma | C197: TORNTPHARM | D197: 1797.30 | E197: 1801.78 | F197: 1772.57 | G197: 1747.83 | H197: 1718.62 | I197: 1826.52 | J197: 1855.73 | K197: 1880.47 | L197: 1831 | M197: 1777.05 | N197: 424000 | O197: 13.37%
A198: 188 | B198: Power | C198: TORNTPOWER | D198: 247.85 | E198: 248.77 | F198: 244.78 | G198: 241.72 | H198: 237.73 | I198: 251.83 | J198: 255.82 | K198: 258.88 | L198: 252.75 | M198: 245.7 | N198: 2010000 | O198: 0.30%
A199: 189 | B199: Media | C199: TV18BRDCST | D199: 32.95 | E199: 32.88 | F199: 32.32 | G199: 31.68 | H199: 31.12 | I199: 33.52 | J199: 34.08 | K199: 34.72 | L199: 33.45 | M199: 32.25 | N199: 57954000 | O199: -1.02%
A200: 190 | B200: Automobile | C200: TVSMOTOR | D200: 515.80 | E200: 515.52 | F200: 501.23 | G200: 486.67 | H200: 472.38 | I200: 530.08 | J200: 544.37 | K200: 558.93 | L200: 529.8 | M200: 500.95 | N200: 4801000 | O200: -1.25%
A201: 191 | B201: FMCG | C201: UBL | D201: 1453.40 | E201: 1452.50 | F201: 1427.00 | G201: 1400.60 | H201: 1375.10 | I201: 1478.90 | J201: 1504.40 | K201: 1530.80 | L201: 1478 | M201: 1426.1 | N201: 1796200 | O201: 2.19%
A202: 192 | B202: Finance | C202: UJJIVAN | D202: 285.55 | E202: 284.98 | F202: 278.42 | G202: 271.28 | H202: 264.72 | I202: 292.12 | J202: 298.68 | K202: 305.82 | L202: 291.55 | M202: 277.85 | N202: 3252800 | O202: -3.69%
A203: 193 | B203: Cement | C203: ULTRACEMCO | D203: 3497.15 | E203: 3503.62 | F203: 3454.53 | G203: 3411.92 | H203: 3362.83 | I203: 3546.23 | J203: 3595.32 | K203: 3637.93 | L203: 3552.7 | M203: 3461 | N203: 2100400 | O203: 3.81%
A204: 194 | B204: Banking | C204: UNIONBANK | D204: 81.40 | E204: 81.98 | F204: 79.57 | G204: 77.73 | H204: 75.32 | I204: 83.82 | J204: 86.23 | K204: 88.07 | L204: 84.4 | M204: 80.15 | N204: 30646000 | O204: -2.10%
A205: 195 | B205: Fertilisers | C205: UPL | D205: 781.90 | E205: 784.62 | F205: 767.48 | G205: 753.07 | H205: 735.93 | I205: 799.03 | J205: 816.17 | K205: 830.58 | L205: 801.75 | M205: 770.2 | N205: 16682400 | O205: 1.36%
A206: 196 | B206: Metals | C206: VEDL | D206: 162.95 | E206: 168.25 | F206: 153.50 | G206: 144.05 | H206: 129.30 | I206: 177.70 | J206: 192.45 | K206: 201.90 | L206: 183 | M206: 158.8 | N206: 46814200 | O206: 37.58%
... 21 more rows

Sheet Cash Intra
M5: Back to Main Page
A6: FOR INTRA DAY TRADING | K6: =Main!B10 -> 2019-02-04
A8: Sr.no | B8: Scrip | C8: CLOSE RATE | D8: Pivot Point | E8: Supports | H8: Resistances
C9: Point | E9: S1 | F9: S2 | G9: S3 | H9: R1 | I9: R2 | J9: R3 | K9: HIGH | L9: LOW | M9: Total Trade Quanity in Lakhs
A10: 1 | B10: Nifty 50 | C10: 10893.65 | D10: 10896.85 | E10: 10810.25 | F10: 10726.85 | G10: 10640.25 | H10: 10980.25 | I10: 11066.85 | J10: 11150.25 | K10: 10983.45 | L10: 10813.45
A11: 2 | B11: Nifty Bank | C11: 27085.95 | D11: 27183.15 | E11: 26833.25 | F11: 26580.55 | G11: 26230.65 | H11: 27435.85 | I11: 27785.75 | J11: 28038.45 | K11: 27533.05 | L11: 26930.45
A12: 3 | B12: Nifty CPSE | C12: 1981.8 | D12: 1980.92 | E12: 1969.48 | F12: 1957.17 | G12: 1945.73 | H12: 1993.23 | I12: 2004.67 | J12: 2016.98 | K12: 1992.35 | L12: 1968.6
A13: 4 | B13: Nifty Infra | C13: 2997.95 | D13: 2997.00 | E13: 2980.70 | F13: 2963.45 | G13: 2947.15 | H13: 3014.25 | I13: 3030.55 | J13: 3047.80 | K13: 3013.3 | L13: 2979.75
A14: 5 | B14: Nifty IT | C14: 15724.3 | D14: 15653.92 | E14: 15556.08 | F14: 15387.87 | G14: 15290.03 | H14: 15822.13 | I14: 15919.97 | J14: 16088.18 | K14: 15751.75 | L14: 15485.7
A15: 6 | B15: Nifty PSE | C15: 3213.5 | D15: 3209.85 | E15: 3194.85 | F15: 3176.20 | G15: 3161.20 | H15: 3228.50 | I15: 3243.50 | J15: 3262.15 | K15: 3224.85 | L15: 3191.2
A16: 7 | B16: Nifty Midcap 50 | C16: 4719.85 | D16: 4716.47 | E16: 4668.83 | F16: 4617.82 | G16: 4570.18 | H16: 4767.48 | I16: 4815.12 | J16: 4866.13 | K16: 4764.1 | L16: 4665.45
A17: 8 | B17: ABB | C17: 1272.2 | D17: 1276.07 | E17: 1257.13 | F17: 1242.07 | G17: 1223.13 | H17: 1291.13 | I17: 1310.07 | J17: 1325.13 | K17: 1295 | L17: 1261 | M17: 0.97864
A18: 9 | B18: ACC | C18: 1415.55 | D18: 1421.60 | E18: 1395.20 | F18: 1374.85 | G18: 1348.45 | H18: 1441.95 | I18: 1468.35 | J18: 1488.70 | K18: 1448 | L18: 1401.25 | M18: 5.68663
A19: 10 | B19: AIAENG | C19: 1599.85 | D19: 1611.18 | E19: 1579.37 | F19: 1558.88 | G19: 1527.07 | H19: 1631.67 | I19: 1663.48 | J19: 1683.97 | K19: 1643 | L19: 1590.7 | M19: 0.11876
A20: 11 | B20: AUBANK | C20: 579.55 | D20: 583.12 | E20: 572.43 | F20: 565.32 | G20: 554.63 | H20: 590.23 | I20: 600.92 | J20: 608.03 | K20: 593.8 | L20: 576 | M20: 2.63192
A21: 12 | B21: ADANIENT | C21: 143 | D21: 140.78 | E21: 136.77 | F21: 130.53 | G21: 126.52 | H21: 147.02 | I21: 151.03 | J21: 157.27 | K21: 144.8 | L21: 134.55 | M21: 70.91209
A22: 13 | B22: ADANIPORTS | C22: 338.45 | D22: 339.53 | E22: 332.27 | F22: 326.08 | G22: 318.82 | H22: 345.72 | I22: 352.98 | J22: 359.17 | K22: 346.8 | L22: 333.35 | M22: 31.19675
A23: 14 | B23: ADANIPOWER | C23: 44.2 | D23: 44.30 | E23: 41.75 | F23: 39.30 | G23: 36.75 | H23: 46.75 | I23: 49.30 | J23: 51.75 | K23: 46.85 | L23: 41.85 | M23: 110.3352
A24: 15 | B24: ABFRL | C24: 208.95 | D24: 210.33 | E24: 206.17 | F24: 203.38 | G24: 199.22 | H24: 213.12 | I24: 217.28 | J24: 220.07 | K24: 214.5 | L24: 207.55 | M24: 6.59499
A25: 16 | B25: AJANTPHARM | C25: 982.8 | D25: 996.77 | E25: 962.63 | F25: 942.47 | G25: 908.33 | H25: 1016.93 | I25: 1051.07 | J25: 1071.23 | K25: 1030.9 | L25: 976.6 | M25: 8.0147
A26: 17 | B26: ALKEM | C26: 1888.45 | D26: 1889.58 | E26: 1871.17 | F26: 1853.88 | G26: 1835.47 | H26: 1906.87 | I26: 1925.28 | J26: 1942.57 | K26: 1908 | L26: 1872.3 | M26: 0.083
A27: 18 | B27: AMARAJABAT | C27: 769.6 | D27: 764.20 | E27: 753.40 | F27: 737.20 | G27: 726.40 | H27: 780.40 | I27: 791.20 | J27: 807.40 | K27: 775 | L27: 748 | M27: 4.73123
A28: 19 | B28: AMBUJACEM | C28: 212.5 | D28: 212.48 | E28: 209.62 | F28: 206.73 | G28: 203.87 | H28: 215.37 | I28: 218.23 | J28: 221.12 | K28: 215.35 | L28: 209.6 | M28: 33.50137
A29: 20 | B29: APOLLOHOSP | C29: 1341.25 | D29: 1339.72 | E29: 1321.53 | F29: 1301.82 | G29: 1283.63 | H29: 1359.43 | I29: 1377.62 | J29: 1397.33 | K29: 1357.9 | L29: 1320 | M29: 5.30789
A30: 21 | B30: APOLLOTYRE | C30: 207.85 | D30: 207.40 | E30: 204.05 | F30: 200.25 | G30: 196.90 | H30: 211.20 | I30: 214.55 | J30: 218.35 | K30: 210.75 | L30: 203.6 | M30: 16.70882
A31: 22 | B31: ARVIND | C31: 88.45 | D31: 88.30 | E31: 87.20 | F31: 85.95 | G31: 84.85 | H31: 89.55 | I31: 90.65 | J31: 91.90 | K31: 89.4 | L31: 87.05 | M31: 14.93066
A32: 23 | B32: ASHOKLEY | C32: 83.55 | D32: 83.87 | E32: 80.53 | F32: 77.52 | G32: 74.18 | H32: 86.88 | I32: 90.22 | J32: 93.23 | K32: 87.2 | L32: 80.85 | M32: 650.21097
A33: 24 | B33: ASIANPAINT | C33: 1457.2 | D33: 1445.02 | E33: 1420.38 | F33: 1383.57 | G33: 1358.93 | H33: 1481.83 | I33: 1506.47 | J33: 1543.28 | K33: 1469.65 | L33: 1408.2 | M33: 20.77539
A34: 25 | B34: AUROPHARMA | C34: 797.8 | D34: 793.27 | E34: 784.53 | F34: 771.27 | G34: 762.53 | H34: 806.53 | I34: 815.27 | J34: 828.53 | K34: 802 | L34: 780 | M34: 12.1213
A35: 26 | B35: DMART | C35: 1442.95 | D35: 1426.47 | E35: 1392.93 | F35: 1342.92 | G35: 1309.38 | H35: 1476.48 | I35: 1510.02 | J35: 1560.03 | K35: 1460 | L35: 1376.45 | M35: 11.37654
A36: 27 | B36: AXISBANK | C36: 717.25 | D36: 716.35 | E36: 706.30 | F36: 695.35 | G36: 685.30 | H36: 727.30 | I36: 737.35 | J36: 748.30 | K36: 726.4 | L36: 705.4 | M36: 137.92059
A37: 28 | B37: BAJAJ-AUTO | C37: 2602.75 | D37: 2605.25 | E37: 2540.50 | F37: 2478.25 | G37: 2413.50 | H37: 2667.50 | I37: 2732.25 | J37: 2794.50 | K37: 2670 | L37: 2543 | M37: 10.28186
A38: 29 | B38: BAJFINANCE | C38: 2628.4 | D38: 2630.43 | E38: 2572.97 | F38: 2517.53 | G38: 2460.07 | H38: 2685.87 | I38: 2743.33 | J38: 2798.77 | K38: 2687.9 | L38: 2575 | M38: 21.17768
A39: 30 | B39: BAJAJFINSV | C39: 6096.95 | D39: 6133.98 | E39: 6017.97 | F39: 5938.98 | G39: 5822.97 | H39: 6212.97 | I39: 6328.98 | J39: 6407.97 | K39: 6250 | L39: 6055 | M39: 3.11984
A40: 31 | B40: BALKRISIND | C40: 820.9 | D40: 822.45 | E40: 808.45 | F40: 796.00 | G40: 782.00 | H40: 834.90 | I40: 848.90 | J40: 861.35 | K40: 836.45 | L40: 810 | M40: 5.33172
A41: 32 | B41: BANKBARODA | C41: 111.1 | D41: 111.43 | E41: 108.87 | F41: 106.63 | G41: 104.07 | H41: 113.67 | I41: 116.23 | J41: 118.47 | K41: 114 | L41: 109.2 | M41: 164.94373
A42: 33 | B42: BANKINDIA | C42: 94.85 | D42: 96.78 | E42: 86.92 | F42: 78.98 | G42: 69.12 | H42: 104.72 | I42: 114.58 | J42: 122.52 | K42: 106.65 | L42: 88.85 | M42: 251.80357
A43: 34 | B43: BATAINDIA | C43: 1143.95 | D43: 1137.85 | E43: 1121.75 | F43: 1099.55 | G43: 1083.45 | H43: 1160.05 | I43: 1176.15 | J43: 1198.35 | K43: 1153.95 | L43: 1115.65 | M43: 4.47755
A44: 35 | B44: BERGEPAINT | C44: 325.4 | D44: 324.35 | E44: 319.15 | F44: 312.90 | G44: 307.70 | H44: 330.60 | I44: 335.80 | J44: 342.05 | K44: 329.55 | L44: 318.1 | M44: 9.73395
A45: 36 | B45: BEL | C45: 84.6 | D45: 84.68 | E45: 83.17 | F45: 81.73 | G45: 80.22 | H45: 86.12 | I45: 87.63 | J45: 89.07 | K45: 86.2 | L45: 83.25 | M45: 97.37752
A46: 37 | B46: BHARATFIN | C46: 947.8 | D46: 949.52 | E46: 936.03 | F46: 924.27 | G46: 910.78 | H46: 961.28 | I46: 974.77 | J46: 986.53 | K46: 963 | L46: 937.75 | M46: 4.48069
A47: 38 | B47: BHARATFORG | C47: 495.45 | D47: 496.50 | E47: 487.15 | F47: 478.85 | G47: 469.50 | H47: 504.80 | I47: 514.15 | J47: 522.45 | K47: 505.85 | L47: 488.2 | M47: 17.23141
A48: 39 | B48: BHEL | C48: 64.35 | D48: 64.57 | E48: 63.43 | F48: 62.52 | G48: 61.38 | H48: 65.48 | I48: 66.62 | J48: 67.53 | K48: 65.7 | L48: 63.65 | M48: 60.3162
A49: 40 | B49: BPCL | C49: 341 | D49: 342.70 | E49: 336.70 | F49: 332.40 | G49: 326.40 | H49: 347.00 | I49: 353.00 | J49: 357.30 | K49: 348.7 | L49: 338.4 | M49: 27.2237
A50: 41 | B50: BHARTIARTL | C50: 311.85 | D50: 312.58 | E50: 304.27 | F50: 296.68 | G50: 288.37 | H50: 320.17 | I50: 328.48 | J50: 336.07 | K50: 320.9 | L50: 305 | M50: 83.31159
A51: 42 | B51: INFRATEL | C51: 296.2 | D51: 295.02 | E51: 292.03 | F51: 287.87 | G51: 284.88 | H51: 299.18 | I51: 302.17 | J51: 306.33 | K51: 298 | L51: 290.85 | M51: 22.58242
A52: 43 | B52: BIOCON | C52: 666.25 | D52: 658.92 | E52: 648.33 | F52: 630.42 | G52: 619.83 | H52: 676.83 | I52: 687.42 | J52: 705.33 | K52: 669.5 | L52: 641 | M52: 15.20377
A53: 44 | B53: BOSCHLTD | C53: 19316.15 | D53: 19149.02 | E53: 18902.03 | F53: 18487.92 | G53: 18240.93 | H53: 19563.13 | I53: 19810.12 | J53: 20224.23 | K53: 19396 | L53: 18734.9 | M53: 0.14994
A54: 45 | B54: BRITANNIA | C54: 3251 | D54: 3246.00 | E54: 3206.00 | F54: 3161.00 | G54: 3121.00 | H54: 3291.00 | I54: 3331.00 | J54: 3376.00 | K54: 3286 | L54: 3201 | M54: 3.87188
A55: 46 | B55: CRISIL | C55: 1659.85 | D55: 1661.28 | E55: 1647.57 | F55: 1635.28 | G55: 1621.57 | H55: 1673.57 | I55: 1687.28 | J55: 1699.57 | K55: 1675 | L55: 1649 | M55: 0.09488
A56: 47 | B56: CADILAHC | C56: 323.6 | D56: 321.70 | E56: 318.40 | F56: 313.20 | G56: 309.90 | H56: 326.90 | I56: 330.20 | J56: 335.40 | K56: 325 | L56: 316.5 | M56: 6.57757
A57: 48 | B57: CANBK | C57: 238.05 | D57: 241.85 | E57: 231.30 | F57: 224.55 | G57: 214.00 | H57: 248.60 | I57: 259.15 | J57: 265.90 | K57: 252.4 | L57: 235.1 | M57: 58.84645
A58: 49 | B58: CASTROLIND | C58: 160.8 | D58: 160.47 | E58: 158.83 | F58: 156.87 | G58: 155.23 | H58: 162.43 | I58: 164.07 | J58: 166.03 | K58: 162.1 | L58: 158.5 | M58: 11.36674
A59: 50 | B59: CENTRALBK | C59: 30.9 | D59: 31.02 | E59: 30.08 | F59: 29.27 | G59: 28.33 | H59: 31.83 | I59: 32.77 | J59: 33.58 | K59: 31.95 | L59: 30.2 | M59: 2.55198
A60: 51 | B60: CENTURYTEX | C60: 791.65 | D60: 794.65 | E60: 779.55 | F60: 767.45 | G60: 752.35 | H60: 806.75 | I60: 821.85 | J60: 833.95 | K60: 809.75 | L60: 782.55 | M60: 4.13461
A61: 52 | B61: CHOLAFIN | C61: 1216.35 | D61: 1213.12 | E61: 1178.23 | F61: 1140.12 | G61: 1105.23 | H61: 1251.23 | I61: 1286.12 | J61: 1324.23 | K61: 1248 | L61: 1175 | M61: 6.6342
A62: 53 | B62: CIPLA | C62: 521.35 | D62: 518.80 | E62: 515.05 | F62: 508.75 | G62: 505.00 | H62: 525.10 | I62: 528.85 | J62: 535.15 | K62: 522.55 | L62: 512.5 | M62: 13.80838
A63: 54 | B63: COALINDIA | C63: 223.2 | D63: 224.22 | E63: 221.73 | F63: 220.27 | G63: 217.78 | H63: 225.68 | I63: 228.17 | J63: 229.63 | K63: 226.7 | L63: 222.75 | M63: 28.20146
A64: 55 | B64: COLPAL | C64: 1293.45 | D64: 1295.67 | E64: 1280.48 | F64: 1267.52 | G64: 1252.33 | H64: 1308.63 | I64: 1323.82 | J64: 1336.78 | K64: 1310.85 | L64: 1282.7 | M64: 4.81876
A65: 56 | B65: CONCOR | C65: 658.7 | D65: 661.73 | E65: 644.67 | F65: 630.63 | G65: 613.57 | H65: 675.77 | I65: 692.83 | J65: 706.87 | K65: 678.8 | L65: 647.7 | M65: 7.80833
A66: 57 | B66: COROMANDEL | C66: 456.75 | D66: 457.02 | E66: 449.03 | F66: 441.32 | G66: 433.33 | H66: 464.73 | I66: 472.72 | J66: 480.43 | K66: 465 | L66: 449.3 | M66: 2.15902
A67: 58 | B67: CROMPTON | C67: 213.9 | D67: 214.17 | E67: 210.53 | F67: 207.17 | G67: 203.53 | H67: 217.53 | I67: 221.17 | J67: 224.53 | K67: 217.8 | L67: 210.8 | M67: 20.63385
A68: 59 | B68: CUMMINSIND | C68: 795.9 | D68: 796.73 | E68: 789.17 | F68: 782.43 | G68: 774.87 | H68: 803.47 | I68: 811.03 | J68: 817.77 | K68: 804.3 | L68: 790 | M68: 4.78554
A69: 60 | B69: DLF | C69: 165.7 | D69: 169.80 | E69: 158.55 | F69: 151.40 | G69: 140.15 | H69: 176.95 | I69: 188.20 | J69: 195.35 | K69: 181.05 | L69: 162.65 | M69: 130.45972
A70: 61 | B70: DABUR | C70: 451.85 | D70: 449.73 | E70: 443.47 | F70: 435.08 | G70: 428.82 | H70: 458.12 | I70: 464.38 | J70: 472.77 | K70: 456 | L70: 441.35 | M70: 60.34606
A71: 62 | B71: DHFL | C71: 111.2 | D71: 115.93 | E71: 97.37 | F71: 83.53 | G71: 64.97 | H71: 129.77 | I71: 148.33 | J71: 162.17 | K71: 134.5 | L71: 102.1 | M71: 949.89171
A72: 63 | B72: DISHTV | C72: 24.4 | D72: 24.45 | E72: 23.25 | F72: 22.10 | G72: 20.90 | H72: 25.60 | I72: 26.80 | J72: 27.95 | K72: 25.65 | L72: 23.3 | M72: 301.05361
A73: 64 | B73: DIVISLAB | C73: 1532.35 | D73: 1523.02 | E73: 1497.98 | F73: 1463.62 | G73: 1438.58 | H73: 1557.38 | I73: 1582.42 | J73: 1616.78 | K73: 1548.05 | L73: 1488.65 | M73: 6.09053
A74: 65 | B74: LALPATHLAB | C74: 1040.7 | D74: 1052.87 | E74: 1015.73 | F74: 990.77 | G74: 953.63 | H74: 1077.83 | I74: 1114.97 | J74: 1139.93 | K74: 1090 | L74: 1027.9 | M74: 0.61937
A75: 66 | B75: DRREDDY | C75: 2791.25 | D75: 2775.13 | E75: 2731.27 | F75: 2671.28 | G75: 2627.42 | H75: 2835.12 | I75: 2878.98 | J75: 2938.97 | K75: 2819 | L75: 2715.15 | M75: 14.50995
A76: 67 | B76: EDELWEISS | C76: 146.9 | D76: 147.18 | E76: 138.37 | F76: 129.83 | G76: 121.02 | H76: 155.72 | I76: 164.53 | J76: 173.07 | K76: 156 | L76: 138.65 | M76: 30.03971
A77: 68 | B77: EICHERMOT | C77: 19663.4 | D77: 19628.05 | E77: 19111.40 | F77: 18559.40 | G77: 18042.75 | H77: 20180.05 | I77: 20696.70 | J77: 21248.70 | K77: 20144.7 | L77: 19076.05 | M77: 1.85717
A78: 69 | B78: EMAMILTD | C78: 414.5 | D78: 413.97 | E78: 408.63 | F78: 402.77 | G78: 397.43 | H78: 419.83 | I78: 425.17 | J78: 431.03 | K78: 419.3 | L78: 408.1 | M78: 1.11967
A79: 70 | B79: ENDURANCE | C79: 1130.25 | D79: 1139.47 | E79: 1115.98 | F79: 1101.72 | G79: 1078.23 | H79: 1153.73 | I79: 1177.22 | J79: 1191.48 | K79: 1162.95 | L79: 1125.2 | M79: 0.10868
A80: 71 | B80: ENGINERSIN | C80: 115.45 | D80: 115.18 | E80: 113.57 | F80: 111.68 | G80: 110.07 | H80: 117.07 | I80: 118.68 | J80: 120.57 | K80: 116.8 | L80: 113.3 | M80: 9.4146
A81: 72 | B81: EXIDEIND | C81: 227.05 | D81: 227.38 | E81: 224.22 | F81: 221.38 | G81: 218.22 | H81: 230.22 | I81: 233.38 | J81: 236.22 | K81: 230.55 | L81: 224.55 | M81: 32.05387
A82: 73 | B82: FEDERALBNK | C82: 86.25 | D82: 86.57 | E82: 84.93 | F82: 83.62 | G82: 81.98 | H82: 87.88 | I82: 89.52 | J82: 90.83 | K82: 88.2 | L82: 85.25 | M82: 99.68361
A83: 74 | B83: GAIL | C83: 333.5 | D83: 331.65 | E83: 327.95 | F83: 322.40 | G83: 318.70 | H83: 337.20 | I83: 340.90 | J83: 346.45 | K83: 335.35 | L83: 326.1 | M83: 33.67974
A84: 75 | B84: GMRINFRA | C84: 15.05 | D84: 15.22 | E84: 14.83 | F84: 14.62 | G84: 14.23 | H84: 15.43 | I84: 15.82 | J84: 16.03 | K84: 15.6 | L84: 15 | M84: 207.12433
A85: 76 | B85: GSKCONS | C85: 7491.25 | D85: 7475.57 | E85: 7325.13 | F85: 7159.02 | G85: 7008.58 | H85: 7641.68 | I85: 7792.12 | J85: 7958.23 | K85: 7626 | L85: 7309.45 | M85: 0.19022
A86: 77 | B86: GLAXO | C86: 1407.55 | D86: 1406.28 | E86: 1397.57 | F86: 1387.58 | G86: 1378.87 | H86: 1416.27 | I86: 1424.98 | J86: 1434.97 | K86: 1415 | L86: 1396.3 | M86: 0.10985
A87: 78 | B87: GLENMARK | C87: 661.85 | D87: 657.78 | E87: 650.57 | F87: 639.28 | G87: 632.07 | H87: 669.07 | I87: 676.28 | J87: 687.57 | K87: 665 | L87: 646.5 | M87: 3.98672
A88: 79 | B88: GODREJCP | C88: 710.65 | D88: 708.40 | E88: 697.55 | F88: 684.45 | G88: 673.60 | H88: 721.50 | I88: 732.35 | J88: 745.45 | K88: 719.25 | L88: 695.3 | M88: 30.93553
A89: 80 | B89: GODREJIND | C89: 505.6 | D89: 504.75 | E89: 496.70 | F89: 487.80 | G89: 479.75 | H89: 513.65 | I89: 521.70 | J89: 530.60 | K89: 512.8 | L89: 495.85 | M89: 2.62427
A90: 81 | B90: GRUH | C90: 211.6 | D90: 210.12 | E90: 206.28 | F90: 200.97 | G90: 197.13 | H90: 215.43 | I90: 219.27 | J90: 224.58 | K90: 213.95 | L90: 204.8 | M90: 100.11134
A91: 82 | B91: GPPL | C91: 85 | D91: 85.33 | E91: 83.67 | F91: 82.33 | G91: 80.67 | H91: 86.67 | I91: 88.33 | J91: 89.67 | K91: 87 | L91: 84 | M91: 1.15364
A92: 83 | B92: GSPL | C92: 177.45 | D92: 176.92 | E92: 173.78 | F92: 170.12 | G92: 166.98 | H92: 180.58 | I92: 183.72 | J92: 187.38 | K92: 180.05 | L92: 173.25 | M92: 1.79429
A93: 84 | B93: HCLTECH | C93: 1043.85 | D93: 1034.78 | E93: 1019.57 | F93: 995.28 | G93: 980.07 | H93: 1059.07 | I93: 1074.28 | J93: 1098.57 | K93: 1050 | L93: 1010.5 | M93: 32.30111
A94: 85 | B94: HDFCBANK | C94: 2090.45 | D94: 2094.68 | E94: 2072.37 | F94: 2054.28 | G94: 2031.97 | H94: 2112.77 | I94: 2135.08 | J94: 2153.17 | K94: 2117 | L94: 2076.6 | M94: 39.13547
A95: 86 | B95: HAVELLS | C95: 737.15 | D95: 729.35 | E95: 718.80 | F95: 700.45 | G95: 689.90 | H95: 747.70 | I95: 758.25 | J95: 776.60 | K95: 739.9 | L95: 711 | M95: 19.38051
A96: 87 | B96: HEROMOTOCO | C96: 2807.25 | D96: 2757.20 | E96: 2675.05 | F96: 2542.85 | G96: 2460.70 | H96: 2889.40 | I96: 2971.55 | J96: 3103.75 | K96: 2839.35 | L96: 2625 | M96: 32.96513
A97: 88 | B97: HEXAWARE | C97: 349.6 | D97: 348.33 | E97: 340.47 | F97: 331.33 | G97: 323.47 | H97: 357.47 | I97: 365.33 | J97: 374.47 | K97: 356.2 | L97: 339.2 | M97: 29.30714
A98: 89 | B98: HINDALCO | C98: 211.4 | D98: 209.08 | E98: 205.82 | F98: 200.23 | G98: 196.97 | H98: 214.67 | I98: 217.93 | J98: 223.52 | K98: 212.35 | L98: 203.5 | M98: 104.75839
A99: 90 | B99: HINDPETRO | C99: 234 | D99: 233.38 | E99: 230.22 | F99: 226.43 | G99: 223.27 | H99: 237.17 | I99: 240.33 | J99: 244.12 | K99: 236.55 | L99: 229.6 | M99: 27.5944
A100: 91 | B100: HINDUNILVR | C100: 1799.3 | D100: 1797.75 | E100: 1763.00 | F100: 1726.70 | G100: 1691.95 | H100: 1834.05 | I100: 1868.80 | J100: 1905.10 | K100: 1832.5 | L100: 1761.45 | M100: 23.42251
A101: 92 | B101: HINDZINC | C101: 254.7 | D101: 252.58 | E101: 244.97 | F101: 235.23 | G101: 227.62 | H101: 262.32 | I101: 269.93 | J101: 279.67 | K101: 260.2 | L101: 242.85 | M101: 50.94566
A102: 93 | B102: HUDCO | C102: 41.75 | D102: 42.12 | E102: 41.18 | F102: 40.62 | G102: 39.68 | H102: 42.68 | I102: 43.62 | J102: 44.18 | K102: 43.05 | L102: 41.55 | M102: 11.17435
A103: 94 | B103: HDFC | C103: 1961.25 | D103: 1953.60 | E103: 1932.75 | F103: 1904.25 | G103: 1883.40 | H103: 1982.10 | I103: 2002.95 | J103: 2031.45 | K103: 1974.45 | L103: 1925.1 | M103: 48.67443
A104: 95 | B104: ITC | C104: 280.85 | D104: 281.72 | E104: 278.23 | F104: 275.62 | G104: 272.13 | H104: 284.33 | I104: 287.82 | J104: 290.43 | K104: 285.2 | L104: 279.1 | M104: 183.53829
A105: 96 | B105: ICICIBANK | C105: 354.65 | D105: 356.10 | E105: 347.30 | F105: 339.95 | G105: 331.15 | H105: 363.45 | I105: 372.25 | J105: 379.60 | K105: 364.9 | L105: 348.75 | M105: 256.05469
A106: 97 | B106: ICICIPRULI | C106: 285.8 | D106: 286.58 | E106: 281.62 | F106: 277.43 | G106: 272.47 | H106: 290.77 | I106: 295.73 | J106: 299.92 | K106: 291.55 | L106: 282.4 | M106: 14.44692
A107: 98 | B107: IDBI | C107: 52.75 | D107: 53.63 | E107: 51.32 | F107: 49.88 | G107: 47.57 | H107: 55.07 | I107: 57.38 | J107: 58.82 | K107: 55.95 | L107: 52.2 | M107: 46.44706
A108: 99 | B108: IDFCFIRSTB | C108: 44.8 | D108: 44.87 | E108: 44.18 | F108: 43.57 | G108: 42.88 | H108: 45.48 | I108: 46.17 | J108: 46.78 | K108: 45.55 | L108: 44.25 | M108: 121.12149
A109: 100 | B109: IDFC | C109: 38.6 | D109: 38.93 | E109: 38.02 | F109: 37.43 | G109: 36.52 | H109: 39.52 | I109: 40.43 | J109: 41.02 | K109: 39.85 | L109: 38.35 | M109: 32.61181
A110: 101 | B110: IRB | C110: 145 | D110: 146.15 | E110: 141.95 | F110: 138.90 | G110: 134.70 | H110: 149.20 | I110: 153.40 | J110: 156.45 | K110: 150.35 | L110: 143.1 | M110: 14.50004
A111: 102 | B111: IDEA | C111: 30.9 | D111: 30.82 | E111: 30.23 | F111: 29.57 | G111: 28.98 | H111: 31.48 | I111: 32.07 | J111: 32.73 | K111: 31.4 | L111: 30.15 | M111: 169.52172
A112: 103 | B112: IBULHSGFIN | C112: 678.65 | D112: 681.12 | E112: 662.23 | F112: 645.82 | G112: 626.93 | H112: 697.53 | I112: 716.42 | J112: 732.83 | K112: 700 | L112: 664.7 | M112: 113.16643
A113: 104 | B113: INDIANB | C113: 224 | D113: 224.67 | E113: 219.33 | F113: 214.67 | G113: 209.33 | H113: 229.33 | I113: 234.67 | J113: 239.33 | K113: 230 | L113: 220 | M113: 11.80493
A114: 105 | B114: INDHOTEL | C114: 143.75 | D114: 143.88 | E114: 142.12 | F114: 140.48 | G114: 138.72 | H114: 145.52 | I114: 147.28 | J114: 148.92 | K114: 145.65 | L114: 142.25 | M114: 12.55454
A115: 106 | B115: IOC | C115: 137.2 | D115: 137.28 | E115: 136.07 | F115: 134.93 | G115: 133.72 | H115: 138.42 | I115: 139.63 | J115: 140.77 | K115: 138.5 | L115: 136.15 | M115: 50.92724
A116: 107 | B116: IGL | C116: 286.9 | D116: 286.77 | E116: 283.68 | F116: 280.47 | G116: 277.38 | H116: 289.98 | I116: 293.07 | J116: 296.28 | K116: 289.85 | L116: 283.55 | M116: 39.07907
A117: 108 | B117: INDUSINDBK | C117: 1515.15 | D117: 1515.82 | E117: 1496.23 | F117: 1477.32 | G117: 1457.73 | H117: 1534.73 | I117: 1554.32 | J117: 1573.23 | K117: 1535.4 | L117: 1496.9 | M117: 15.47424
A118: 109 | B118: NAUKRI | C118: 1730.35 | D118: 1741.45 | E118: 1698.95 | F118: 1667.55 | G118: 1625.05 | H118: 1772.85 | I118: 1815.35 | J118: 1846.75 | K118: 1783.95 | L118: 1710.05 | M118: 1.59969
A119: 110 | B119: INFY | C119: 757.05 | D119: 754.68 | E119: 746.87 | F119: 736.68 | G119: 728.87 | H119: 764.87 | I119: 772.68 | J119: 782.87 | K119: 762.5 | L119: 744.5 | M119: 62.76585
A120: 111 | B120: INDIGO | C120: 1174.1 | D120: 1179.88 | E120: 1158.12 | F120: 1142.13 | G120: 1120.37 | H120: 1195.87 | I120: 1217.63 | J120: 1233.62 | K120: 1201.65 | L120: 1163.9 | M120: 7.66653
A121: 112 | B121: IPCALAB | C121: 760.6 | D121: 763.78 | E121: 748.37 | F121: 736.13 | G121: 720.72 | H121: 776.02 | I121: 791.43 | J121: 803.67 | K121: 779.2 | L121: 751.55 | M121: 0.55003
A122: 113 | B122: JSWENERGY | C122: 67.95 | D122: 67.93 | E122: 66.92 | F122: 65.88 | G122: 64.87 | H122: 68.97 | I122: 69.98 | J122: 71.02 | K122: 68.95 | L122: 66.9 | M122: 7.56513
A123: 114 | B123: JSWSTEEL | C123: 274.95 | D123: 273.87 | E123: 267.73 | F123: 260.52 | G123: 254.38 | H123: 281.08 | I123: 287.22 | J123: 294.43 | K123: 280 | L123: 266.65 | M123: 64.96209
A124: 115 | B124: JINDALSTEL | C124: 129.7 | D124: 131.88 | E124: 126.17 | F124: 122.63 | G124: 116.92 | H124: 135.42 | I124: 141.13 | J124: 144.67 | K124: 137.6 | L124: 128.35 | M124: 125.65471
A125: 116 | B125: JUBLFOOD | C125: 1357.95 | D125: 1326.43 | E125: 1281.52 | F125: 1205.08 | G125: 1160.17 | H125: 1402.87 | I125: 1447.78 | J125: 1524.22 | K125: 1371.35 | L125: 1250 | M125: 60.91028
A126: 117 | B126: JUBILANT | C126: 714.4 | D126: 717.13 | E126: 702.27 | F126: 690.13 | G126: 675.27 | H126: 729.27 | I126: 744.13 | J126: 756.27 | K126: 732 | L126: 705 | M126: 3.98633
A127: 118 | B127: KARURVYSYA | C127: 89 | D127: 88.57 | E127: 87.48 | F127: 85.97 | G127: 84.88 | H127: 90.08 | I127: 91.17 | J127: 92.68 | K127: 89.65 | L127: 87.05 | M127: 4.26484
A128: 119 | B128: KOTAKBANK | C128: 1255.7 | D128: 1255.57 | E128: 1240.33 | F128: 1224.97 | G128: 1209.73 | H128: 1270.93 | I128: 1286.17 | J128: 1301.53 | K128: 1270.8 | L128: 1240.2 | M128: 21.89154
A129: 120 | B129: L&TFH | C129: 130.3 | D129: 130.93 | E129: 127.42 | F129: 124.53 | G129: 121.02 | H129: 133.82 | I129: 137.33 | J129: 140.22 | K129: 134.45 | L129: 128.05 | M129: 47.09841
A130: 121 | B130: LICHSGFIN | C130: 460.15 | D130: 460.12 | E130: 447.83 | F130: 435.52 | G130: 423.23 | H130: 472.43 | I130: 484.72 | J130: 497.03 | K130: 472.4 | L130: 447.8 | M130: 43.76608
A131: 122 | B131: LT | C131: 1324.6 | D131: 1324.05 | E131: 1313.55 | F131: 1302.50 | G131: 1292.00 | H131: 1335.10 | I131: 1345.60 | J131: 1356.65 | K131: 1334.55 | L131: 1313 | M131: 25.15736
A132: 123 | B132: LUPIN | C132: 883.1 | D132: 880.47 | E132: 872.93 | F132: 862.77 | G132: 855.23 | H132: 890.63 | I132: 898.17 | J132: 908.33 | K132: 888 | L132: 870.3 | M132: 10.3245
A133: 124 | B133: MRF | C133: 61275.7 | D133: 61662.57 | E133: 60625.23 | F133: 59974.77 | G133: 58937.43 | H133: 62313.03 | I133: 63350.37 | J133: 64000.83 | K133: 62699.9 | L133: 61012.1 | M133: 0.07551
A134: 125 | B134: MGL | C134: 927.45 | D134: 924.23 | E134: 916.07 | F134: 904.68 | G134: 896.52 | H134: 935.62 | I134: 943.78 | J134: 955.17 | K134: 932.4 | L134: 912.85 | M134: 2.37703
A135: 126 | B135: M&MFIN | C135: 416.6 | D135: 413.95 | E135: 404.10 | F135: 391.60 | G135: 381.75 | H135: 426.45 | I135: 436.30 | J135: 448.80 | K135: 423.8 | L135: 401.45 | M135: 34.61426
A136: 127 | B136: M&M | C136: 688.4 | D136: 694.78 | E136: 674.17 | F136: 659.93 | G136: 639.32 | H136: 709.02 | I136: 729.63 | J136: 743.87 | K136: 715.4 | L136: 680.55 | M136: 80.05192
A137: 128 | B137: MANAPPURAM | C137: 93.8 | D137: 93.08 | E137: 91.97 | F137: 90.13 | G137: 89.02 | H137: 94.92 | I137: 96.03 | J137: 97.87 | K137: 94.2 | L137: 91.25 | M137: 18.53774
A138: 129 | B138: MRPL | C138: 67.5 | D138: 67.65 | E138: 66.75 | F138: 66.00 | G138: 65.10 | H138: 68.40 | I138: 69.30 | J138: 70.05 | K138: 68.55 | L138: 66.9 | M138: 6.76602
A139: 130 | B139: MARICO | C139: 376.45 | D139: 374.27 | E139: 369.53 | F139: 362.62 | G139: 357.88 | H139: 381.18 | I139: 385.92 | J139: 392.83 | K139: 379 | L139: 367.35 | M139: 25.59709
A140: 131 | B140: MARUTI | C140: 6962.3 | D140: 6939.62 | E140: 6675.23 | F140: 6388.17 | G140: 6123.78 | H140: 7226.68 | I140: 7491.07 | J140: 7778.13 | K140: 7204 | L140: 6652.55 | M140: 25.45419
A141: 132 | B141: MFSL | C141: 375.4 | D141: 384.45 | E141: 362.95 | F141: 350.50 | G141: 329.00 | H141: 396.90 | I141: 418.40 | J141: 430.85 | K141: 405.95 | L141: 372 | M141: 10.56343
A142: 133 | B142: MINDTREE | C142: 899.65 | D142: 896.28 | E142: 888.57 | F142: 877.48 | G142: 869.77 | H142: 907.37 | I142: 915.08 | J142: 926.17 | K142: 904 | L142: 885.2 | M142: 8.03302
A143: 134 | B143: MOTHERSUMI | C143: 139.3 | D143: 141.43 | E143: 135.37 | F143: 131.43 | G143: 125.37 | H143: 145.37 | I143: 151.43 | J143: 155.37 | K143: 147.5 | L143: 137.5 | M143: 75.02159
A144: 135 | B144: MPHASIS | C144: 1009.75 | D144: 1009.38 | E144: 994.87 | F144: 979.98 | G144: 965.47 | H144: 1024.27 | I144: 1038.78 | J144: 1053.67 | K144: 1023.9 | L144: 994.5 | M144: 2.36768
A145: 136 | B145: MUTHOOTFIN | C145: 492.55 | D145: 495.48 | E145: 479.07 | F145: 465.58 | G145: 449.17 | H145: 508.97 | I145: 525.38 | J145: 538.87 | K145: 511.9 | L145: 482 | M145: 10.79351
A146: 137 | B146: NATCOPHARM | C146: 691.4 | D146: 690.78 | E146: 681.67 | F146: 671.93 | G146: 662.82 | H146: 700.52 | I146: 709.63 | J146: 719.37 | K146: 699.9 | L146: 681.05 | M146: 1.45415
A147: 138 | B147: NBCC | C147: 57.85 | D147: 58.18 | E147: 56.37 | F147: 54.88 | G147: 53.07 | H147: 59.67 | I147: 61.48 | J147: 62.97 | K147: 60 | L147: 56.7 | M147: 59.57647
A148: 139 | B148: NHPC | C148: 25.4 | D148: 25.22 | E148: 24.93 | F148: 24.47 | G148: 24.18 | H148: 25.68 | I148: 25.97 | J148: 26.43 | K148: 25.5 | L148: 24.75 | M148: 42.06762
A149: 140 | B149: NMDC | C149: 95.35 | D149: 95.67 | E149: 93.68 | F149: 92.02 | G149: 90.03 | H149: 97.33 | I149: 99.32 | J149: 100.98 | K149: 97.65 | L149: 94 | M149: 53.3217
A150: 141 | B150: NTPC | C150: 140.15 | D150: 139.82 | E150: 139.13 | F150: 138.12 | G150: 137.43 | H150: 140.83 | I150: 141.52 | J150: 142.53 | K150: 140.5 | L150: 138.8 | M150: 59.16171
A151: 142 | B151: NATIONALUM | C151: 59.15 | D151: 59.22 | E151: 58.43 | F151: 57.72 | G151: 56.93 | H151: 59.93 | I151: 60.72 | J151: 61.43 | K151: 60 | L151: 58.5 | M151: 46.68687
A152: 143 | B152: OBEROIRLTY | C152: 454.2 | D152: 457.70 | E152: 440.45 | F152: 426.70 | G152: 409.45 | H152: 471.45 | I152: 488.70 | J152: 502.45 | K152: 474.95 | L152: 443.95 | M152: 6.66607
A153: 144 | B153: ONGC | C153: 141.8 | D153: 141.63 | E153: 139.97 | F153: 138.13 | G153: 136.47 | H153: 143.47 | I153: 145.13 | J153: 146.97 | K153: 143.3 | L153: 139.8 | M153: 52.60578
A154: 145 | B154: OIL | C154: 171.55 | D154: 170.42 | E154: 168.78 | F154: 166.02 | G154: 164.38 | H154: 173.18 | I154: 174.82 | J154: 177.58 | K154: 172.05 | L154: 167.65 | M154: 14.23978
A155: 146 | B155: OFSS | C155: 3794.8 | D155: 3792.25 | E155: 3755.05 | F155: 3715.30 | G155: 3678.10 | H155: 3832.00 | I155: 3869.20 | J155: 3908.95 | K155: 3829.45 | L155: 3752.5 | M155: 0.27907
A156: 147 | B156: PCJEWELLER | C156: 71.55 | D156: 72.33 | E156: 70.07 | F156: 68.58 | G156: 66.32 | H156: 73.82 | I156: 76.08 | J156: 77.57 | K156: 74.6 | L156: 70.85 | M156: 60.48011
A157: 148 | B157: PIIND | C157: 847.55 | D157: 848.00 | E157: 832.05 | F157: 816.55 | G157: 800.60 | H157: 863.50 | I157: 879.45 | J157: 894.95 | K157: 863.95 | L157: 832.5 | M157: 1.32967
A158: 149 | B158: PNBHOUSING | C158: 922.4 | D158: 913.80 | E158: 898.60 | F158: 874.80 | G158: 859.60 | H158: 937.60 | I158: 952.80 | J158: 976.60 | K158: 929 | L158: 890 | M158: 0.98506
A159: 150 | B159: PAGEIND | C159: 24039.05 | D159: 23836.97 | E159: 23502.68 | F159: 22966.32 | G159: 22632.03 | H159: 24373.33 | I159: 24707.62 | J159: 25243.98 | K159: 24171.25 | L159: 23300.6 | M159: 0.48386
A160: 151 | B160: PETRONET | C160: 221.1 | D160: 222.92 | E160: 216.28 | F160: 211.47 | G160: 204.83 | H160: 227.73 | I160: 234.37 | J160: 239.18 | K160: 229.55 | L160: 218.1 | M160: 69.30637
A161: 152 | B161: PIDILITIND | C161: 1122.8 | D161: 1126.43 | E161: 1108.87 | F161: 1094.93 | G161: 1077.37 | H161: 1140.37 | I161: 1157.93 | J161: 1171.87 | K161: 1144 | L161: 1112.5 | M161: 9.44639
A162: 153 | B162: PEL | C162: 2155.3 | D162: 2118.47 | E162: 2061.93 | F162: 1968.57 | G162: 1912.03 | H162: 2211.83 | I162: 2268.37 | J162: 2361.73 | K162: 2175 | L162: 2025.1 | M162: 10.71248
A163: 154 | B163: PFC | C163: 104.25 | D163: 103.65 | E163: 102.20 | F163: 100.15 | G163: 98.70 | H163: 105.70 | I163: 107.15 | J163: 109.20 | K163: 105.1 | L163: 101.6 | M163: 50.88501
A164: 155 | B164: POWERGRID | C164: 190.2 | D164: 189.32 | E164: 186.78 | F164: 183.37 | G164: 180.83 | H164: 192.73 | I164: 195.27 | J164: 198.68 | K164: 191.85 | L164: 185.9 | M164: 53.29604
A165: 156 | B165: PRESTIGE | C165: 200.9 | D165: 202.73 | E165: 198.52 | F165: 196.13 | G165: 191.92 | H165: 205.12 | I165: 209.33 | J165: 211.72 | K165: 206.95 | L165: 200.35 | M165: 9.34274
A166: 157 | B166: PGHH | C166: 9898.6 | D166: 9918.77 | E166: 9839.83 | F166: 9781.07 | G166: 9702.13 | H166: 9977.53 | I166: 10056.47 | J166: 10115.23 | K166: 9997.7 | L166: 9860 | M166: 0.04569
A167: 158 | B167: PNB | C167: 73.9 | D167: 75.28 | E167: 72.17 | F167: 70.43 | G167: 67.32 | H167: 77.02 | I167: 80.13 | J167: 81.87 | K167: 78.4 | L167: 73.55 | M167: 259.16009
A168: 159 | B168: RBLBANK | C168: 577.2 | D168: 574.87 | E168: 568.78 | F168: 560.37 | G168: 554.28 | H168: 583.28 | I168: 589.37 | J168: 597.78 | K168: 580.95 | L168: 566.45 | M168: 6.42726
A169: 160 | B169: RAJESHEXPO | C169: 618.6 | D169: 616.30 | E169: 610.50 | F169: 602.40 | G169: 596.60 | H169: 624.40 | I169: 630.20 | J169: 638.30 | K169: 622.1 | L169: 608.2 | M169: 2.43162
A170: 161 | B170: RELCAPITAL | C170: 189.1 | D170: 191.65 | E170: 183.30 | F170: 177.50 | G170: 169.15 | H170: 197.45 | I170: 205.80 | J170: 211.60 | K170: 200 | L170: 185.85 | M170: 59.8176
A171: 162 | B171: RCOM | C171: 11.6 | D171: 11.73 | E171: 11.37 | F171: 11.13 | G171: 10.77 | H171: 11.97 | I171: 12.33 | J171: 12.57 | K171: 12.1 | L171: 11.5 | M171: 564.18188
A172: 163 | B172: RELIANCE | C172: 1249.95 | D172: 1244.00 | E172: 1233.00 | F172: 1216.05 | G172: 1205.05 | H172: 1260.95 | I172: 1271.95 | J172: 1288.90 | K172: 1255 | L172: 1227.05 | M172: 92.28965
A173: 164 | B173: RELINFRA | C173: 267.1 | D173: 269.78 | E173: 260.52 | F173: 253.93 | G173: 244.67 | H173: 276.37 | I173: 285.63 | J173: 292.22 | K173: 279.05 | L173: 263.2 | M173: 31.0855
A174: 165 | B174: RPOWER | C174: 26.4 | D174: 26.58 | E174: 25.97 | F174: 25.53 | G174: 24.92 | H174: 27.02 | I174: 27.63 | J174: 28.07 | K174: 27.2 | L174: 26.15 | M174: 77.11767
A175: 166 | B175: RECLTD | C175: 125.05 | D175: 124.42 | E175: 122.93 | F175: 120.82 | G175: 119.33 | H175: 126.53 | I175: 128.02 | J175: 130.13 | K175: 125.9 | L175: 122.3 | M175: 34.50556
A176: 167 | B176: SRF | C176: 1966.45 | D176: 1981.33 | E176: 1945.67 | F176: 1924.88 | G176: 1889.22 | H176: 2002.12 | I176: 2037.78 | J176: 2058.57 | K176: 2017 | L176: 1960.55 | M176: 3.3574
A177: 168 | B177: SHREECEM | C177: 15782 | D177: 15840.67 | E177: 15541.33 | F177: 15300.67 | G177: 15001.33 | H177: 16081.33 | I177: 16380.67 | J177: 16621.33 | K177: 16140 | L177: 15600 | M177: 0.3919
A178: 169 | B178: SRTRANSFIN | C178: 1047.1 | D178: 1038.70 | E178: 1018.40 | F178: 989.70 | G178: 969.40 | H178: 1067.40 | I178: 1087.70 | J178: 1116.40 | K178: 1059 | L178: 1010 | M178: 20.01341
A179: 170 | B179: SIEMENS | C179: 1031.1 | D179: 1031.93 | E179: 1019.47 | F179: 1007.83 | G179: 995.37 | H179: 1043.57 | I179: 1056.03 | J179: 1067.67 | K179: 1044.4 | L179: 1020.3 | M179: 2.36484
A180: 171 | B180: SBIN | C180: 284.4 | D180: 289.70 | E180: 276.70 | F180: 269.00 | G180: 256.00 | H180: 297.40 | I180: 310.40 | J180: 318.10 | K180: 302.7 | L180: 282 | M180: 600.15958
A181: 172 | B181: SAIL | C181: 46.25 | D181: 46.65 | E181: 45.40 | F181: 44.55 | G181: 43.30 | H181: 47.50 | I181: 48.75 | J181: 49.60 | K181: 47.9 | L181: 45.8 | M181: 110.71914
A182: 173 | B182: SPARC | C182: 157.95 | D182: 158.42 | E182: 153.03 | F182: 148.12 | G182: 142.73 | H182: 163.33 | I182: 168.72 | J182: 173.63 | K182: 163.8 | L182: 153.5 | M182: 6.92099
A183: 174 | B183: SUNPHARMA | C183: 423.25 | D183: 422.75 | E183: 417.50 | F183: 411.75 | G183: 406.50 | H183: 428.50 | I183: 433.75 | J183: 439.50 | K183: 428 | L183: 417 | M183: 39.50126
A184: 175 | B184: SUNTV | C184: 532.15 | D184: 534.32 | E184: 521.33 | F184: 510.52 | G184: 497.53 | H184: 545.13 | I184: 558.12 | J184: 568.93 | K184: 547.3 | L184: 523.5 | M184: 16.29734
A185: 176 | B185: SUZLON | C185: 4.9 | D185: 4.90 | E185: 4.75 | F185: 4.60 | G185: 4.45 | H185: 5.05 | I185: 5.20 | J185: 5.35 | K185: 5.05 | L185: 4.75 | M185: 347.46141
A186: 177 | B186: SYNDIBANK | C186: 37.3 | D186: 37.40 | E186: 36.40 | F186: 35.50 | G186: 34.50 | H186: 38.30 | I186: 39.30 | J186: 40.20 | K186: 38.4 | L186: 36.5 | M186: 68.98256
A187: 178 | B187: SYNGENE | C187: 595.7 | D187: 590.15 | E187: 582.30 | F187: 568.90 | G187: 561.05 | H187: 603.55 | I187: 611.40 | J187: 624.80 | K187: 598 | L187: 576.75 | M187: 0.53602
A188: 179 | B188: TV18BRDCST | C188: 32.6 | D188: 32.63 | E188: 32.02 | F188: 31.43 | G188: 30.82 | H188: 33.22 | I188: 33.83 | J188: 34.42 | K188: 33.25 | L188: 32.05 | M188: 24.96185
A189: 180 | B189: TVSMOTOR | C189: 516.65 | D189: 516.58 | E189: 501.12 | F189: 485.58 | G189: 470.12 | H189: 532.12 | I189: 547.58 | J189: 563.12 | K189: 532.05 | L189: 501.05 | M189: 25.08725
A190: 181 | B190: TATACHEM | C190: 668 | D190: 669.67 | E190: 660.33 | F190: 652.67 | G190: 643.33 | H190: 677.33 | I190: 686.67 | J190: 694.33 | K190: 679 | L190: 662 | M190: 3.98868
A191: 182 | B191: TATACOMM | C191: 498.95 | D191: 497.68 | E191: 490.67 | F191: 482.38 | G191: 475.37 | H191: 505.97 | I191: 512.98 | J191: 521.27 | K191: 504.7 | L191: 489.4 | M191: 4.39432
A192: 183 | B192: TCS | C192: 2029.95 | D192: 2020.93 | E192: 2007.12 | F192: 1984.28 | G192: 1970.47 | H192: 2043.77 | I192: 2057.58 | J192: 2080.42 | K192: 2034.75 | L192: 1998.1 | M192: 30.64163
A193: 184 | B193: TATAGLOBAL | C193: 204.1 | D193: 204.52 | E193: 201.23 | F193: 198.37 | G193: 195.08 | H193: 207.38 | I193: 210.67 | J193: 213.53 | K193: 207.8 | L193: 201.65 | M193: 9.48332
A194: 185 | B194: TATAMTRDVR | C194: 94.1 | D194: 94.33 | E194: 92.72 | F194: 91.33 | G194: 89.72 | H194: 95.72 | I194: 97.33 | J194: 98.72 | K194: 95.95 | L194: 92.95 | M194: 22.96335
A195: 186 | B195: TATAMOTORS | C195: 181.65 | D195: 182.37 | E195: 178.83 | F195: 176.02 | G195: 172.48 | H195: 185.18 | I195: 188.72 | J195: 191.53 | K195: 185.9 | L195: 179.55 | M195: 149.31422
A196: 187 | B196: TATAPOWER | C196: 71.5 | D196: 71.35 | E196: 70.40 | F196: 69.30 | G196: 68.35 | H196: 72.45 | I196: 73.40 | J196: 74.50 | K196: 72.3 | L196: 70.25 | M196: 33.43602
A197: 188 | B197: TATASTEEL | C197: 474.7 | D197: 475.57 | E197: 469.13 | F197: 463.57 | G197: 457.13 | H197: 481.13 | I197: 487.57 | J197: 493.13 | K197: 482 | L197: 470 | M197: 50.15994
A198: 189 | B198: TECHM | C198: 746.6 | D198: 741.73 | E198: 732.87 | F198: 719.13 | G198: 710.27 | H198: 755.47 | I198: 764.33 | J198: 778.07 | K198: 750.6 | L198: 728 | M198: 22.60029
A199: 190 | B199: RAMCOCEM | C199: 602.3 | D199: 600.92 | E199: 591.93 | F199: 581.57 | G199: 572.58 | H199: 611.28 | I199: 620.27 | J199: 630.63 | K199: 609.9 | L199: 590.55 | M199: 1.9284
A200: 191 | B200: TITAN | C200: 991.55 | D200: 993.88 | E200: 982.77 | F200: 973.98 | G200: 962.87 | H200: 1002.67 | I200: 1013.78 | J200: 1022.57 | K200: 1005 | L200: 985.1 | M200: 34.24938
A201: 192 | B201: TORNTPHARM | C201: 1798.7 | D201: 1804.63 | E201: 1775.32 | F201: 1751.93 | G201: 1722.62 | H201: 1828.02 | I201: 1857.33 | J201: 1880.72 | K201: 1833.95 | L201: 1781.25 | M201: 2.45242
A202: 193 | B202: TORNTPOWER | C202: 246.75 | D202: 248.13 | E202: 243.82 | F202: 240.88 | G202: 236.57 | H202: 251.07 | I202: 255.38 | J202: 258.32 | K202: 252.45 | L202: 245.2 | M202: 8.39941
A203: 194 | B203: UPL | C203: 779.85 | D203: 782.00 | E203: 764.25 | F203: 748.65 | G203: 730.90 | H203: 797.60 | I203: 815.35 | J203: 830.95 | K203: 799.75 | L203: 766.4 | M203: 29.60388
A204: 195 | B204: ULTRACEMCO | C204: 3483.65 | D204: 3489.40 | E204: 3440.25 | F204: 3396.85 | G204: 3347.70 | H204: 3532.80 | I204: 3581.95 | J204: 3625.35 | K204: 3538.55 | L204: 3446 | M204: 7.45604
A205: 196 | B205: UNIONBANK | C205: 81.45 | D205: 82.00 | E205: 79.65 | F205: 77.85 | G205: 75.50 | H205: 83.80 | I205: 86.15 | J205: 87.95 | K205: 84.35 | L205: 80.2 | M205: 105.92499
... 29 more rows

Sheet MidCap Intra
L5: Back To Main Page
A6: FOR INTRA DAY TRADING | K6: =Main!B10 -> 2019-02-04
A9: Sr.no | B9: Scrip | C9: CLOSE RATE | D9: Pivot Point | E9: Supports | H9: Resistances
C10: Point | E10: S1 | F10: S2 | G10: S3 | H10: R1 | I10: R2 | J10: R3 | K10: HIGH | L10: LOW | M10: Total Trade Quanity in Lakhs
A11: 1 | B11: 3MINDIA | C11: 20293.5 | D11: 20347.83 | E11: 20105.67 | F11: 19917.83 | G11: 19675.67 | H11: 20535.67 | I11: 20777.83 | J11: 20965.67 | K11: 20590 | L11: 20160 | M11: 0.0127
A12: 2 | B12: 8KMILES | C12: 121 | D12: 124.43 | E12: 116.57 | F12: 112.13 | G12: 104.27 | H12: 128.87 | I12: 136.73 | J12: 141.17 | K12: 132.3 | L12: 120 | M12: 5.52825
A13: 3 | B13: AARTIIND | C13: 1632.35 | D13: 1635.70 | E13: 1616.40 | F13: 1600.45 | G13: 1581.15 | H13: 1651.65 | I13: 1670.95 | J13: 1686.90 | K13: 1655 | L13: 1619.75 | M13: 0.37009
A14: 4 | B14: ABAN | C14: 66.5 | D14: 66.62 | E14: 64.98 | F14: 63.47 | G14: 61.83 | H14: 68.13 | I14: 69.77 | J14: 71.28 | K14: 68.25 | L14: 65.1 | M14: 3.21734
A15: 5 | B15: ABB | C15: 1272.2 | D15: 1276.07 | E15: 1257.13 | F15: 1242.07 | G15: 1223.13 | H15: 1291.13 | I15: 1310.07 | J15: 1325.13 | K15: 1295 | L15: 1261 | M15: 0.97864
A16: 6 | B16: ABCAPITAL | C16: 80.5 | D16: 80.38 | E16: 79.32 | F16: 78.13 | G16: 77.07 | H16: 81.57 | I16: 82.63 | J16: 83.82 | K16: 81.45 | L16: 79.2 | M16: 55.45273
A17: 7 | B17: ABFRL | C17: 208.95 | D17: 210.33 | E17: 206.17 | F17: 203.38 | G17: 199.22 | H17: 213.12 | I17: 217.28 | J17: 220.07 | K17: 214.5 | L17: 207.55 | M17: 6.59499
A18: 8 | B18: ACC | C18: 1415.55 | D18: 1421.60 | E18: 1395.20 | F18: 1374.85 | G18: 1348.45 | H18: 1441.95 | I18: 1468.35 | J18: 1488.70 | K18: 1448 | L18: 1401.25 | M18: 5.68663
A19: 9 | B19: ADANIPORTS | C19: 338.45 | D19: 339.53 | E19: 332.27 | F19: 326.08 | G19: 318.82 | H19: 345.72 | I19: 352.98 | J19: 359.17 | K19: 346.8 | L19: 333.35 | M19: 31.19675
A20: 10 | B20: ADANIPOWER | C20: 44.2 | D20: 44.30 | E20: 41.75 | F20: 39.30 | G20: 36.75 | H20: 46.75 | I20: 49.30 | J20: 51.75 | K20: 46.85 | L20: 41.85 | M20: 110.3352
A21: 11 | B21: ADANITRANS | C21: 215.15 | D21: 214.92 | E21: 212.88 | F21: 210.62 | G21: 208.58 | H21: 217.18 | I21: 219.22 | J21: 221.48 | K21: 216.95 | L21: 212.65 | M21: 0.85059
A22: 12 | B22: ADVENZYMES | C22: 164.4 | D22: 164.62 | E22: 162.78 | F22: 161.17 | G22: 159.33 | H22: 166.23 | I22: 168.07 | J22: 169.68 | K22: 166.45 | L22: 163 | M22: 0.32811
A23: 13 | B23: AEGISCHEM | C23: 199.5 | D23: 197.83 | E23: 192.17 | F23: 184.83 | G23: 179.17 | H23: 205.17 | I23: 210.83 | J23: 218.17 | K23: 203.5 | L23: 190.5 | M23: 3.65778
A24: 14 | B24: AIAENG | C24: 1599.85 | D24: 1611.18 | E24: 1579.37 | F24: 1558.88 | G24: 1527.07 | H24: 1631.67 | I24: 1663.48 | J24: 1683.97 | K24: 1643 | L24: 1590.7 | M24: 0.11876
A25: 15 | B25: AJANTPHARM | C25: 982.8 | D25: 996.77 | E25: 962.63 | F25: 942.47 | G25: 908.33 | H25: 1016.93 | I25: 1051.07 | J25: 1071.23 | K25: 1030.9 | L25: 976.6 | M25: 8.0147
A26: 16 | B26: AKZOINDIA | C26: 1729.55 | D26: 1740.47 | E26: 1712.93 | F26: 1696.32 | G26: 1668.78 | H26: 1757.08 | I26: 1784.62 | J26: 1801.23 | K26: 1768 | L26: 1723.85 | M26: 0.03455
A27: 17 | B27: ALBK | C27: 44.4 | D27: 44.67 | E27: 43.23 | F27: 42.07 | G27: 40.63 | H27: 45.83 | I27: 47.27 | J27: 48.43 | K27: 46.1 | L27: 43.5 | M27: 48.53011
A28: 18 | B28: ALKEM | C28: 1888.45 | D28: 1889.58 | E28: 1871.17 | F28: 1853.88 | G28: 1835.47 | H28: 1906.87 | I28: 1925.28 | J28: 1942.57 | K28: 1908 | L28: 1872.3 | M28: 0.083
A29: 19 | B29: ALLCARGO | C29: 103.45 | D29: 104.33 | E29: 102.12 | F29: 100.78 | G29: 98.57 | H29: 105.67 | I29: 107.88 | J29: 109.22 | K29: 106.55 | L29: 103 | M29: 0.4329
A30: 20 | B30: AMARAJABAT | C30: 769.6 | D30: 764.20 | E30: 753.40 | F30: 737.20 | G30: 726.40 | H30: 780.40 | I30: 791.20 | J30: 807.40 | K30: 775 | L30: 748 | M30: 4.73123
A31: 21 | B31: AMBUJACEM | C31: 212.5 | D31: 212.48 | E31: 209.62 | F31: 206.73 | G31: 203.87 | H31: 215.37 | I31: 218.23 | J31: 221.12 | K31: 215.35 | L31: 209.6 | M31: 33.50137
A32: 22 | B32: ANDHRABANK | C32: 25.45 | D32: 25.47 | E32: 25.13 | F32: 24.82 | G32: 24.48 | H32: 25.78 | I32: 26.12 | J32: 26.43 | K32: 25.8 | L32: 25.15 | M32: 8.58446
A33: 23 | B33: APLAPOLLO | C33: 1133.65 | D33: 1123.22 | E33: 1110.43 | F33: 1087.22 | G33: 1074.43 | H33: 1146.43 | I33: 1159.22 | J33: 1182.43 | K33: 1136 | L33: 1100 | M33: 0.07307
A34: 24 | B34: APLLTD | C34: 591.85 | D34: 594.25 | E34: 585.60 | F34: 579.35 | G34: 570.70 | H34: 600.50 | I34: 609.15 | J34: 615.40 | K34: 602.9 | L34: 588 | M34: 0.23201
A35: 25 | B35: APOLLOHOSP | C35: 1341.25 | D35: 1339.72 | E35: 1321.53 | F35: 1301.82 | G35: 1283.63 | H35: 1359.43 | I35: 1377.62 | J35: 1397.33 | K35: 1357.9 | L35: 1320 | M35: 5.30789
A36: 26 | B36: APOLLOTYRE | C36: 207.85 | D36: 207.40 | E36: 204.05 | F36: 200.25 | G36: 196.90 | H36: 211.20 | I36: 214.55 | J36: 218.35 | K36: 210.75 | L36: 203.6 | M36: 16.70882
A37: 27 | B37: ARVIND | C37: 88.45 | D37: 88.30 | E37: 87.20 | F37: 85.95 | G37: 84.85 | H37: 89.55 | I37: 90.65 | J37: 91.90 | K37: 89.4 | L37: 87.05 | M37: 14.93066
A38: 28 | B38: ASAHIINDIA | C38: 256.7 | D38: 256.53 | E38: 255.07 | F38: 253.43 | G38: 251.97 | H38: 258.17 | I38: 259.63 | J38: 261.27 | K38: 258 | L38: 254.9 | M38: 0.17119
A39: 29 | B39: ASHOKA | C39: 121.15 | D39: 121.55 | E39: 119.65 | F39: 118.15 | G39: 116.25 | H39: 123.05 | I39: 124.95 | J39: 126.45 | K39: 123.45 | L39: 120.05 | M39: 1.66368
A40: 30 | B40: ASHOKLEY | C40: 83.55 | D40: 83.87 | E40: 80.53 | F40: 77.52 | G40: 74.18 | H40: 86.88 | I40: 90.22 | J40: 93.23 | K40: 87.2 | L40: 80.85 | M40: 650.21097
A41: 31 | B41: ASIANPAINT | C41: 1457.2 | D41: 1445.02 | E41: 1420.38 | F41: 1383.57 | G41: 1358.93 | H41: 1481.83 | I41: 1506.47 | J41: 1543.28 | K41: 1469.65 | L41: 1408.2 | M41: 20.77539
A42: 32 | B42: ASTRAL | C42: 1106.9 | D42: 1120.93 | E42: 1086.97 | F42: 1067.03 | G42: 1033.07 | H42: 1140.87 | I42: 1174.83 | J42: 1194.77 | K42: 1154.9 | L42: 1101 | M42: 0.37427
A43: 33 | B43: ATUL | C43: 3512.2 | D43: 3515.72 | E43: 3486.43 | F43: 3460.67 | G43: 3431.38 | H43: 3541.48 | I43: 3570.77 | J43: 3596.53 | K43: 3545 | L43: 3489.95 | M43: 0.05512
A44: 34 | B44: AUBANK | C44: 579.55 | D44: 583.12 | E44: 572.43 | F44: 565.32 | G44: 554.63 | H44: 590.23 | I44: 600.92 | J44: 608.03 | K44: 593.8 | L44: 576 | M44: 2.63192
A45: 35 | B45: AUROPHARMA | C45: 797.8 | D45: 793.27 | E45: 784.53 | F45: 771.27 | G45: 762.53 | H45: 806.53 | I45: 815.27 | J45: 828.53 | K45: 802 | L45: 780 | M45: 12.1213
A46: 36 | B46: AVANTIFEED | C46: 346.05 | D46: 355.25 | E46: 333.80 | F46: 321.55 | G46: 300.10 | H46: 367.50 | I46: 388.95 | J46: 401.20 | K46: 376.7 | L46: 343 | M46: 18.91549
A47: 37 | B47: AXISBANK | C47: 717.25 | D47: 716.35 | E47: 706.30 | F47: 695.35 | G47: 685.30 | H47: 727.30 | I47: 737.35 | J47: 748.30 | K47: 726.4 | L47: 705.4 | M47: 137.92059
A48: 38 | B48: BAJAJ-AUTO | C48: 2602.75 | D48: 2605.25 | E48: 2540.50 | F48: 2478.25 | G48: 2413.50 | H48: 2667.50 | I48: 2732.25 | J48: 2794.50 | K48: 2670 | L48: 2543 | M48: 10.28186
A49: 39 | B49: BAJAJCON | C49: 354.8 | D49: 354.23 | E49: 350.57 | F49: 346.33 | G49: 342.67 | H49: 358.47 | I49: 362.13 | J49: 366.37 | K49: 357.9 | L49: 350 | M49: 0.27699
A50: 40 | B50: BAJAJELEC | C50: 467 | D50: 465.00 | E50: 460.00 | F50: 453.00 | G50: 448.00 | H50: 472.00 | I50: 477.00 | J50: 484.00 | K50: 470 | L50: 458 | M50: 1.58772
A51: 41 | B51: BAJAJFINSV | C51: 6096.95 | D51: 6133.98 | E51: 6017.97 | F51: 5938.98 | G51: 5822.97 | H51: 6212.97 | I51: 6328.98 | J51: 6407.97 | K51: 6250 | L51: 6055 | M51: 3.11984
A52: 42 | B52: BAJAJHIND | C52: 7.9 | D52: 7.97 | E52: 7.63 | F52: 7.37 | G52: 7.03 | H52: 8.23 | I52: 8.57 | J52: 8.83 | K52: 8.3 | L52: 7.7 | M52: 23.65742
A53: 43 | B53: BAJAJHLDNG | C53: 2865.9 | D53: 2880.62 | E53: 2835.28 | F53: 2804.67 | G53: 2759.33 | H53: 2911.23 | I53: 2956.57 | J53: 2987.18 | K53: 2925.95 | L53: 2850 | M53: 0.16406
A54: 44 | B54: BAJFINANCE | C54: 2628.4 | D54: 2630.43 | E54: 2572.97 | F54: 2517.53 | G54: 2460.07 | H54: 2685.87 | I54: 2743.33 | J54: 2798.77 | K54: 2687.9 | L54: 2575 | M54: 21.17768
A55: 45 | B55: BALKRISIND | C55: 820.9 | D55: 822.45 | E55: 808.45 | F55: 796.00 | G55: 782.00 | H55: 834.90 | I55: 848.90 | J55: 861.35 | K55: 836.45 | L55: 810 | M55: 5.33172
A56: 46 | B56: BALLARPUR | C56: 3.55 | D56: 3.60 | E56: 3.50 | F56: 3.45 | G56: 3.35 | H56: 3.65 | I56: 3.75 | J56: 3.80 | K56: 3.7 | L56: 3.55 | M56: 4.34344
A57: 47 | B57: BALMLAWRIE | C57: 186.9 | D57: 187.47 | E57: 185.43 | F57: 183.97 | G57: 181.93 | H57: 188.93 | I57: 190.97 | J57: 192.43 | K57: 189.5 | L57: 186 | M57: 0.24264
A58: 48 | B58: BALRAMCHIN | C58: 102.6 | D58: 102.65 | E58: 101.40 | F58: 100.20 | G58: 98.95 | H58: 103.85 | I58: 105.10 | J58: 106.30 | K58: 103.9 | L58: 101.45 | M58: 11.58751
A59: 49 | B59: BANKBARODA | C59: 111.1 | D59: 111.43 | E59: 108.87 | F59: 106.63 | G59: 104.07 | H59: 113.67 | I59: 116.23 | J59: 118.47 | K59: 114 | L59: 109.2 | M59: 164.94373
A60: 50 | B60: BANKINDIA | C60: 94.85 | D60: 96.78 | E60: 86.92 | F60: 78.98 | G60: 69.12 | H60: 104.72 | I60: 114.58 | J60: 122.52 | K60: 106.65 | L60: 88.85 | M60: 251.80357
A61: 51 | B61: BASF | C61: 1347.6 | D61: 1350.87 | E61: 1336.73 | F61: 1325.87 | G61: 1311.73 | H61: 1361.73 | I61: 1375.87 | J61: 1386.73 | K61: 1365 | L61: 1340 | M61: 0.03474
A62: 52 | B62: BATAINDIA | C62: 1143.95 | D62: 1137.85 | E62: 1121.75 | F62: 1099.55 | G62: 1083.45 | H62: 1160.05 | I62: 1176.15 | J62: 1198.35 | K62: 1153.95 | L62: 1115.65 | M62: 4.47755
A63: 53 | B63: BBTC | C63: 1205.95 | D63: 1206.00 | E63: 1189.00 | F63: 1172.05 | G63: 1155.05 | H63: 1222.95 | I63: 1239.95 | J63: 1256.90 | K63: 1223 | L63: 1189.05 | M63: 0.66041
A64: 54 | B64: BEL | C64: 84.6 | D64: 84.68 | E64: 83.17 | F64: 81.73 | G64: 80.22 | H64: 86.12 | I64: 87.63 | J64: 89.07 | K64: 86.2 | L64: 83.25 | M64: 97.37752
A65: 55 | B65: BEML | C65: 799.2 | D65: 802.62 | E65: 787.63 | F65: 776.07 | G65: 761.08 | H65: 814.18 | I65: 829.17 | J65: 840.73 | K65: 817.6 | L65: 791.05 | M65: 16.52856
A66: 56 | B66: BERGEPAINT | C66: 325.4 | D66: 324.35 | E66: 319.15 | F66: 312.90 | G66: 307.70 | H66: 330.60 | I66: 335.80 | J66: 342.05 | K66: 329.55 | L66: 318.1 | M66: 9.73395
A67: 57 | B67: BFUTILITIE | C67: 196.35 | D67: 197.62 | E67: 192.33 | F67: 188.32 | G67: 183.03 | H67: 201.63 | I67: 206.92 | J67: 210.93 | K67: 202.9 | L67: 193.6 | M67: 2.42094
A68: 58 | B68: BGRENERGY | C68: 53.4 | D68: 54.03 | E68: 52.52 | F68: 51.63 | G68: 50.12 | H68: 54.92 | I68: 56.43 | J68: 57.32 | K68: 55.55 | L68: 53.15 | M68: 0.46045
A69: 59 | B69: BHARATFIN | C69: 947.8 | D69: 949.52 | E69: 936.03 | F69: 924.27 | G69: 910.78 | H69: 961.28 | I69: 974.77 | J69: 986.53 | K69: 963 | L69: 937.75 | M69: 4.48069
A70: 60 | B70: BHARATFORG | C70: 495.45 | D70: 496.50 | E70: 487.15 | F70: 478.85 | G70: 469.50 | H70: 504.80 | I70: 514.15 | J70: 522.45 | K70: 505.85 | L70: 488.2 | M70: 17.23141
A71: 61 | B71: BHARTIARTL | C71: 311.85 | D71: 312.58 | E71: 304.27 | F71: 296.68 | G71: 288.37 | H71: 320.17 | I71: 328.48 | J71: 336.07 | K71: 320.9 | L71: 305 | M71: 83.31159
A72: 62 | B72: BHEL | C72: 64.35 | D72: 64.57 | E72: 63.43 | F72: 62.52 | G72: 61.38 | H72: 65.48 | I72: 66.62 | J72: 67.53 | K72: 65.7 | L72: 63.65 | M72: 60.3162
A73: 63 | B73: BIOCON | C73: 666.25 | D73: 658.92 | E73: 648.33 | F73: 630.42 | G73: 619.83 | H73: 676.83 | I73: 687.42 | J73: 705.33 | K73: 669.5 | L73: 641 | M73: 15.20377
A74: 64 | B74: BIRLACORPN | C74: 487.05 | D74: 492.58 | E74: 477.47 | F74: 467.88 | G74: 452.77 | H74: 502.17 | I74: 517.28 | J74: 526.87 | K74: 507.7 | L74: 483 | M74: 0.36078
A75: 65 | B75: BLISSGVS | C75: 144.3 | D75: 147.42 | E75: 137.18 | F75: 130.07 | G75: 119.83 | H75: 154.53 | I75: 164.77 | J75: 171.88 | K75: 157.65 | L75: 140.3 | M75: 115.875
A76: 66 | B76: BLUEDART | C76: 3182.2 | D76: 3174.08 | E76: 3113.17 | F76: 3044.13 | G76: 2983.22 | H76: 3243.12 | I76: 3304.03 | J76: 3373.07 | K76: 3235 | L76: 3105.05 | M76: 0.02027
A77: 67 | B77: BLUESTARCO | C77: 600.35 | D77: 601.12 | E77: 588.73 | F77: 577.12 | G77: 564.73 | H77: 612.73 | I77: 625.12 | J77: 636.73 | K77: 613.5 | L77: 589.5 | M77: 0.16742
A78: 68 | B78: BOMDYEING | C78: 114.4 | D78: 114.60 | E78: 111.30 | F78: 108.20 | G78: 104.90 | H78: 117.70 | I78: 121.00 | J78: 124.10 | K78: 117.9 | L78: 111.5 | M78: 15.15447
A79: 69 | B79: BOSCHLTD | C79: 19316.15 | D79: 19149.02 | E79: 18902.03 | F79: 18487.92 | G79: 18240.93 | H79: 19563.13 | I79: 19810.12 | J79: 20224.23 | K79: 19396 | L79: 18734.9 | M79: 0.14994
A80: 70 | B80: BPCL | C80: 341 | D80: 342.70 | E80: 336.70 | F80: 332.40 | G80: 326.40 | H80: 347.00 | I80: 353.00 | J80: 357.30 | K80: 348.7 | L80: 338.4 | M80: 27.2237
A81: 71 | B81: BRFL | C81: 7.9 | D81: 7.90 | E81: 7.60 | F81: 7.30 | G81: 7.00 | H81: 8.20 | I81: 8.50 | J81: 8.80 | K81: 8.2 | L81: 7.6 | M81: 0.44339
A82: 72 | B82: BRIGADE | C82: 211.1 | D82: 211.12 | E82: 207.43 | F82: 203.77 | G82: 200.08 | H82: 214.78 | I82: 218.47 | J82: 222.13 | K82: 214.8 | L82: 207.45 | M82: 0.90699
A83: 73 | B83: BRITANNIA | C83: 3251 | D83: 3246.00 | E83: 3206.00 | F83: 3161.00 | G83: 3121.00 | H83: 3291.00 | I83: 3331.00 | J83: 3376.00 | K83: 3286 | L83: 3201 | M83: 3.87188
A84: 74 | B84: BSE | C84: 588.25 | D84: 589.42 | E84: 584.83 | F84: 581.42 | G84: 576.83 | H84: 592.83 | I84: 597.42 | J84: 600.83 | K84: 594 | L84: 586 | M84: 0.40285
A85: 75 | B85: CADILAHC | C85: 323.6 | D85: 321.70 | E85: 318.40 | F85: 313.20 | G85: 309.90 | H85: 326.90 | I85: 330.20 | J85: 335.40 | K85: 325 | L85: 316.5 | M85: 6.57757
A86: 77 | B86: CANBK | C86: 238.05 | D86: 241.85 | E86: 231.30 | F86: 224.55 | G86: 214.00 | H86: 248.60 | I86: 259.15 | J86: 265.90 | K86: 252.4 | L86: 235.1 | M86: 58.84645
A87: 78 | B87: CANFINHOME | C87: 259 | D87: 255.70 | E87: 249.40 | F87: 239.80 | G87: 233.50 | H87: 265.30 | I87: 271.60 | J87: 281.20 | K87: 262 | L87: 246.1 | M87: 15.78799
A88: 79 | B88: CAPLIPOINT | C88: 345.85 | D88: 353.30 | E88: 332.65 | F88: 319.45 | G88: 298.80 | H88: 366.50 | I88: 387.15 | J88: 400.35 | K88: 373.95 | L88: 340.1 | M88: 0.26363
A89: 80 | B89: CARBORUNIV | C89: 351.4 | D89: 351.98 | E89: 348.07 | F89: 344.73 | G89: 340.82 | H89: 355.32 | I89: 359.23 | J89: 362.57 | K89: 355.9 | L89: 348.65 | M89: 0.24363
A90: 81 | B90: CARERATING | C90: 998.45 | D90: 996.15 | E90: 983.30 | F90: 968.15 | G90: 955.30 | H90: 1011.30 | I90: 1024.15 | J90: 1039.30 | K90: 1009 | L90: 981 | M90: 0.48978
A91: 82 | B91: CASTROLIND | C91: 160.8 | D91: 160.47 | E91: 158.83 | F91: 156.87 | G91: 155.23 | H91: 162.43 | I91: 164.07 | J91: 166.03 | K91: 162.1 | L91: 158.5 | M91: 11.36674
A92: 83 | B92: CCL | C92: 269.9 | D92: 268.15 | E92: 266.35 | F92: 262.80 | G92: 261.00 | H92: 271.70 | I92: 273.50 | J92: 277.05 | K92: 269.95 | L92: 264.6 | M92: 0.22769
A93: 84 | B93: CDSL | C93: 216.85 | D93: 218.15 | E93: 214.70 | F93: 212.55 | G93: 209.10 | H93: 220.30 | I93: 223.75 | J93: 225.90 | K93: 221.6 | L93: 216 | M93: 0.74932
A94: 85 | B94: CEATLTD | C94: 1104.25 | D94: 1098.47 | E94: 1080.78 | F94: 1057.32 | G94: 1039.63 | H94: 1121.93 | I94: 1139.62 | J94: 1163.08 | K94: 1116.15 | L94: 1075 | M94: 7.24235
A95: 86 | B95: CENTRALBK | C95: 30.9 | D95: 31.02 | E95: 30.08 | F95: 29.27 | G95: 28.33 | H95: 31.83 | I95: 32.77 | J95: 33.58 | K95: 31.95 | L95: 30.2 | M95: 2.55198
A96: 87 | B96: CENTURYPLY | C96: 167.45 | D96: 166.78 | E96: 164.07 | F96: 160.68 | G96: 157.97 | H96: 170.17 | I96: 172.88 | J96: 176.27 | K96: 169.5 | L96: 163.4 | M96: 0.93493
A97: 88 | B97: CENTURYTEX | C97: 791.65 | D97: 794.65 | E97: 779.55 | F97: 767.45 | G97: 752.35 | H97: 806.75 | I97: 821.85 | J97: 833.95 | K97: 809.75 | L97: 782.55 | M97: 4.13461
A98: 89 | B98: CERA | C98: 2433 | D98: 2454.48 | E98: 2386.02 | F98: 2339.03 | G98: 2270.57 | H98: 2501.47 | I98: 2569.93 | J98: 2616.92 | K98: 2522.95 | L98: 2407.5 | M98: 0.06709
A99: 90 | B99: CGPOWER | C99: 38 | D99: 37.92 | E99: 37.18 | F99: 36.37 | G99: 35.63 | H99: 38.73 | I99: 39.47 | J99: 40.28 | K99: 38.65 | L99: 37.1 | M99: 38.032
A100: 91 | B100: CHAMBLFERT | C100: 173 | D100: 175.25 | E100: 168.75 | F100: 164.50 | G100: 158.00 | H100: 179.50 | I100: 186.00 | J100: 190.25 | K100: 181.75 | L100: 171 | M100: 9.00513
A101: 92 | B101: CHENNPETRO | C101: 238 | D101: 239.75 | E101: 234.50 | F101: 231.00 | G101: 225.75 | H101: 243.25 | I101: 248.50 | J101: 252.00 | K101: 245 | L101: 236.25 | M101: 2.52838
A102: 93 | B102: CHOLAFIN | C102: 1216.35 | D102: 1213.12 | E102: 1178.23 | F102: 1140.12 | G102: 1105.23 | H102: 1251.23 | I102: 1286.12 | J102: 1324.23 | K102: 1248 | L102: 1175 | M102: 6.6342
A103: 94 | B103: CIPLA | C103: 521.35 | D103: 518.80 | E103: 515.05 | F103: 508.75 | G103: 505.00 | H103: 525.10 | I103: 528.85 | J103: 535.15 | K103: 522.55 | L103: 512.5 | M103: 13.80838
A104: 95 | B104: COALINDIA | C104: 223.2 | D104: 224.22 | E104: 221.73 | F104: 220.27 | G104: 217.78 | H104: 225.68 | I104: 228.17 | J104: 229.63 | K104: 226.7 | L104: 222.75 | M104: 28.20146
A105: 96 | B105: COCHINSHIP | C105: 366.75 | D105: 366.88 | E105: 363.97 | F105: 361.18 | G105: 358.27 | H105: 369.67 | I105: 372.58 | J105: 375.37 | K105: 369.8 | L105: 364.1 | M105: 0.38293
A106: 97 | B106: COFFEEDAY | C106: 265.6 | D106: 266.47 | E106: 263.98 | F106: 262.37 | G106: 259.88 | H106: 268.08 | I106: 270.57 | J106: 272.18 | K106: 268.95 | L106: 264.85 | M106: 0.48426
A107: 98 | B107: COLPAL | C107: 1293.45 | D107: 1295.67 | E107: 1280.48 | F107: 1267.52 | G107: 1252.33 | H107: 1308.63 | I107: 1323.82 | J107: 1336.78 | K107: 1310.85 | L107: 1282.7 | M107: 4.81876
A108: 99 | B108: CONCOR | C108: 658.7 | D108: 661.73 | E108: 644.67 | F108: 630.63 | G108: 613.57 | H108: 675.77 | I108: 692.83 | J108: 706.87 | K108: 678.8 | L108: 647.7 | M108: 7.80833
A109: 100 | B109: COROMANDEL | C109: 456.75 | D109: 457.02 | E109: 449.03 | F109: 441.32 | G109: 433.33 | H109: 464.73 | I109: 472.72 | J109: 480.43 | K109: 465 | L109: 449.3 | M109: 2.15902
A110: 101 | B110: COX&KINGS | C110: 154.65 | D110: 154.88 | E110: 152.37 | F110: 150.08 | G110: 147.57 | H110: 157.17 | I110: 159.68 | J110: 161.97 | K110: 157.4 | L110: 152.6 | M110: 0.35744
A111: 102 | B111: CRISIL | C111: 1659.85 | D111: 1661.28 | E111: 1647.57 | F111: 1635.28 | G111: 1621.57 | H111: 1673.57 | I111: 1687.28 | J111: 1699.57 | K111: 1675 | L111: 1649 | M111: 0.09488
A112: 103 | B112: CROMPTON | C112: 213.9 | D112: 214.17 | E112: 210.53 | F112: 207.17 | G112: 203.53 | H112: 217.53 | I112: 221.17 | J112: 224.53 | K112: 217.8 | L112: 210.8 | M112: 20.63385
A113: 104 | B113: CUB | C113: 189.45 | D113: 190.18 | E113: 187.77 | F113: 186.08 | G113: 183.67 | H113: 191.87 | I113: 194.28 | J113: 195.97 | K113: 192.6 | L113: 188.5 | M113: 17.12175
A114: 105 | B114: CUMMINSIND | C114: 795.9 | D114: 796.73 | E114: 789.17 | F114: 782.43 | G114: 774.87 | H114: 803.47 | I114: 811.03 | J114: 817.77 | K114: 804.3 | L114: 790 | M114: 4.78554
A115: 106 | B115: CYIENT | C115: 606.65 | D115: 606.48 | E115: 603.07 | F115: 599.48 | G115: 596.07 | H115: 610.07 | I115: 613.48 | J115: 617.07 | K115: 609.9 | L115: 602.9 | M115: 0.32686
A116: 107 | B116: DABUR | C116: 451.85 | D116: 449.73 | E116: 443.47 | F116: 435.08 | G116: 428.82 | H116: 458.12 | I116: 464.38 | J116: 472.77 | K116: 456 | L116: 441.35 | M116: 60.34606
A117: 108 | B117: DBCORP | C117: 179.1 | D117: 177.68 | E117: 175.47 | F117: 171.83 | G117: 169.62 | H117: 181.32 | I117: 183.53 | J117: 187.17 | K117: 179.9 | L117: 174.05 | M117: 0.62644
A118: 109 | B118: DBL | C118: 326.6 | D118: 326.12 | E118: 318.33 | F118: 310.07 | G118: 302.28 | H118: 334.38 | I118: 342.17 | J118: 350.43 | K118: 333.9 | L118: 317.85 | M118: 1.94286
A119: 110 | B119: DBREALTY | C119: 25.55 | D119: 25.87 | E119: 25.03 | F119: 24.52 | G119: 23.68 | H119: 26.38 | I119: 27.22 | J119: 27.73 | K119: 26.7 | L119: 25.35 | M119: 1.31392
A120: 111 | B120: DCAL | C120: 205.9 | D120: 207.30 | E120: 202.60 | F120: 199.30 | G120: 194.60 | H120: 210.60 | I120: 215.30 | J120: 218.60 | K120: 212 | L120: 204 | M120: 0.45006
A121: 112 | B121: DCBBANK | C121: 177.25 | D121: 177.08 | E121: 174.67 | F121: 172.08 | G121: 169.67 | H121: 179.67 | I121: 182.08 | J121: 184.67 | K121: 179.5 | L121: 174.5 | M121: 12.14209
A122: 113 | B122: DCMSHRIRAM | C122: 336.7 | D122: 337.47 | E122: 330.58 | F122: 324.47 | G122: 317.58 | H122: 343.58 | I122: 350.47 | J122: 356.58 | K122: 344.35 | L122: 331.35 | M122: 0.53312
A123: 114 | B123: DEEPAKFERT | C123: 117.9 | D123: 117.78 | E123: 113.57 | F123: 109.23 | G123: 105.02 | H123: 122.12 | I123: 126.33 | J123: 130.67 | K123: 122 | L123: 113.45 | M123: 12.2054
A124: 115 | B124: DELTACORP | C124: 233.05 | D124: 232.12 | E124: 229.73 | F124: 226.42 | G124: 224.03 | H124: 235.43 | I124: 237.82 | J124: 241.13 | K124: 234.5 | L124: 228.8 | M124: 4.85039
A125: 116 | B125: DEN | C125: 71.7 | D125: 71.65 | E125: 71.50 | F125: 71.30 | G125: 71.15 | H125: 71.85 | I125: 72.00 | J125: 72.20 | K125: 71.8 | L125: 71.45 | M125: 17.13095
A126: 117 | B126: DENABANK | C126: 12.2 | D126: 12.42 | E126: 11.93 | F126: 11.67 | G126: 11.18 | H126: 12.68 | I126: 13.17 | J126: 13.43 | K126: 12.9 | L126: 12.15 | M126: 17.93897
A127: 118 | B127: DHFL | C127: 111.2 | D127: 115.93 | E127: 97.37 | F127: 83.53 | G127: 64.97 | H127: 129.77 | I127: 148.33 | J127: 162.17 | K127: 134.5 | L127: 102.1 | M127: 949.89171
A128: 119 | B128: DISHTV | C128: 24.4 | D128: 24.45 | E128: 23.25 | F128: 22.10 | G128: 20.90 | H128: 25.60 | I128: 26.80 | J128: 27.95 | K128: 25.65 | L128: 23.3 | M128: 301.05361
A129: 120 | B129: DIVISLAB | C129: 1532.35 | D129: 1523.02 | E129: 1497.98 | F129: 1463.62 | G129: 1438.58 | H129: 1557.38 | I129: 1582.42 | J129: 1616.78 | K129: 1548.05 | L129: 1488.65 | M129: 6.09053
A130: 121 | B130: DIXON | C130: 2290.65 | D130: 2268.95 | E130: 2209.90 | F130: 2129.15 | G130: 2070.10 | H130: 2349.70 | I130: 2408.75 | J130: 2489.50 | K130: 2328 | L130: 2188.2 | M130: 0.29832
A131: 122 | B131: DLF | C131: 165.7 | D131: 169.80 | E131: 158.55 | F131: 151.40 | G131: 140.15 | H131: 176.95 | I131: 188.20 | J131: 195.35 | K131: 181.05 | L131: 162.65 | M131: 130.45972
A132: 123 | B132: DMART | C132: 1442.95 | D132: 1426.47 | E132: 1392.93 | F132: 1342.92 | G132: 1309.38 | H132: 1476.48 | I132: 1510.02 | J132: 1560.03 | K132: 1460 | L132: 1376.45 | M132: 11.37654
A133: 124 | B133: DREDGECORP | C133: 406.7 | D133: 411.60 | E133: 396.10 | F133: 385.50 | G133: 370.00 | H133: 422.20 | I133: 437.70 | J133: 448.30 | K133: 427.1 | L133: 401 | M133: 3.71707
A134: 125 | B134: DRREDDY | C134: 2791.25 | D134: 2775.13 | E134: 2731.27 | F134: 2671.28 | G134: 2627.42 | H134: 2835.12 | I134: 2878.98 | J134: 2938.97 | K134: 2819 | L134: 2715.15 | M134: 14.50995
A135: 126 | B135: ECLERX | C135: 1038.4 | D135: 1049.92 | E135: 1023.48 | F135: 1008.57 | G135: 982.13 | H135: 1064.83 | I135: 1091.27 | J135: 1106.18 | K135: 1076.35 | L135: 1035 | M135: 0.6124
A136: 127 | B136: EDELWEISS | C136: 146.9 | D136: 147.18 | E136: 138.37 | F136: 129.83 | G136: 121.02 | H136: 155.72 | I136: 164.53 | J136: 173.07 | K136: 156 | L136: 138.65 | M136: 30.03971
A137: 128 | B137: EICHERMOT | C137: 19663.4 | D137: 19628.05 | E137: 19111.40 | F137: 18559.40 | G137: 18042.75 | H137: 20180.05 | I137: 20696.70 | J137: 21248.70 | K137: 20144.7 | L137: 19076.05 | M137: 1.85717
A138: 129 | B138: EIDPARRY | C138: 200.75 | D138: 202.22 | E138: 198.43 | F138: 196.12 | G138: 192.33 | H138: 204.53 | I138: 208.32 | J138: 210.63 | K138: 206 | L138: 199.9 | M138: 0.59614
A139: 130 | B139: EIHOTEL | C139: 194.55 | D139: 198.12 | E139: 189.93 | F139: 185.32 | G139: 177.13 | H139: 202.73 | I139: 210.92 | J139: 215.53 | K139: 206.3 | L139: 193.5 | M139: 2.92772
A140: 131 | B140: EMAMILTD | C140: 414.5 | D140: 413.97 | E140: 408.63 | F140: 402.77 | G140: 397.43 | H140: 419.83 | I140: 425.17 | J140: 431.03 | K140: 419.3 | L140: 408.1 | M140: 1.11967
A141: 132 | B141: ENDURANCE | C141: 1130.25 | D141: 1139.47 | E141: 1115.98 | F141: 1101.72 | G141: 1078.23 | H141: 1153.73 | I141: 1177.22 | J141: 1191.48 | K141: 1162.95 | L141: 1125.2 | M141: 0.10868
A142: 133 | B142: ENGINERSIN | C142: 115.45 | D142: 115.18 | E142: 113.57 | F142: 111.68 | G142: 110.07 | H142: 117.07 | I142: 118.68 | J142: 120.57 | K142: 116.8 | L142: 113.3 | M142: 9.4146
A143: 134 | B143: EQUITAS | C143: 124.35 | D143: 123.20 | E143: 120.90 | F143: 117.45 | G143: 115.15 | H143: 126.65 | I143: 128.95 | J143: 132.40 | K143: 125.5 | L143: 119.75 | M143: 40.48662
A144: 135 | B144: ERIS | C144: 644.8 | D144: 640.42 | E144: 621.38 | F144: 597.97 | G144: 578.93 | H144: 663.83 | I144: 682.87 | J144: 706.28 | K144: 659.45 | L144: 617 | M144: 1.08636
A145: 136 | B145: EROSMEDIA | C145: 76.05 | D145: 77.22 | E145: 74.08 | F145: 72.12 | G145: 68.98 | H145: 79.18 | I145: 82.32 | J145: 84.28 | K145: 80.35 | L145: 75.25 | M145: 4.56225
A146: 137 | B146: ESCORTS | C146: 677.95 | D146: 672.65 | E146: 661.30 | F146: 644.65 | G146: 633.30 | H146: 689.30 | I146: 700.65 | J146: 717.30 | K146: 684 | L146: 656 | M146: 51.12096
A147: 138 | B147: EVEREADY | C147: 215.25 | D147: 215.30 | E147: 211.95 | F147: 208.65 | G147: 205.30 | H147: 218.60 | I147: 221.95 | J147: 225.25 | K147: 218.65 | L147: 212 | M147: 0.48415
A148: 139 | B148: EXIDEIND | C148: 227.05 | D148: 227.38 | E148: 224.22 | F148: 221.38 | G148: 218.22 | H148: 230.22 | I148: 233.38 | J148: 236.22 | K148: 230.55 | L148: 224.55 | M148: 32.05387
A149: 140 | B149: FCONSUMER | C149: 43.55 | D149: 43.17 | E149: 41.98 | F149: 40.42 | G149: 39.23 | H149: 44.73 | I149: 45.92 | J149: 47.48 | K149: 44.35 | L149: 41.6 | M149: 25.24217
A150: 141 | B150: FEDERALBNK | C150: 86.25 | D150: 86.57 | E150: 84.93 | F150: 83.62 | G150: 81.98 | H150: 87.88 | I150: 89.52 | J150: 90.83 | K150: 88.2 | L150: 85.25 | M150: 99.68361
A151: 142 | B151: FINCABLES | C151: 415.65 | D151: 416.87 | E151: 410.78 | F151: 405.92 | G151: 399.83 | H151: 421.73 | I151: 427.82 | J151: 432.68 | K151: 422.95 | L151: 412 | M151: 0.29944
A152: 143 | B152: FINPIPE | C152: 512.45 | D152: 512.57 | E152: 507.13 | F152: 501.82 | G152: 496.38 | H152: 517.88 | I152: 523.32 | J152: 528.63 | K152: 518 | L152: 507.25 | M152: 0.12039
A153: 144 | B153: FLFL | C153: 426.8 | D153: 426.63 | E153: 423.27 | F153: 419.73 | G153: 416.37 | H153: 430.17 | I153: 433.53 | J153: 437.07 | K153: 430 | L153: 423.1 | M153: 0.346
A154: 145 | B154: FSL | C154: 50.75 | D154: 50.25 | E154: 49.50 | F154: 48.25 | G154: 47.50 | H154: 51.50 | I154: 52.25 | J154: 53.50 | K154: 51 | L154: 49 | M154: 18.74161
A155: 146 | B155: GAIL | C155: 333.5 | D155: 331.65 | E155: 327.95 | F155: 322.40 | G155: 318.70 | H155: 337.20 | I155: 340.90 | J155: 346.45 | K155: 335.35 | L155: 326.1 | M155: 33.67974
A156: 147 | B156: GATI | C156: 72.8 | D156: 73.28 | E156: 71.72 | F156: 70.63 | G156: 69.07 | H156: 74.37 | I156: 75.93 | J156: 77.02 | K156: 74.85 | L156: 72.2 | M156: 2.82029
A157: 148 | B157: GDL | C157: 108.3 | D157: 106.48 | E157: 104.07 | F157: 99.83 | G157: 97.42 | H157: 110.72 | I157: 113.13 | J157: 117.37 | K157: 108.9 | L157: 102.25 | M157: 1.98162
A158: 149 | B158: GEPIL | C158: 774.2 | D158: 772.05 | E158: 763.15 | F158: 752.10 | G158: 743.20 | H158: 783.10 | I158: 792.00 | J158: 803.05 | K158: 780.95 | L158: 761 | M158: 0.04392
A159: 150 | B159: GESHIP | C159: 300.45 | D159: 300.58 | E159: 299.17 | F159: 297.88 | G159: 296.47 | H159: 301.87 | I159: 303.28 | J159: 304.57 | K159: 302 | L159: 299.3 | M159: 0.58638
A160: 151 | B160: GET&D | C160: 296.7 | D160: 296.22 | E160: 293.08 | F160: 289.47 | G160: 286.33 | H160: 299.83 | I160: 302.97 | J160: 306.58 | K160: 299.35 | L160: 292.6 | M160: 0.14284
A161: 152 | B161: GHCL | C161: 250.2 | D161: 250.37 | E161: 248.28 | F161: 246.37 | G161: 244.28 | H161: 252.28 | I161: 254.37 | J161: 256.28 | K161: 252.45 | L161: 248.45 | M161: 0.65801
A162: 153 | B162: GICRE | C162: 249.45 | D162: 248.67 | E162: 243.83 | F162: 238.22 | G162: 233.38 | H162: 254.28 | I162: 259.12 | J162: 264.73 | K162: 253.5 | L162: 243.05 | M162: 0.73526
A163: 154 | B163: GILLETTE | C163: 6504.15 | D163: 6496.00 | E163: 6444.15 | F163: 6384.15 | G163: 6332.30 | H163: 6556.00 | I163: 6607.85 | J163: 6667.85 | K163: 6547.85 | L163: 6436 | M163: 0.0279
A164: 155 | B164: GLAXO | C164: 1407.55 | D164: 1406.28 | E164: 1397.57 | F164: 1387.58 | G164: 1378.87 | H164: 1416.27 | I164: 1424.98 | J164: 1434.97 | K164: 1415 | L164: 1396.3 | M164: 0.10985
A165: 156 | B165: GLENMARK | C165: 661.85 | D165: 657.78 | E165: 650.57 | F165: 639.28 | G165: 632.07 | H165: 669.07 | I165: 676.28 | J165: 687.57 | K165: 665 | L165: 646.5 | M165: 3.98672
A166: 157 | B166: GMDCLTD | C166: 83.95 | D166: 84.68 | E166: 82.87 | F166: 81.78 | G166: 79.97 | H166: 85.77 | I166: 87.58 | J166: 88.67 | K166: 86.5 | L166: 83.6 | M166: 0.69395
A167: 158 | B167: GMRINFRA | C167: 15.05 | D167: 15.22 | E167: 14.83 | F167: 14.62 | G167: 14.23 | H167: 15.43 | I167: 15.82 | J167: 16.03 | K167: 15.6 | L167: 15 | M167: 207.12433
A168: 159 | B168: GNFC | C168: 325.8 | D168: 329.30 | E168: 318.90 | F168: 312.00 | G168: 301.60 | H168: 336.20 | I168: 346.60 | J168: 353.50 | K168: 339.7 | L168: 322.4 | M168: 3.93952
A169: 160 | B169: GODFRYPHLP | C169: 942.75 | D169: 945.23 | E169: 920.57 | F169: 898.38 | G169: 873.72 | H169: 967.42 | I169: 992.08 | J169: 1014.27 | K169: 969.9 | L169: 923.05 | M169: 2.23978
A170: 161 | B170: GODREJAGRO | C170: 492.55 | D170: 496.55 | E170: 486.10 | F170: 479.65 | G170: 469.20 | H170: 503.00 | I170: 513.45 | J170: 519.90 | K170: 507 | L170: 490.1 | M170: 0.87644
A171: 162 | B171: GODREJCP | C171: 710.65 | D171: 708.40 | E171: 697.55 | F171: 684.45 | G171: 673.60 | H171: 721.50 | I171: 732.35 | J171: 745.45 | K171: 719.25 | L171: 695.3 | M171: 30.93553
A172: 163 | B172: GODREJIND | C172: 505.6 | D172: 504.75 | E172: 496.70 | F172: 487.80 | G172: 479.75 | H172: 513.65 | I172: 521.70 | J172: 530.60 | K172: 512.8 | L172: 495.85 | M172: 2.62427
A173: 164 | B173: GODREJPROP | C173: 750.1 | D173: 757.37 | E173: 732.73 | F173: 715.37 | G173: 690.73 | H173: 774.73 | I173: 799.37 | J173: 816.73 | K173: 782 | L173: 740 | M173: 2.88164
A174: 165 | B174: GPPL | C174: 85 | D174: 85.33 | E174: 83.67 | F174: 82.33 | G174: 80.67 | H174: 86.67 | I174: 88.33 | J174: 89.67 | K174: 87 | L174: 84 | M174: 1.15364
A175: 166 | B175: GRANULES | C175: 89.2 | D175: 89.93 | E175: 87.67 | F175: 86.13 | G175: 83.87 | H175: 91.47 | I175: 93.73 | J175: 95.27 | K175: 92.2 | L175: 88.4 | M175: 8.29138
A176: 167 | B176: GRAPHITE | C176: 556.85 | D176: 574.75 | E176: 527.40 | F176: 497.95 | G176: 450.60 | H176: 604.20 | I176: 651.55 | J176: 681.00 | K176: 622.1 | L176: 545.3 | M176: 76.10159
A177: 168 | B177: GRASIM | C177: 718.95 | D177: 719.13 | E177: 708.67 | F177: 698.38 | G177: 687.92 | H177: 729.42 | I177: 739.88 | J177: 750.17 | K177: 729.6 | L177: 708.85 | M177: 13.0746
A178: 169 | B178: GREAVESCOT | C178: 122 | D178: 122.12 | E178: 120.93 | F178: 119.87 | G178: 118.68 | H178: 123.18 | I178: 124.37 | J178: 125.43 | K178: 123.3 | L178: 121.05 | M178: 1.65088
A179: 170 | B179: GREENPLY | C179: 131 | D179: 129.98 | E179: 128.02 | F179: 125.03 | G179: 123.07 | H179: 132.97 | I179: 134.93 | J179: 137.92 | K179: 131.95 | L179: 127 | M179: 0.5536
A180: 171 | B180: GRUH | C180: 211.6 | D180: 210.12 | E180: 206.28 | F180: 200.97 | G180: 197.13 | H180: 215.43 | I180: 219.27 | J180: 224.58 | K180: 213.95 | L180: 204.8 | M180: 100.11134
A181: 172 | B181: GSFC | C181: 96.15 | D181: 96.32 | E181: 93.18 | F181: 90.22 | G181: 87.08 | H181: 99.28 | I181: 102.42 | J181: 105.38 | K181: 99.45 | L181: 93.35 | M181: 25.64417
A182: 173 | B182: GSKCONS | C182: 7491.25 | D182: 7475.57 | E182: 7325.13 | F182: 7159.02 | G182: 7008.58 | H182: 7641.68 | I182: 7792.12 | J182: 7958.23 | K182: 7626 | L182: 7309.45 | M182: 0.19022
A183: 174 | B183: GSPL | C183: 177.45 | D183: 176.92 | E183: 173.78 | F183: 170.12 | G183: 166.98 | H183: 180.58 | I183: 183.72 | J183: 187.38 | K183: 180.05 | L183: 173.25 | M183: 1.79429
A184: 175 | B184: GUJALKALI | C184: 510.8 | D184: 510.62 | E184: 499.23 | F184: 487.67 | G184: 476.28 | H184: 522.18 | I184: 533.57 | J184: 545.13 | K184: 522 | L184: 499.05 | M184: 1.21458
A185: 176 | B185: GUJFLUORO | C185: 881 | D185: 876.30 | E185: 865.60 | F185: 850.20 | G185: 839.50 | H185: 891.70 | I185: 902.40 | J185: 917.80 | K185: 887 | L185: 860.9 | M185: 0.34502
A186: 177 | B186: GUJGASLTD | C186: 127.3 | D186: 127.80 | E186: 126.20 | F186: 125.10 | G186: 123.50 | H186: 128.90 | I186: 130.50 | J186: 131.60 | K186: 129.4 | L186: 126.7 | M186: 0.96277
A187: 178 | B187: GULFOILLUB | C187: 890 | D187: 887.03 | E187: 870.97 | F187: 851.93 | G187: 835.87 | H187: 906.07 | I187: 922.13 | J187: 941.17 | K187: 903.1 | L187: 868 | M187: 0.46933
A188: 179 | B188: GVKPIL | C188: 6.55 | D188: 6.58 | E188: 6.47 | F188: 6.38 | G188: 6.27 | H188: 6.67 | I188: 6.78 | J188: 6.87 | K188: 6.7 | L188: 6.5 | M188: 12.06455
A189: 180 | B189: HATHWAY | C189: 32 | D189: 32.00 | E189: 31.95 | F189: 31.90 | G189: 31.85 | H189: 32.05 | I189: 32.10 | J189: 32.15 | K189: 32.05 | L189: 31.95 | M189: 19.13785
A190: 181 | B190: HATSUN | C190: 675.25 | D190: 676.65 | E190: 669.20 | F190: 663.15 | G190: 655.70 | H190: 682.70 | I190: 690.15 | J190: 696.20 | K190: 684.1 | L190: 670.6 | M190: 0.04627
A191: 182 | B191: HAVELLS | C191: 737.15 | D191: 729.35 | E191: 718.80 | F191: 700.45 | G191: 689.90 | H191: 747.70 | I191: 758.25 | J191: 776.60 | K191: 739.9 | L191: 711 | M191: 19.38051
A192: 183 | B192: HCC | C192: 12.3 | D192: 12.37 | E192: 11.98 | F192: 11.67 | G192: 11.28 | H192: 12.68 | I192: 13.07 | J192: 13.38 | K192: 12.75 | L192: 12.05 | M192: 33.99592
A193: 184 | B193: HCL-INSYS | C193: 19.95 | D193: 19.98 | E193: 19.57 | F193: 19.18 | G193: 18.77 | H193: 20.37 | I193: 20.78 | J193: 21.17 | K193: 20.4 | L193: 19.6 | M193: 4.01293
A194: 185 | B194: HCLTECH | C194: 1043.85 | D194: 1034.78 | E194: 1019.57 | F194: 995.28 | G194: 980.07 | H194: 1059.07 | I194: 1074.28 | J194: 1098.57 | K194: 1050 | L194: 1010.5 | M194: 32.30111
A195: 186 | B195: HDFC | C195: 1961.25 | D195: 1953.60 | E195: 1932.75 | F195: 1904.25 | G195: 1883.40 | H195: 1982.10 | I195: 2002.95 | J195: 2031.45 | K195: 1974.45 | L195: 1925.1 | M195: 48.67443
A196: 187 | B196: HDFCBANK | C196: 2090.45 | D196: 2094.68 | E196: 2072.37 | F196: 2054.28 | G196: 2031.97 | H196: 2112.77 | I196: 2135.08 | J196: 2153.17 | K196: 2117 | L196: 2076.6 | M196: 39.13547
A197: 188 | B197: HDIL | C197: 26.85 | D197: 27.28 | E197: 25.72 | F197: 24.58 | G197: 23.02 | H197: 28.42 | I197: 29.98 | J197: 31.12 | K197: 28.85 | L197: 26.15 | M197: 70.03357
A198: 189 | B198: HEG | C198: 2547.9 | D198: 2550.45 | E198: 2468.55 | F198: 2389.20 | G198: 2307.30 | H198: 2629.80 | I198: 2711.70 | J198: 2791.05 | K198: 2632.35 | L198: 2471.1 | M198: 13.7166
A199: 190 | B199: HEIDELBERG | C199: 147.1 | D199: 146.95 | E199: 144.70 | F199: 142.30 | G199: 140.05 | H199: 149.35 | I199: 151.60 | J199: 154.00 | K199: 149.2 | L199: 144.55 | M199: 0.44947
A200: 191 | B200: HERITGFOOD | C200: 495.25 | D200: 495.07 | E200: 490.18 | F200: 485.12 | G200: 480.23 | H200: 500.13 | I200: 505.02 | J200: 510.08 | K200: 499.95 | L200: 490 | M200: 0.1114
A201: 192 | B201: HEROMOTOCO | C201: 2807.25 | D201: 2757.20 | E201: 2675.05 | F201: 2542.85 | G201: 2460.70 | H201: 2889.40 | I201: 2971.55 | J201: 3103.75 | K201: 2839.35 | L201: 2625 | M201: 32.96513
A202: 193 | B202: HEXAWARE | C202: 349.6 | D202: 348.33 | E202: 340.47 | F202: 331.33 | G202: 323.47 | H202: 357.47 | I202: 365.33 | J202: 374.47 | K202: 356.2 | L202: 339.2 | M202: 29.30714
A203: 194 | B203: HFCL | C203: 22.55 | D203: 22.45 | E203: 21.75 | F203: 20.95 | G203: 20.25 | H203: 23.25 | I203: 23.95 | J203: 24.75 | K203: 23.15 | L203: 21.65 | M203: 13.8634
A204: 195 | B204: HIMATSEIDE | C204: 197.75 | D204: 199.75 | E204: 195.00 | F204: 192.25 | G204: 187.50 | H204: 202.50 | I204: 207.25 | J204: 210.00 | K204: 204.5 | L204: 197 | M204: 0.74791
A205: 196 | B205: HINDALCO | C205: 211.4 | D205: 209.08 | E205: 205.82 | F205: 200.23 | G205: 196.97 | H205: 214.67 | I205: 217.93 | J205: 223.52 | K205: 212.35 | L205: 203.5 | M205: 104.75839
A206: 197 | B206: HINDCOPPER | C206: 45.95 | D206: 46.15 | E206: 45.40 | F206: 44.85 | G206: 44.10 | H206: 46.70 | I206: 47.45 | J206: 48.00 | K206: 46.9 | L206: 45.6 | M206: 3.06758
... 304 more rows

Sheet Bulk Deals
E6: Back To Main Page
A7: Subject : | B7: BULK DEAL | D7: =Main!B10 -> 2019-02-04
A9: Date | B9: Scrip code | C9: Scrip Name | D9: Client Name | E9: Buy / Sell | F9: Quantity Traded | G9: Trade Price / Wt.Avg.trade price | H9: Exchange
A10: 2019-02-01 | B10: 537766 | C10: BCP | D10: DIPESH SITARAM GORULE | E10: BUY | F10: 282,417 | G10: 41.01 | H10: BSE
A11: 2019-02-01 | B11: 537766 | C11: BCP | D11: DIPESH SITARAM GORULE | E11: SELL | F11: 432,417 | G11: 40.49 | H11: BSE
A12: 2019-02-01 | B12: 511710 | C12: CUBIFIN | D12: KANCHENJUNGA ADVERTISING P LTD | E12: SELL | F12: 500000 | G12: 1.05 | H12: BSE
A13: 2019-02-01 | B13: 511710 | C13: CUBIFIN | D13: ASHWANI KUMAR GUPTA | E13: BUY | F13: 499900 | G13: 1.05 | H13: BSE
A14: 2019-02-01 | B14: 539009 | C14: GBLIL | D14: RAKHIBEN PARESHBHAI PATEL | E14: SELL | F14: 70000 | G14: 80.2 | H14: BSE
A15: 2019-02-01 | B15: 526717 | C15: GOPALA | D15: JYOTIKA DEEPAK SHENOY | E15: BUY | F15: 74000 | G15: 74.85 | H15: BSE
A16: 2019-02-01 | B16: 526717 | C16: GOPALA | D16: ASPIRE EMERGING FUND | E16: SELL | F16: 81200 | G16: 75.89 | H16: BSE
A17: 2019-02-01 | B17: 506640 | C17: GUJCMDS | D17: MARISHA HARDIK MOTTA | E17: BUY | F17: 3034 | G17: 104 | H17: BSE
A18: 2019-02-01 | B18: 506640 | C18: GUJCMDS | D18: VISHWAMURTE TRAD INVEST PE LTD | E18: SELL | F18: 2634 | G18: 104 | H18: BSE
A19: 2019-02-01 | B19: 526967 | C19: HEERAISP | D19: KEENA MILAN KOTHARI | E19: SELL | F19: 50000 | G19: 1.92 | H19: BSE
A20: 2019-02-01 | B20: 526967 | C20: HEERAISP | D20: SANGEETA SULTANIA | E20: BUY | F20: 45000 | G20: 1.91 | H20: BSE
A21: 2019-02-01 | B21: 531778 | C21: KACHCHH | D21: BHARTIBEN DAVDA | E21: BUY | F21: 50449 | G21: 1.97 | H21: BSE
A22: 2019-02-01 | B22: 531778 | C22: KACHCHH | D22: GATEWAY FINANCIAL SERVICES LIMITED | E22: SELL | F22: 50000 | G22: 1.97 | H22: BSE
A23: 2019-02-01 | B23: 515059 | C23: MADHUDIN | D23: S KUMAR AND SONS HOLDING PVT LTD | E23: BUY | F23: 31,845 | G23: 14.96 | H23: BSE
A24: 2019-02-01 | B24: 530805 | C24: OIVL | D24: AMBE PROJECTS LIMITED | E24: BUY | F24: 20,000 | G24: 18.5 | H24: BSE
A25: 2019-02-01 | B25: 512217 | C25: PRISMMEDI | D25: NISHANT TALWAR . | E25: SELL | F25: 40,000 | G25: 39.37 | H25: BSE
A26: 2019-02-01 | B26: 541601 | C26: RAJNISH | D26: KANTILAL B SHAH | E26: BUY | F26: 26,400 | G26: 143 | H26: BSE
A27: 2019-02-01 | B27: 541601 | C27: RAJNISH | D27: COMPETENT TEXTILES PVT LTD | E27: BUY | F27: 3,600 | G27: 143 | H27: BSE
A28: 2019-02-01 | B28: 541601 | C28: RAJNISH | D28: COMPETENT TEXTILES PVT LTD | E28: SELL | F28: 54,000 | G28: 143 | H28: BSE
A29: 2019-02-01 | B29: 534734 | C29: RMCHEM | D29: AJAYSINH PRAVINSINH DEVDA | E29: BUY | F29: 1,150,000 | G29: 1.77 | H29: BSE
A30: 2019-02-01 | B30: 540082 | C30: RSTL | D30: JHAVERI TRADING AND INVESTMENT PVT LTD | E30: BUY | F30: 45,000 | G30: 12.78 | H30: BSE
A31: 2019-02-01 | B31: 539660 | C31: SAHYOGMULT | D31: ANIL MUNJAL HUF | E31: BUY | F31: 55,751 | G31: 15.02 | H31: BSE
A32: 2019-02-01 | B32: 538557 | C32: SAIBABA | D32: AJAYSINH PRAVINSINH DEVDA | E32: BUY | F32: 3,200 | G32: 1.89 | H32: BSE
A33: 2019-02-01 | B33: 538557 | C33: SAIBABA | D33: DIPEN MAHESHBHAI SHAH | E33: SELL | F33: 650,000 | G33: 1.91 | H33: BSE
A34: 2019-02-01 | B34: 538557 | C34: SAIBABA | D34: SWETA MAULIKKUMAR SHAH | E34: SELL | F34: 912,000 | G34: 1.93 | H34: BSE
A35: 2019-02-01 | B35: 538557 | C35: SAIBABA | D35: AJAYSINH PRAVINSINH DEVDA | E35: SELL | F35: 1,843,200 | G35: 1.92 | H35: BSE
A36: 2019-02-01 | B36: 538557 | C36: SAIBABA | D36: SHAILESHKUMAR BABULAL PATEL | E36: BUY | F36: 104,111 | G36: 1.9 | H36: BSE
A37: 2019-02-01 | B37: 538557 | C37: SAIBABA | D37: SHAILESHKUMAR BABULAL PATEL | E37: SELL | F37: 1200000 | G37: 1.92 | H37: BSE
A38: 2019-02-01 | B38: 538557 | C38: SAIBABA | D38: TAIYAB HAIDERALI NOORANI . | E38: BUY | F38: 5700000 | G38: 1.92 | H38: BSE
A39: 2019-02-01 | B39: 539520 | C39: SHAILJA | D39: OMKAR RAJEEV GADRE | E39: SELL | F39: 31730 | G39: 15.49 | H39: BSE
A40: 2019-02-01 | B40: 539520 | C40: SHAILJA | D40: BRAJA GOPAL PAL | E40: BUY | F40: 29800 | G40: 15.5 | H40: BSE
A41: 2019-02-01 | B41: 539520 | C41: SHAILJA | D41: SANGITA AGARWAL | E41: SELL | F41: 17150 | G41: 15.45 | H41: BSE
A42: 2019-02-01 | B42: 539520 | C42: SHAILJA | D42: JIGNASHA YAGNIK WAGHELA | E42: SELL | F42: 20000 | G42: 15.56 | H42: BSE
A43: 2019-02-01 | B43: 538607 | C43: TOYAMIND | D43: SONIA DHIRAJ KHANDELWAL | E43: SELL | F43: 2000000 | G43: 3.85 | H43: BSE
A44: 2019-02-01 | B44: AKG | C44: AKG Exim Limited | D44: KESHAV SHARES & STOCKS LTD. | E44: BUY | F44: 48000 | G44: 35.9 | H44: NSE
A45: 2019-02-01 | B45: BLISSGVS | C45: Bliss GVS Pharma Ltd | D45: DIPESH SITARAM GORULE | E45: BUY | F45: 923356 | G45: 152.59 | H45: NSE
A46: 2019-02-01 | B46: BLISSGVS | C46: Bliss GVS Pharma Ltd | D46: POLUS GLOBAL FUND | E46: BUY | F46: 8300000 | G46: 152.92 | H46: NSE
A47: 2019-02-01 | B47: CLEDUCATE | C47: CL Educate Limited | D47: ARJUNA FUND PTE. LTD. | E47: BUY | F47: 71900 | G47: 125.55 | H47: NSE
A48: 2019-02-01 | B48: DHFL | C48: Dewan Housing Fin Corp | D48: ALPHAGREP COMMODITIES PRIVATE LIMITED | E48: BUY | F48: 1680805 | G48: 113.97 | H48: NSE
A49: 2019-02-01 | B49: DHFL | C49: Dewan Housing Fin Corp | D49: ALPHAGREP SECURITIES PRIVATE LIMITED | E49: BUY | F49: 2412027 | G49: 118.46 | H49: NSE
A50: 2019-02-01 | B50: DHFL | C50: Dewan Housing Fin Corp | D50: CROSSLAND TRADING CO | E50: BUY | F50: 4073604 | G50: 115.78 | H50: NSE
A51: 2019-02-01 | B51: DHFL | C51: Dewan Housing Fin Corp | D51: GENUINE STOCK BROKERS PVT LTD | E51: BUY | F51: 1992234 | G51: 112.53 | H51: NSE
A52: 2019-02-01 | B52: DHFL | C52: Dewan Housing Fin Corp | D52: GRAVITON RESEARCH CAPITAL LLP | E52: BUY | F52: 3429925 | G52: 116.82 | H52: NSE
A53: 2019-02-01 | B53: DHFL | C53: Dewan Housing Fin Corp | D53: PURITY TRADEMAX LLP | E53: BUY | F53: 2842080 | G53: 114.21 | H53: NSE
A54: 2019-02-01 | B54: DHFL | C54: Dewan Housing Fin Corp | D54: TOWER RESEARCH CAPITAL MARKETS INDIA PRIVATE LIMITED | E54: BUY | F54: 7349824 | G54: 114.94 | H54: NSE
A55: 2019-02-01 | B55: JETAIRWAYS | C55: Jet Airways (India) Ltd. | D55: A.P.T. PORTFOLIO PRIVATE LIMITED | E55: BUY | F55: 1355409 | G55: 261.09 | H55: NSE
A56: 2019-02-01 | B56: JETAIRWAYS | C56: Jet Airways (India) Ltd. | D56: CENTILLION RESEARCH INDIA LLP | E56: BUY | F56: 1042953 | G56: 263.48 | H56: NSE
A57: 2019-02-01 | B57: JETAIRWAYS | C57: Jet Airways (India) Ltd. | D57: CROSSLAND TRADING CO | E57: BUY | F57: 1450529 | G57: 261.18 | H57: NSE
A58: 2019-02-01 | B58: JETAIRWAYS | C58: Jet Airways (India) Ltd. | D58: PURITY TRADEMAX LLP | E58: BUY | F58: 759935 | G58: 263.61 | H58: NSE
A59: 2019-02-01 | B59: JETAIRWAYS | C59: Jet Airways (India) Ltd. | D59: QE SECURITIES | E59: BUY | F59: 604772 | G59: 258.48 | H59: NSE
A60: 2019-02-01 | B60: JETAIRWAYS | C60: Jet Airways (India) Ltd. | D60: SIGMAQUANT TECHNOLOGIES PRIVATE LTD | E60: BUY | F60: 981663 | G60: 260.95 | H60: NSE
A61: 2019-02-01 | B61: JETAIRWAYS | C61: Jet Airways (India) Ltd. | D61: TOWER RESEARCH CAPITAL MARKETS INDIA PRIVATE LIMITED | E61: BUY | F61: 1444173 | G61: 257.94 | H61: NSE
A62: 2019-02-01 | B62: JUBLFOOD | C62: Jubilant Foodworks Limite | D62: WASATCH ADVISORS INC A/C WEST VIRGINIA INVESTMENT MANAGEMEN | E62: BUY | F62: 878597 | G62: 1320.18 | H62: NSE
A63: 2019-02-01 | B63: ORIENTABRA | C63: Orient Abrasives Limited | D63: SHAH MANAN CHETAN | E63: BUY | F63: 1800000 | G63: 24.07 | H63: NSE
A64: 2019-02-01 | B64: VENKEYS | C64: Venky's (India) Limited | D64: RAHUL DOSHI | E64: BUY | F64: 53836 | G64: 2529.34 | H64: NSE
A65: 2019-02-01 | B65: AKG | C65: AKG Exim Limited | D65: RAJENDER KUMAR JAIN | E65: SELL | F65: 48000 | G65: 35.9 | H65: NSE
A66: 2019-02-01 | B66: BLISSGVS | C66: Bliss GVS Pharma Ltd | D66: ANTARA GAUTAM ASHRA | E66: SELL | F66: 1220000 | G66: 153 | H66: NSE
A67: 2019-02-01 | B67: BLISSGVS | C67: Bliss GVS Pharma Ltd | D67: DIPESH SITARAM GORULE | E67: SELL | F67: 923356 | G67: 149.74 | H67: NSE
A68: 2019-02-01 | B68: BLISSGVS | C68: Bliss GVS Pharma Ltd | D68: GAUTAM RASIKLAL ASHRA | E68: SELL | F68: 1861743 | G68: 153 | H68: NSE
A69: 2019-02-01 | B69: BLISSGVS | C69: Bliss GVS Pharma Ltd | D69: MAMTA GAUTAM ASHRA | E69: SELL | F69: 1980333 | G69: 153 | H69: NSE
A70: 2019-02-01 | B70: BLISSGVS | C70: Bliss GVS Pharma Ltd | D70: NARSIMHA SHIBROOR KAMATH | E70: SELL | F70: 3660000 | G70: 152.84 | H70: NSE
A71: 2019-02-01 | B71: CLEDUCATE | C71: CL Educate Limited | D71: ASHOKA PTE LIMITED | E71: SELL | F71: 71900 | G71: 125.55 | H71: NSE
A72: 2019-02-01 | B72: DEN | C72: Den Networks Ltd | D72: NORGES BANK ON ACCOUNT OF THE GOVERMENT PENSION FUND GLOBAL | E72: SELL | F72: 1147315 | G72: 71.57 | H72: NSE
A73: 2019-02-01 | B73: DHFL | C73: Dewan Housing Fin Corp | D73: ALPHAGREP COMMODITIES PRIVATE LIMITED | E73: SELL | F73: 1680805 | G73: 114.02 | H73: NSE
A74: 2019-02-01 | B74: DHFL | C74: Dewan Housing Fin Corp | D74: ALPHAGREP SECURITIES PRIVATE LIMITED | E74: SELL | F74: 2412027 | G74: 118.54 | H74: NSE
A75: 2019-02-01 | B75: DHFL | C75: Dewan Housing Fin Corp | D75: CROSSLAND TRADING CO | E75: SELL | F75: 4073604 | G75: 115.87 | H75: NSE
A76: 2019-02-01 | B76: DHFL | C76: Dewan Housing Fin Corp | D76: GENUINE STOCK BROKERS PVT LTD | E76: SELL | F76: 1992234 | G76: 112.61 | H76: NSE
A77: 2019-02-01 | B77: DHFL | C77: Dewan Housing Fin Corp | D77: GRAVITON RESEARCH CAPITAL LLP | E77: SELL | F77: 3429925 | G77: 117.04 | H77: NSE
A78: 2019-02-01 | B78: DHFL | C78: Dewan Housing Fin Corp | D78: PURITY TRADEMAX LLP | E78: SELL | F78: 2842080 | G78: 114.3 | H78: NSE
A79: 2019-02-01 | B79: DHFL | C79: Dewan Housing Fin Corp | D79: TOWER RESEARCH CAPITAL MARKETS INDIA PRIVATE LIMITED | E79: SELL | F79: 7349824 | G79: 114.96 | H79: NSE
A80: 2019-02-01 | B80: JETAIRWAYS | C80: Jet Airways (India) Ltd. | D80: A.P.T. PORTFOLIO PRIVATE LIMITED | E80: SELL | F80: 1355409 | G80: 261.2 | H80: NSE
A81: 2019-02-01 | B81: JETAIRWAYS | C81: Jet Airways (India) Ltd. | D81: CENTILLION RESEARCH INDIA LLP | E81: SELL | F81: 1042953 | G81: 263.61 | H81: NSE
A82: 2019-02-01 | B82: JETAIRWAYS | C82: Jet Airways (India) Ltd. | D82: CROSSLAND TRADING CO | E82: SELL | F82: 1450529 | G82: 261.41 | H82: NSE
A83: 2019-02-01 | B83: JETAIRWAYS | C83: Jet Airways (India) Ltd. | D83: PURITY TRADEMAX LLP | E83: SELL | F83: 759935 | G83: 263.16 | H83: NSE
A84: 2019-02-01 | B84: JETAIRWAYS | C84: Jet Airways (India) Ltd. | D84: QE SECURITIES | E84: SELL | F84: 605189 | G84: 257.88 | H84: NSE
A85: 2019-02-01 | B85: JETAIRWAYS | C85: Jet Airways (India) Ltd. | D85: SIGMAQUANT TECHNOLOGIES PRIVATE LTD | E85: SELL | F85: 981663 | G85: 261.05 | H85: NSE
A86: 2019-02-01 | B86: JETAIRWAYS | C86: Jet Airways (India) Ltd. | D86: TOWER RESEARCH CAPITAL MARKETS INDIA PRIVATE LIMITED | E86: SELL | F86: 1444173 | G86: 257.85 | H86: NSE
A87: 2019-02-01 | B87: ORIENTABRA | C87: Orient Abrasives Limited | D87: BOMBAY MINERALS LIMITED | E87: SELL | F87: 1800000 | G87: 24.07 | H87: NSE
A88: 2019-02-01 | B88: VENKEYS | C88: Venky's (India) Limited | D88: RAHUL DOSHI | E88: SELL | F88: 74836 | G88: 2512.11 | H88: NSE
A89: 2019-02-01 | B89: ZEEL | C89: Zee Entertain. Enterp.Ltd | D89: CATALYST TRUSTEESHIP LIMITED | E89: SELL | F89: 7400000 | G89: 361.42 | H89: NSE

Sheet Call Tracker (Equity & F&O)
M5: Back To Main Page
A6: Retail Research Technical Calls & Fundamental Performance Report for the month of February -2019
M7: =Main!B10 -> 2019-02-04
B8: Positional Call
A9: Sr.no | B9: Date | D9: Company | E9: Rec | F9: Rec Price | G9: Stop Loss*** | H9: Call Closed At | I9: Target | J9: Remark | K9: Profit / Loss per Share | L9: Gain / Loss % | M9: Status | N9: Closed Date | O9: NSE Closed Price
A10: 1 | B10: 2019-01-24 | D10: ITC | E10: Buy | F10: 279-281 | G10: 268 | I10: 305 | J10: Open | O10: =VLOOKUP(D10,Sheet2!A10:M1505,6,0) -> 280.85 | R10: R
A11: 2 | B11: 2019-01-25 | D11: UBL | E11: Sell | F11: 1435 | G11: 1510 | H11: 1392.5 | I11: 1300-1280 | J11: Part Profit of Rs.42.50/- | K11: =F11-H11 -> 42.5 | L11: =K11/F11 -> 2.96% | M11: Successful | N11: 2019-01-28 | R11: H
A12: 3 | B12: 2019-01-29 | D12: MARUTI | E12: Buy | F12: 6575 | G12: 6290 | H12: 6910 | I12: 7000-7100 | J12: Profit of Rs.335/- | K12: =H12-F12 -> 335 | L12: 5.10% | M12: Successful | N12: 2019-02-01 | R12: R
A13: 4 | B13: 2019-01-30 | D13: ULTRACEMCO | E13: Buy | F13: 3400 | G13: 3230 | H13: 3510 | I13: 3750-3800 | J13: Part Profit of Rs.110/- | K13: 110 | L13: =K13/F13 -> 3.24% | M13: Successful | N13: 2019-01-31 | R13: H
A23: CLBS = Closing Basis *** | F23: Reinitiated $
A24: Dividend adjusted <> | F24: Revised stoploss #
A25: Part book {}
A26: Master Trade High Risk
A27: Sr.no | B27: Date | D27: Company | E27: Rec | F27: Rec Price | G27: Stop Loss | H27: Call Closed At | I27: Target | J27: Remark | K27: Profit / Loss per share | L27: Gain / Loss per Lot | M27: Lot | N27: Status | O27: Closed Date
A28: 1 | B28: 2019-02-01 | D28: NIFTY FEB FUT | E28: Sell | F28: 10955 | G28: 10860 | H28: 10885 | I28: 10800 | J28: Profit of Rs.70/- | K28: =F28-H28 -> 70 | L28: =M28*K28 -> 5250 | M28: 75 | N28: Successful | O28: 2019-02-02 | R28: R
A40: Master Trade Medium Risk
A41: Sr.no | B41: Date | D41: Company | E41: Rec | F41: Rec Price | G41: Stop Loss | H41: Call Closed At | I41: Target | J41: Remark | K41: Profit/ Loss per lot | L41: Gain / Loss per Lot | M41: Lot | N41: Status | O41: Closed Date
A42: 1 | B42: 2019-02-01 | D42: JSWSTEEL FEB 280 CE | E42: Buy | F42: 8-8.5 | J42: Open | R42: H
D43: JSWSTEEL FEB 290 CE | E43: Sell | F43: 5-5.5 | R43: H
B56: Smart Delivery Trade
A57: Sr.no | B57: Date | D57: Company | E57: Rec | F57: Rec Price | G57: Stop Loss*** | H57: Call Closed At | I57: Target | J57: Remark | K57: Profit / Loss per Share | L57: Gain / Loss % | M57: Status | N57: Closed Date | O57: NSE Closed Price
A58: 1 | B58: 2019-01-29 | D58: UNIONBANK | E58: Buy | F58: 80.5 | G58: 77 | H58: 83.5 | I58: 87-88 | J58: Profit of Rs.3/- | K58: =H58-F58 -> 3 | L58: =K58/F58 -> 3.73% | M58: Successful | N58: 2019-02-01 | R58: H
A59: 2 | B59: 2019-02-01 | D59: INFY | E59: Sell | F59: 750-756 | G59: 772 | I59: 720-710 | J59: Open | R59: H
A74: CLBS = Closing Basis *** | F74: Reinitiated $
A75: Dividend adjusted <> | F75: Revised stoploss #
B78: Momentum Call
A79: Sr.no | B79: Date | D79: Company | E79: Rec | F79: Rec Price | G79: Stop Loss | H79: Call Closed At | I79: Target | J79: Remark | K79: Profit / Loss per Share/Lot | L79: Gain / Loss % | M79: Gain / Loss per Lot | N79: Lot | O79: Status | P79: Closed Date
A80: 1 | B80: 2019-01-30 | D80: AMARAJABAT FEB FUT | E80: Buy | F80: 751.5 | G80: 735 | H80: 759.5 | I80: 780 | J80: Profit of Rs.8/- | K80: =H80-F80 -> 8 | M80: =N80*K80 -> 5600 | N80: 700 | O80: Successful | P80: 2019-02-01 | R80: H
A81: 2 | B81: 2019-01-30 | D81: RAYMOND FEB FUT | E81: Buy | F81: 760 | G81: 745 | H81: 745 | I81: 790 | J81: Loss of Rs 15/- | K81: -15 | M81: =N81*K81 -> -12000 | N81: 800 | O81: UnSuccessful | P81: 2019-02-01 | R81: N
A82: 3 | B82: 2019-01-31 | D82: RELIANCE | E82: Buy | F82: 1215 | G82: 1179 | H82: 1243 | I82: 1260-1280 | J82: Profit of Rs.28/- | K82: =H82-F82 -> 28 | L82: =K82/F82 -> 2.30% | O82: Successful | P82: 2019-02-01 | R82: H
A83: 4 | B83: 2019-02-01 | D83: BHARTIARTL | E83: Buy | F83: 314-316 | G83: 308 | I83: 330 | J83: Open | R83: H
A84: 5 | B84: 2019-02-01 | D84: MINDTREE FEB FUT | E84: Buy | F84: 900-904 | G84: 882 | I84: 940 | J84: Open | R84: N
A97: CLBS = Closing Basis ***
A98: Dividend adjusted <> | F98: Reinitiated $
F99: Revised stoploss #
B100: Quick Pick Intraday
A101: Sr.no | B101: Date | D101: Company | E101: Rec | F101: Rec Price | G101: Stop Loss*** | H101: Call Closed At | I101: Target | J101: Remark | K101: Profit / Loss per Share | L101: Status | M101: Closed Date
A115: Techno -Funda (positional)
A116: Sr.no | B116: Date | D116: Company | E116: Rec | F116: Rec Price | G116: Stop Loss*** | H116: Call Closed At | I116: Target | J116: Remark | K116: Profit / Loss per Share | L116: Gain / Loss % | M116: Status | N116: Closed Date | O116: NSE Closed Price
A119: CLBS = Closing Basis *** | F119: Reinitiated $
A120: Dividend adjusted <> | F120: Revised stoploss #
B125: Investment Idea
A126: Sr.no | B126: Date | D126: Company | E126: Rec | F126: Rec Price | G126: Point of Review | H126: Close Rate | I126: Target | J126: Remark | K126: Profit / Loss per Share | L126: Gain / Loss % | M126: Status | N126: Closed Date
A127: 1 | B127: 2013-11-01 | D127: L&T Finance Holding | E127: Accu | F127: 82.00 | G127: - | H127: 100 | I127: 100.00 | J127: Target Achieved | K127: =H127-F127 -> 18.00 | L127: =K127/F127 -> 21.95% | M127: Successful | N127: 2016-10-14
A128: 2 | B128: 2014-06-04 | D128: Finolex Inds | E128: Buy | F128: 257.00 | G128: - | H128: 300 | I128: 300.00 | J128: Target Achieved | K128: =H128-F128 -> 43.00 | L128: 16.73% | M128: Successful | N128: 2014-07-02
A129: =1+A128 -> 3 | B129: 2014-07-08 | D129: JK Cement | E129: Buy | F129: 393.00 | G129: - | H129: 468 | I129: 468.00 | J129: Target Achieved | K129: =H129-F129 -> 75.00 | L129: 19.08% | M129: Successful | N129: 2014-08-12
A130: 4 | B130: 2014-08-06 | D130: Finolex Cables | E130: Buy | F130: 205.00 | G130: - | H130: 275 | I130: 250.00 | J130: Target Achieved | K130: 70.00 | L130: 34.15% | M130: Successful | N130: 2014-11-19
A131: 5 | B131: 2014-09-04 | D131: Exide Inds | E131: Buy | F131: 162.00 | G131: - | H131: 190 | I131: 190.00 | J131: Target Achieved | K131: 28.00 | L131: 17.28% | M131: Successful | N131: 2015-01-02
A132: 6 | B132: 2014-09-04 | D132: Deepak Nitrite | E132: Buy | F132: 75.00 | G132: - | H132: 91.5 | I132: 95-100 | J132: Profit of Rs.16.50/- | K132: 16.50 | L132: 22.00% | M132: Successful | N132: 2014-11-11
A133: 7 | B133: 2014-10-01 | D133: Mercks | E133: Buy | F133: 850.00 | G133: - | H133: 982.5 | I133: 1050.00 | J133: Profit of Rs.132.50/- | K133: 132.50 | L133: 15.59% | M133: Successful | N133: 2015-02-04
A134: 8 | B134: 2014-10-01 | D134: Grindwell Norton | E134: Buy | F134: 475.00 | G134: - | H134: 515 | I134: 600.00 | J134: Profit of Rs.40/- | K134: 40.00 | L134: 8.42% | M134: Successful | N134: 2014-10-27
A135: 9 | B135: 2014-10-01 | D135: Snowman Logistics | E135: Buy | F135: 86.00 | G135: - | H135: 99 | I135: 140.00 | J135: Profit of Rs.13.00/- | K135: 13.00 | L135: 15.12% | M135: Successful | N135: 2014-10-27
A136: 10 | B136: 2014-10-14 | D136: Birla Corp | E136: Buy | F136: 496.60 | G136: - | H136: 621 | I136: 580.00 | J136: Target Achieved | K136: 124.40 | L136: 25.05% | M136: Successful | N136: 2016-08-23
A137: 11 | B137: 2014-10-14 | D137: Ultratech Cem | E137: Buy | F137: 2481.90 | G137: - | H137: 2840 | I137: 2870.00 | J137: Profit of Rs.358.10/- | K137: 358.10 | L137: 14.43% | M137: Successful | N137: 2015-01-13
A138: =1+A135 -> 10 | B138: 2014-10-16 | D138: Sintex Inds | E138: Buy | F138: 84.50 | G138: - | H138: 93 | I138: 110.00 | J138: Profit of Rs.8.50/- | K138: 8.50 | L138: 10.06% | M138: Successful | N138: 2014-10-27
A139: =1+A138 -> 11 | B139: 2014-10-16 | D139: HSIL | E139: Buy | F139: 401.00 | G139: - | H139: 428 | I139: 450.00 | J139: Profit of Rs.27.00/- | K139: 27.00 | L139: 6.73% | M139: Successful | N139: 2015-01-16
A140: 12 | B140: 2014-10-16 | D140: Eveready Inds | E140: Buy | F140: 101.00 | G140: - | H140: 112 | I140: 120.00 | J140: Profit of Rs.11.00/- | K140: 11.00 | L140: 10.89% | M140: Successful | N140: 2014-10-27
A141: 13 | B141: 2014-11-11 | D141: Pennar Inds | E141: Buy | F141: 59.00 | G141: - | H141: 76 | I141: 76.00 | J141: Target Achieved | K141: 17.00 | L141: 28.81% | M141: Successful | N141: 2017-10-24
A142: 14 | B142: 2014-11-11 | D142: Snowman Logistics | E142: Buy | F142: 99.00 | G142: - | H142: 120 | I142: 120.00 | J142: Profit of Rs.21/- | K142: 21.00 | L142: 21.21% | M142: Successful | N142: 2014-11-17
A143: 15 | B143: 2014-11-13 | D143: Dharamsi Morarji Chem | E143: Buy | F143: 22.00 | G143: - | H143: 33.55 | I143: 32.00 | J143: Profit of Rs 11.55/- | K143: 11.55 | L143: 52.50% | M143: Successful | N143: 2015-07-03
A144: 16 | B144: 2014-12-03 | D144: Tatachem | E144: Buy | F144: 440.00 | G144: - | H144: 520 | I144: 520.00 | J144: Profit of Rs 80.00/- | K144: 80.00 | L144: 18.18% | M144: Successful | N144: 2015-07-23
A145: 17 | B145: 2014-12-03 | D145: Advanta | E145: Buy | F145: 360.00 | G145: - | H145: 427 | I145: 425.00 | J145: Profit of Rs.67.00/- | K145: 67.00 | L145: 18.61% | M145: Successful | N145: 2015-02-23
A146: 18 | B146: 2015-01-08 | D146: GDL | E146: Buy | F146: 360.00 | G146: - | H146: 455 | I146: 420.00 | J146: Profit of Rs.95.00/- | K146: 95.00 | L146: 26.39% | M146: Successful | N146: 2015-01-20
A147: 19 | B147: 2015-01-08 | D147: NRB Bearing | E147: Buy | F147: 130.00 | H147: 175.5 | I147: 165.00 | J147: Profit of Rs 45.50/- | K147: 45.50 | L147: 35.00% | M147: Successful | N147: 2017-12-19
A148: 20 | B148: 2015-02-05 | D148: GSFC | E148: Accu | F148: 98.00 | H148: 120 | I148: 120.00 | J148: Target Achieved | K148: 22.00 | L148: 22.45% | M148: Successful | N148: 2017-01-18
A149: 21 | B149: 2015-02-05 | D149: Sundrmfast | E149: Accu | F149: 196.00 | H149: 262 | I149: 255.00 | J149: Target Achieved | K149: 66.00 | L149: 33.67% | M149: Successful | N149: 2016-08-17
A150: 22 | B150: 2015-03-04 | D150: GPPL | E150: Accu | F150: 230-240 | I150: 280-285 | J150: Open
A151: 23 | B151: 2015-03-04 | D151: ORIENTCEM | E151: Accu | F151: 185.00 | H151: 224 | I151: 220-225 | J151: Target Achieved | K151: 39.00 | L151: =K151/F151 -> 21.08% | M151: Successful | N151: 2016-10-04
A152: 24 | B152: 2015-03-27 | D152: PFS | E152: Accu | F152: 49-50 | I152: 67.00 | J152: Open
A153: 25 | B153: 2015-03-30 | D153: Walchandnagar Ind Ltd | E153: Accu | F153: 183.50 | H153: 219 | I153: 218.00 | J153: Profit of Rs.35.50/- | K153: 35.50 | L153: =K153/F153 -> 19.35% | M153: Successful | N153: 2015-04-09
A154: 26 | B154: 2015-04-20 | D154: Kalpataru Power Transmission Ltd | E154: Accu | F154: =(227+237)/2 -> 232.00 | H154: 298 | I154: 298.00 | J154: Target Achieved | K154: 66.00 | L154: 28.45% | M154: Successful | N154: 2017-03-29
A155: 27 | B155: 2015-05-04 | D155: Mastek Ltd | E155: Buy | F155: 385.00 | H155: =212.5+331 -> 543.5 | I155: 510.00 | J155: Profit of Rs 158.50/- | K155: 158.50 | L155: 41.17% | M155: Successful | N155: 2015-08-19
A156: 28 | B156: 2015-05-04 | D156: Suprajit Eng | E156: Buy | F156: 115.50 | H156: 146 | I156: 142.00 | J156: Profit of Rs 30.50/- | K156: 30.50 | L156: 26.41% | M156: Successful | N156: 2015-07-17
A157: 29 | B157: 2015-05-27 | D157: TCI | E157: Buy | F157: 237.50 | H157: 279.5 | I157: 278.00 | J157: Target Achieved | K157: 42.00 | L157: 17.68% | M157: Successful | N157: 2015-08-06
A158: 30 | B158: 2015-06-19 | D158: HSIL | E158: Accu | F158: 340.00 | H158: 448 | I158: 448.00 | J158: Target Achieved | K158: 108.00 | L158: 31.76% | M158: Successful | N158: 2017-10-10
A159: 31 | B159: 2015-07-06 | D159: Capital First | E159: Accu | F159: 390.00 | H159: 460 | I159: 460.00 | J159: Target Achieved | K159: 70.00 | L159: 17.95% | M159: Successful | N159: 2016-04-18
A160: 32 | B160: 2015-07-10 | D160: Dolphin OffShore | E160: Accu | F160: 122.5 | H160: 61.00 | I160: 172.00 | J160: Loss of Rs.61.50/- | K160: -61.50 | L160: -50.20% | M160: Unsuccessful | N160: 2018-08-21
A161: 33 | B161: 2015-08-03 | D161: Allcargo logistics | E161: Accu | F161: 297.50 | H161: 350 | I161: 360.00 | J161: Profit of Rs 52.50/- | K161: 52.50 | L161: =K161/F161 -> 17.65% | M161: Successful | N161: 2015-08-16
A162: 34 | B162: 2015-08-03 | D162: Camline Fine | E162: Accu | F162: 115.50 | H162: 149 | I162: 140.00 | J162: Profit of Rs 33.50/- | K162: 33.50 | L162: 29.00% | M162: Successful | N162: 2017-01-05
A163: 35 | B163: 2015-09-04 | D163: TCI | E163: Accu | F163: 226.00 | H163: 292 | I163: 292.00 | J163: Target Achieved | K163: 66.00 | L163: 29.20% | M163: Successful | N163: 2015-10-09
A164: 36 | B164: 2015-09-07 | D164: Kalpataru Power Transmission Ltd | E164: Accu | F164: 232.50 | H164: 312.5 | I164: 310.00 | J164: Target Achieved | K164: 80.00 | L164: 34.41% | M164: Successful | N164: 2017-03-29
A165: 37 | B165: 2015-09-21 | D165: LLOYD ELECTRIC & ENG LTD | E165: Accu | F165: 196.50 | H165: 238 | I165: 238.00 | J165: Target Achieved | K165: 41.50 | L165: 21.12% | M165: Successful | N165: 2015-10-14
A166: 38 | B166: 2015-09-24 | D166: L&T Finance Holding | E166: Accu | F166: 65.00 | H166: 82 | I166: 82.00 | J166: Target Achieved | K166: 17.00 | L166: 26.15% | M166: Successful | N166: 2016-07-27
A167: 39 | B167: 2015-10-14 | D167: KEC International ltd | E167: Accu | F167: 144.00 | H167: 182.5 | I167: 181.00 | J167: Target Achieved | K167: 38.50 | L167: 26.74% | M167: Successful | N167: 2017-03-23
A168: 40 | B168: 2015-10-14 | D168: Gruh Finance | E168: Accu | F168: 264.00 | H168: 311 | I168: 311.00 | J168: Target Achieved | K168: 47.00 | L168: 17.80% | M168: Successful | N168: 2016-08-22
A169: 41 | B169: 2015-11-10 | D169: Pidilitind | E169: Buy | F169: 549.50 | H169: 630 | I169: 630.00 | J169: Target Achieved | K169: 80.50 | L169: 14.65% | M169: Successful | N169: 2016-02-19
A170: 42 | B170: 2015-12-04 | D170: Zensar Technology | E170: Accu | F170: 1027.50 | H170: 1315 | I170: 1250.00 | J170: Target Achieved | K170: =H170-F170 -> 287.50 | L170: 27.98% | M170: Successful | N170: 2018-05-24
A171: 43 | B171: 2015-12-29 | D171: Vinati Organics Ltd | E171: Accu | F171: 465.00 | H171: 540 | I171: 540.00 | J171: Target Achieved | K171: 75.00 | L171: =K171/F171 -> 16.13% | M171: Successful | N171: 2016-06-09
A172: 44 | B172: 2016-01-11 | D172: GSFC | E172: Buy | F172: 81.00 | H172: 110 | I172: 110.00 | J172: Target Achieved | K172: 29.00 | L172: 35.80% | M172: Successful | N172: 2017-01-10
A173: 45 | B173: 2016-01-13 | D173: SSWL | E173: Buy | F173: 417.50 | H173: 547 | I173: 535.00 | J173: Target Achieved | K173: 129.50 | L173: 31.02% | M173: Successful | N173: 2016-07-27
A174: 46 | B174: 2016-02-08 | D174: Persistent System Ltd | E174: Accu | F174: 650.00 | H174: 800 | I174: 800.00 | J174: Target Achieved | K174: 150.00 | L174: 23.08% | M174: Successful | N174: 2018-02-23
A175: 47 | B175: 2016-03-04 | D175: UPL | E175: Accu | F175: 437.50 | H175: 504.5 | I175: 522.00 | J175: Profit of Rs.67/- | K175: 67.00 | L175: 15.31% | M175: Successful | N175: 2016-04-20
A176: 48 | B176: 2016-03-09 | D176: Ashoka Buildcon Ltd | E176: Accu | F176: 189.50 | H176: 218 | I176: 218.00 | J176: Target Achieved | K176: 28.50 | L176: 15.04% | M176: Successful | N176: 2017-10-26
A177: 49 | B177: 2016-04-11 | D177: PTC INDIA FIN SERV LTD | E177: Accu | F177: 36-37 | I177: 60.00 | J177: Open
A178: 50 | B178: 2016-04-12 | D178: CAMLINFINE $ | E178: Accu | F178: 93.00 | H178: 149 | I178: 140.00 | J178: Profit of Rs 56/- | K178: 56.00 | L178: =K178/F178 -> 60.22% | M178: Successful | N178: 2017-01-05
A179: 51 | B179: 2016-04-12 | D179: Greaves Cotton Ltd. | E179: Accu | F179: 130.00 | H179: 150 | I179: 150-155 | J179: Target Achieved | K179: 20.00 | L179: 15.38% | M179: Successful | N179: 2016-07-13
A180: 52 | B180: 2016-04-13 | D180: DHFL | E180: Accu | F180: 196.00 | H180: 299 | I180: 299.00 | J180: Target Achieved | K180: 103.00 | L180: 52.55% | M180: Successful | N180: 2016-09-07
A181: 53 | B181: 2016-04-13 | D181: Magma | E181: Accu | F181: 88.00 | H181: 103 | I181: 103.00 | J181: Target Achieved | K181: 15.00 | L181: 17.05% | M181: Successful | N181: 2016-06-09
A182: 54 | B182: 2016-05-02 | D182: KEC International ltd $ | E182: Accu | F182: 127.50 | H182: 148 | I182: 148-150 | J182: Target Achieved | K182: 20.50 | L182: 16.08% | M182: Successful | N182: 2016-07-13
A183: 55 | B183: 2016-05-03 | D183: Mindtree | E183: Accu | F183: 675.00 | H183: 815 | I183: 790-800 | J183: Target Achieved | K183: 140.00 | L183: 20.74% | M183: Successful | N183: 2018-02-23
A184: 56 | B184: 2016-06-01 | D184: Atulauto | E184: Accu | F184: 495-505 | I184: 565-570 | J184: Open
A185: 57 | B185: 2016-06-06 | D185: TRITURBINE | E185: Accu | F185: 110.00 | H185: 126.5 | I185: 125.00 | J185: Profit of Rs.16.50/- | K185: 16.50 | L185: =K185/F185 -> 15.00% | M185: Successful | N185: 2016-07-01
A186: 58 | B186: 2016-06-17 | D186: Pennar Industries Ltd | E186: Accu | F186: 44.00 | H186: 69.5 | I186: 69.50 | J186: Profit of Rs.25.50/- | K186: 25.50 | L186: =K186/F186 -> 57.95% | M186: Successful | N186: 2017-08-30
A187: 59 | B187: 2016-06-28 | D187: EVEREADY INDS. IND. LTD. | E187: Accu | F187: 262.50 | H187: 340 | I187: 333.00 | J187: Profit of Rs.77.50/- | K187: 77.50 | L187: =K187/F187 -> 29.52% | M187: Successful | N187: 2017-10-09
A188: 60 | B188: 2016-06-28 | D188: FIEM INDUSTRIES LIMITED | E188: Accu | F188: 840.00 | H188: 1230 | I188: 1230.00 | J188: Target Achieved | K188: 390.00 | L188: =K188/F188 -> 46.43% | M188: Successful | N188: 2016-10-06
A189: 61 | B189: 2016-07-05 | D189: Bajaj Corp Ltd | E189: Accu | F189: 395 | H189: 468.50 | I189: 510.00 | J189: Part profit of Rs.73.50/- | K189: 73.50 | L189: =K189/F189 -> 19% | M189: Successful | N189: 2017-08-30
A190: 62 | B190: 2016-08-02 | D190: GPPL $ | E190: Buy | F190: 167-172 | I190: 198-200 | J190: Open
A191: 63 | B191: 2016-08-04 | D191: WONDERLA HOLIDAYS LTD | E191: Accu | F191: 395-405 | I191: 475.00 | J191: Open
A192: 64 | B192: 2016-08-11 | D192: CAMLINFINE | E192: Accu | F192: 86.50 | H192: 130 | I192: 130.00 | J192: Profit of Rs.43.50/- | K192: =H192-F192 -> 43.50 | L192: =K192/F192 -> 50.29% | M192: Successful | N192: 2017-12-22
A193: 65 | B193: 2016-08-18 | D193: GRANULES | E193: Accu | F193: 133.5 | H193: 126.50 | I193: 178.00 | J193: Exit | K193: -7.00 | L193: -5.24% | M193: Unsuccessful | N193: 2016-09-02
A194: 66 | B194: 2016-08-31 | D194: VA TECH WABAG | E194: Accu | F194: 560.00 | H194: 725 | I194: 725.00 | J194: Target Achieved | K194: 165.00 | L194: 29.46% | M194: Successful | N194: 2016-03-27
A195: 67 | B195: 2016-09-01 | D195: SKIPPER LIMITED | E195: Accu | F195: 160.50 | H195: 210 | I195: 210.00 | J195: Target Achieved | K195: 49.50 | L195: 30.84% | M195: Successful | N195: 2017-05-16
A196: 68 | B196: 2016-10-03 | D196: IFB Industries | E196: Accu | F196: 430.00 | H196: 596 | I196: 575.00 | J196: Profit of Rs.166/- | K196: 166.00 | L196: 38.60% | M196: Successful | N196: 2017-02-03
A197: 69 | B197: 2016-10-14 | D197: ASIANTILES | E197: Accu | F197: 280.00 | H197: 345 | I197: 345.00 | J197: Target Achieved | K197: 65.00 | L197: 23.21% | M197: Successful | N197: 2017-03-20
A198: 70 | B198: 2016-10-14 | D198: DEEPIND | E198: Accu | F198: 245.00 | H198: 325.5 | I198: 330.00 | J198: Profit of Rs.80.5/- | K198: 80.50 | L198: 32.86% | M198: Successful | N198: 2017-02-03
A199: 71 | B199: 2016-10-17 | D199: DCBBANK | E199: Accu | F199: 125.00 | H199: 160 | I199: 160.00 | J199: Target Achieved | K199: 35.00 | L199: 28.00% | M199: Successful | N199: 2017-03-09
A200: 72 | B200: 2016-10-17 | D200: ORIENTREF | E200: Accu | F200: 114.00 | H200: 145 | I200: 145.00 | J200: Target Achieved | K200: 31.00 | L200: =K200/F200 -> 27.19% | M200: Successful | N200: 2017-05-04
A201: 73 | B201: 2016-10-17 | D201: GANECOS | E201: Accu | F201: 212.00 | H201: 280 | I201: 276.00 | J201: Profit of Rs.68/- | K201: 68.00 | L201: =K201/F201 -> 32.08% | M201: Successful | N201: 2017-05-03
A202: 74 | B202: 2016-11-04 | D202: NBCC | E202: Accu | F202: 155.00 | H202: 210 | I202: 210.00 | J202: Profit of Rs.55/- | K202: 55.00 | L202: =K202/F202 -> 35.48% | M202: Successful | N202: 2017-07-28
A203: 75 | B203: 2016-12-06 | D203: PRECAM | E203: Accu | F203: 150.5 | H203: 72.50 | I203: 174.00 | J203: Loss of Rs.78/- | K203: -78.00 | L203: =K203/F203 -> -51.83% | M203: Unsuccessful | N203: 2018-08-21
A204: 76 | B204: 2016-12-08 | D204: INFRATEL | E204: Accu | F204: 380.00 | H204: 478 | I204: 468.00 | J204: Target Achieved | K204: 98.00 | L204: =K204/F204 -> 25.79% | M204: Successful | N204: 2017-10-17
A205: 77 | B205: 2016-12-30 | D205: GODREJPROP | E205: Accu | F205: 305.00 | H205: 375 | I205: 375.00 | J205: Target Achieved | K205: 70.00 | L205: 22.95% | M205: Successful | N205: 2017-02-02
A206: 78 | B206: 2017-01-04 | D206: DEEPAKNTR | E206: Accu | F206: 99.50 | H206: 158 | I206: 158.00 | J206: Target Achieved | K206: 58.50 | L206: 58.79% | M206: Successful | N206: 2017-06-12
A207: 79 | B207: 2017-02-20 | D207: SUBROS | E207: Accu | F207: 202.50 | H207: 234 | I207: 234.00 | J207: Target Achieved | K207: 31.50 | L207: 15.56% | M207: Successful | N207: 2017-04-11
A208: 80 | B208: 2017-02-20 | D208: RECLTD | E208: Accu | F208: 140.50 | H208: 220 | I208: 220.00 | J208: Target Achieved | K208: 79.50 | L208: 56.58% | M208: Successful | N208: 2017-05-09
A209: 81 | B209: 2017-03-24 | D209: VRLLOG | E209: Accu | F209: 300.50 | H209: 417.5 | I209: 420.00 | J209: Profit of Rs.117/- | K209: 117.00 | L209: 38.94% | M209: Successful | N209: 2017-12-01
A210: 82 | B210: 2017-03-24 | D210: FIEMIND | E210: Accu | F210: 850.00 | H210: 1042.5 | I210: 1023.00 | J210: Profit of Rs 192.50/- | K210: 192.50 | L210: 22.65% | M210: Successful | N210: 2017-04-05
A211: 83 | B211: 2017-04-05 | D211: RATNAMANI | E211: Accu | F211: 785.00 | H211: 930 | I211: 920.00 | J211: Profit of Rs.145/- | K211: 145.00 | L211: 18.47% | M211: Successful | N211: 2017-08-29
A212: 84 | B212: 2017-04-06 | D212: ZEEMEDIA | E212: Accu | F212: 39-41 | I212: 60.00 | J212: Open
A213: 85 | B213: 2017-04-12 | D213: DABUR | E213: Accu | F213: 289.50 | H213: 354 | I213: 360.00 | J213: Profit of Rs.64.5/- | K213: 64.50 | L213: =K213/F213 -> 22.28% | M213: Successful | N213: 2017-11-01
A214: 86 | B214: 2017-04-20 | D214: KPRMILL | E214: Accu | F214: 700.00 | H214: 840 | I214: 840.00 | J214: Profit of Rs.140/- | K214: 140.00 | L214: =K214/F214 -> 20.00% | M214: Successful | N214: 2017-06-07
A215: 87 | B215: 2017-05-22 | D215: GREAVESCOT | E215: Accu | F215: 153-158 | I215: 190.00 | J215: Open
A216: 88 | B216: 2017-06-01 | D216: ESSELPACK | E216: Accu | F216: 130 | H216: 155.50 | I216: 170.00 | J216: Part profit of Rs.51/- | K216: =H216-F216 -> 25.50 | L216: =K216/F216 -> 20% | M216: Successful | N216: 2017-11-17
A217: 89 | B217: 2017-06-15 | D217: KEI | E217: Accu | F217: 214.50 | H217: 262 | I217: 262.00 | J217: Profit of Rs.47.5/- | K217: =H217-F217 -> 47.50 | L217: 22.14% | M217: Successful | N217: 2017-08-30
A218: 90 | B218: 2017-07-17 | D218: MAYURUNIQ | E218: Accu | F218: 370.00 | H218: 447.5 | I218: 450.00 | J218: Target Achieved | K218: 77.50 | L218: 20.95% | M218: Successful | N218: 2017-10-27
A219: 91 | B219: 2017-07-27 | D219: RAMCOCEM | E219: Accu | F219: 657.50 | H219: 825 | I219: 820.00 | J219: Target Achieved | K219: 167.50 | L219: 25.48% | M219: Successful | N219: 2017-12-21
A220: 92 | B220: 2017-08-17 | D220: FINPIPE | E220: Accu | F220: 605.00 | H220: 750 | I220: 750.00 | J220: Profit of Rs.145/- | K220: 145.00 | L220: 23.97% | M220: Successful | N220: 2017-10-19
A221: 93 | B221: 2017-09-01 | D221: SHK | E221: Accu | F221: 255 | H221: 307.50 | I221: 320.00 | J221: Part profit of Rs.52.5/- | K221: 52.50 | L221: 21% | M221: Successful | N221: 2017-12-29
A222: 94 | B222: 2017-09-19 | D222: SKIPPER | E222: Accu | F222: 215.00 | H222: 258 | I222: 258.00 | J222: Target Achieved | K222: 43.00 | L222: 20.00% | M222: Successful | N222: 2017-11-01
A223: 95 | B223: 2017-09-20 | D223: CAMLINFINE | E223: Accu | F223: 75.00 | H223: 90 | I223: 90.00 | J223: Profit of Rs.15.00/- | K223: 15.00 | L223: 20.00% | M223: Successful | N223: 2017-10-11
A224: 96 | B224: 2017-10-03 | D224: GNA | E224: Accu | F224: 315.00 | H224: 392 | I224: 384.00 | J224: Profit of Rs.77/- | K224: 77.00 | L224: 24.44% | M224: Successful | N224: 2017-10-09
A225: 97 | B225: 2017-10-05 | D225: NOCIL | E225: Accu | F225: 145.00 | H225: 179 | I225: 180.00 | J225: Profit of Rs.34/- | K225: 34.00 | L225: 23.45% | M225: Successful | N225: 2017-10-17
A226: 98 | B226: 2017-10-06 | D226: CENTURYPLY | E226: Accu | F226: 256.00 | H226: 323 | I226: 320.00 | J226: Target Achieved | K226: 67.00 | L226: 26.17% | M226: Successful | N226: 2017-11-28
A227: 99 | B227: 2017-10-09 | D227: RECLTD | E227: Accu | F227: 152.5 | H227: 183.50 | I227: 210.00 | J227: Part Profit of Rs.31/- | K227: 31.00 | L227: 20% | M227: Successful | N227: 2017-11-03
A228: 100 | B228: 2017-10-09 | D228: EIHOTEL | E228: Accu | F228: 137.50 | H228: 184 | I228: 183.00 | J228: Profit of Rs.46.5/- | K228: 46.50 | L228: 33.82% | M228: Successful | N228: 2018-01-08
A229: 101 | B229: 2017-10-10 | D229: BOROSIL | E229: Accu | F229: 895.00 | H229: 1122.5 | I229: 1078.00 | J229: Profit of Rs.227.5/- | K229: 227.50 | L229: 25.42% | M229: Successful | N229: 2018-01-17
A230: 102 | B230: 2017-10-10 | D230: NRBBEARING | E230: Accu | F230: 125.50 | H230: 158 | I230: 155.00 | J230: Profit of Rs.32.5/- | K230: 32.50 | L230: 25.90% | M230: Successful | N230: 2017-11-28
A231: 103 | B231: 2017-10-12 | D231: CYIENT | E231: Accu | F231: 525.00 | H231: 629 | I231: 629.00 | J231: Target Achieved | K231: 104.00 | L231: 19.81% | M231: Successful | N231: 2018-01-19
A232: 104 | B232: 2017-11-07 | D232: HATSUN | E232: Accu | F232: 740.00 | H232: 892.5 | I232: 900.00 | J232: Profit of Rs.152.5/- | K232: 152.50 | L232: 20.61% | M232: Successful | N232: 2017-11-13
A233: 105 | B233: 2017-12-04 | D233: SANGHIIND | E233: Accu | F233: 118.50 | H233: 143.5 | I233: 145.00 | J233: Profit of Rs.25/- | K233: 25.00 | L233: 21.10% | M233: Successful | N233: 2017-12-28
A234: 106 | B234: 2017-12-05 | D234: ALLCARGO | E234: Accu | F234: 177.5 | H234: 215.00 | I234: 230.00 | J234: Part Profit of Rs.37.5/- | K234: 37.50 | L234: 21% | M234: Successful | N234: 2017-12-27
A235: 107 | B235: 2017-12-21 | D235: KAJARIACER | E235: Accu | F235: 710-720 | I235: 872.00 | J235: Open
A236: 108 | B236: 2017-12-29 | D236: GNA | E236: Accu | F236: 435.00 | H236: 542.5 | I236: 539.00 | J236: Target Achieved | K236: =H236-F236 -> 107.50 | L236: =K236/F236 -> 24.71% | M236: Successful | N236: 2018-04-16
A237: 109 | B237: 2017-12-29 | D237: ZENSARTECH | E237: Accu | F237: 885.00 | H237: 1090 | I237: 1084.00 | J237: Target Achieved | K237: 205.00 | L237: =K237/F237 -> 23.16% | M237: Successful | N237: 2018-04-23
A238: 110 | B238: 2018-02-07 | D238: GREAVESCOT | E238: Accu | F238: 130-132 | I238: 190.00 | J238: Open
A239: 111 | B239: 2018-02-27 | D239: MOLDTKPAC | E239: Accu | F239: 320-330 | I239: 398.00 | J239: Open
A240: 112 | B240: 2018-03-05 | D240: LICHSGFIN | E240: Accu | F240: 505-515 | I240: 672.00 | J240: Open
A241: 113 | B241: 2018-04-02 | D241: EVERESTIND | E241: Accu | F241: 492.5 | H241: 589.00 | I241: 613.00 | J241: Part Profit of Rs.37.5/- | K241: =H241-F241 -> 96.50 | L241: =K241/F241 -> 20% | M241: Successful | N241: 2018-08-21
A242: 114 | B242: 2018-04-04 | D242: GPPL | E242: Accu | F242: 140-143 | I242: 180.00 | J242: Open
A243: 115 | B243: 2018-04-19 | D243: MANPASAND | E243: Accu | F243: 430 | H243: 220.00 | I243: 537.00 | J243: Loss of Rs.210/- | K243: =H243-F243 -> -210.00 | L243: =K243/F243 -> -48.84% | M243: Unsuccessful | N243: 2018-06-01
A244: 116 | B244: 2018-04-30 | D244: HEIDELBERG | E244: Accu | F244: 154-158 | I244: 196.00 | J244: Open
A245: 117 | B245: 2018-05-17 | D245: PHILIPCARB | E245: Accu | F245: 230-240 | I245: 348.00 | J245: Open
A246: 118 | B246: 2018-06-07 | D246: KEC | E246: Accu | F246: 340-345 | I246: 439.00 | J246: Open
A247: 119 | B247: 2018-07-04 | D247: ASHOKLEY | E247: Accu | F247: 125-130 | I247: 170.00 | J247: Open
A248: 120 | B248: 2018-07-13 | D248: FCONSUMER | E248: Accu | F248: 46-47 | I248: 59.00 | J248: Open
A249: 121 | B249: 2018-07-25 | D249: ZEEMEDIA | E249: Accu | F249: 27-28 | I249: 44.00 | J249: Open
A250: 122 | B250: 2018-08-06 | D250: GABRIEL | E250: Accu | F250: 148-152 | I250: 182.00 | J250: Open
A251: 123 | B251: 2018-08-23 | D251: INDIANHUME | E251: Accu | F251: 285.00 | H251: 355 | I251: 364.00 | J251: Profit of Rs.70/- | K251: =H251-F251 -> 70.00 | L251: =K251/F251 -> 24.56% | M251: Successful | N251: 2018-12-21
A252: 124 | B252: 2018-08-29 | D252: GRINDWELL | E252: Accu | F252: 520-530 | I252: 635.00 | J252: Open
A253: 125 | B253: 2018-10-22 | D253: FINPIPE | E253: Accu | F253: 475.00 | H253: 574 | I253: 570.00 | J253: Target Achieved | K253: =H253-F253 -> 99.00 | L253: =K253/F253 -> 20.84% | M253: Successful | N253: 2018-10-30
A254: 126 | B254: 2018-10-23 | D254: JKPAPER | E254: Accu | F254: 158-162 | I254: 191.00 | J254: Open
A255: 127 | B255: 2018-10-24 | D255: GULFOILLUB | E255: Accu | F255: 707.50 | H255: 872 | I255: 872.00 | J255: Target Achieved | K255: =H255-F255 -> 164.50 | L255: =K255/F255 -> 23.25% | M255: Successful | N255: 2019-01-17
A256: 128 | B256: 2018-10-25 | D256: GODREJCP | E256: Accu | F256: 707.5 | H256: 850.00 | I256: 890.00 | J256: Part Profit of Rs.142.5/- | K256: =H256-F256 -> 142.50 | L256: =K256/F256 -> 20% | M256: Successful | N256: 2018-12-19
A257: 129 | B257: 2018-10-25 | D257: DBCORP | E257: Accu | F257: 161-167 | I257: 209.00 | J257: Open
A258: 130 | B258: 2018-10-26 | D258: RITES | E258: Accu | F258: 240.00 | H258: 297 | I258: 297.00 | J258: Target Achieved | K258: =H258-F258 -> 57.00 | L258: =K258/F258 -> 23.75% | M258: Successful | N258: 2018-11-13
A259: 131 | B259: 2018-12-05 | D259: CCL | E259: Accu | F259: 260-270 | I259: 321.00 | J259: Open
A260: 132 | B260: 2018-12-05 | D260: VARROC | E260: Accu | F260: 710-720 | I260: 840.00 | J260: Open
A261: 133 | B261: 2018-12-05 | D261: BRIGADE | E261: Accu | F261: 202.5 | H261: 242.50 | I261: 252.00 | J261: Part Profit of Rs.40/- | K261: =H261-F261 -> 40.00 | L261: =K261/F261 -> 20% | M261: Successful | N261: 2018-12-26
A262: 134 | B262: 2018-12-31 | D262: JKCEMENT | E262: Accu | F262: 705-715 | I262: 866.00 | J262: Open
A263: 135 | B263: 2019-01-04 | D263: MGL | E263: Accu | F263: 890-900 | I263: 1185.00 | J263: Open
F268: Reinitiated $
A270: Disclaimer:
A271: This document has been prepared by the Retail Research Desk of Asit C Mehta
A272: Investment Intermediates Ltd. and is meant for use of the recipient only
A273: and is not for circulation. This document is not to be reported or
A274: copied or made available to others. It should not be considered to be
A275: taken as an offer to sell or a solicitation to buy any security. The
A276: information contained herein is from sources believed reliable. We do
A277: not represent that it is accurate or complete and it should not be
A278: relied upon as such. We may from time to time have positions in and buy
A279: and sell securities referred to herein
A391: 26 | B391: 2019-01-15 | D391: TORNTPHARM JAN FUT | E391: Buy | F391: 1890 | G391: 1867 | H391: 1908 | I391: 1940 | J391: Profit of Rs.18/- | K391: =H391-F391 -> 18 | M391: =N391*K391 -> 9000 | N391: 500 | O391: Successful | P391: 2019-01-15

Sheet Sheet2 (hidden)
A1: SYMBOL | B1: SERIES | C1: OPEN | D1: HIGH | E1: LOW | F1: CLOSE | G1: LAST | H1: PREVCLOSE | I1: TOTTRDQTY | J1: TOTTRDVAL | K1: TIMESTAMP | L1: TOTALTRADES | M1: ISIN | N1: ISIN
A2: 20MICRONS | B2: EQ | C2: 37.9 | D2: 38.9 | E2: 36.75 | F2: 38 | G2: 38 | H2: 37.05 | I2: 21920 | J2: 832731.8 | K2: 2019-02-01 | L2: 282 | M2: INE144J01027
A3: 21STCENMGM | B3: EQ | C3: 21.3 | D3: 21.3 | E3: 21.15 | F3: 21.15 | G3: 21.15 | H3: 21.55 | I3: 1369 | J3: 28955.85 | K3: 2019-02-01 | L3: 16 | M3: INE253B01015
A4: 3IINFOTECH | B4: EQ | C4: 3.35 | D4: 3.35 | E4: 3.25 | F4: 3.3 | G4: 3.35 | H4: 3.35 | I4: 1654995 | J4: 5481208.05 | K4: 2019-02-01 | L4: 654 | M4: INE748C01020
A5: 3MINDIA | B5: EQ | C5: 20160 | D5: 20590 | E5: 20160 | F5: 20293.5 | G5: 20300 | H5: 20151.6 | I5: 1270 | J5: 25827761.6 | K5: 2019-02-01 | L5: 334 | M5: INE470A01017
A6: 3PLAND | B6: EQ | C6: 11.2 | D6: 12.1 | E6: 10.3 | F6: 11.5 | G6: 11.5 | H6: 10.5 | I6: 861 | J6: 9804.35 | K6: 2019-02-01 | L6: 19 | M6: INE105C01023
A7: 5PAISA | B7: EQ | C7: 242.75 | D7: 247.7 | E7: 235.3 | F7: 236.35 | G7: 235.3 | H7: 242.75 | I7: 2543 | J7: 609448.2 | K7: 2019-02-01 | L7: 256 | M7: INE618L01018
A8: 63MOONS | B8: EQ | C8: 89.75 | D8: 89.75 | E8: 84.3 | F8: 84.95 | G8: 84.6 | H8: 88.35 | I8: 170269 | J8: 14739470.9 | K8: 2019-02-01 | L8: 3964 | M8: INE111B01023
A9: 8KMILES | B9: EQ | C9: 132.3 | D9: 132.3 | E9: 120 | F9: 121 | G9: 120.7 | H9: 126 | I9: 552825 | J9: 69307915.7 | K9: 2019-02-01 | L9: 6397 | M9: INE650K01021
A10: A2ZINFRA | B10: EQ | C10: 10.75 | D10: 10.85 | E10: 10.55 | F10: 10.85 | G10: 10.85 | H10: 10.35 | I10: 118565 | J10: 1280835.5 | K10: 2019-02-01 | L10: 322 | M10: INE619I01012
A11: AARTIDRUGS | B11: EQ | C11: 589.6 | D11: 605 | E11: 586.05 | F11: 594.5 | G11: 595 | H11: 588.95 | I11: 11255 | J11: 6719532.7 | K11: 2019-02-01 | L11: 802 | M11: INE767A01016
A12: AARTIIND | B12: EQ | C12: 1620 | D12: 1655 | E12: 1619.75 | F12: 1632.35 | G12: 1644 | H12: 1625.65 | I12: 37009 | J12: 60678215.4 | K12: 2019-02-01 | L12: 9157 | M12: INE769A01020
A13: AARVEEDEN | B13: EQ | C13: 23.85 | D13: 24.4 | E13: 23.15 | F13: 23.2 | G13: 23.45 | H13: 23.5 | I13: 2502 | J13: 58720.3 | K13: 2019-02-01 | L13: 74 | M13: INE273D01019
A14: AAVAS | B14: EQ | C14: 858.25 | D14: 858.25 | E14: 811 | F14: 838.4 | G14: 820.95 | H14: 853.85 | I14: 20406 | J14: 17168462.95 | K14: 2019-02-01 | L14: 904 | M14: INE216P01012
A15: ABAN | B15: EQ | C15: 67.1 | D15: 68.25 | E15: 65.1 | F15: 66.5 | G15: 66.3 | H15: 67.15 | I15: 321734 | J15: 21439921.55 | K15: 2019-02-01 | L15: 3434 | M15: INE421A01028
A16: ABB | B16: EQ | C16: 1290 | D16: 1295 | E16: 1261 | F16: 1272.2 | G16: 1270 | H16: 1272.3 | I16: 97864 | J16: 125313756.1 | K16: 2019-02-01 | L16: 5935 | M16: INE117A01022
A17: ABBOTINDIA | B17: EQ | C17: 8120 | D17: 8193.15 | E17: 8035.3 | F17: 8098.9 | G17: 8080.1 | H17: 8070.1 | I17: 2057 | J17: 16681303.85 | K17: 2019-02-01 | L17: 642 | M17: INE358A01014
A18: ABCAPITAL | B18: EQ | C18: 81.1 | D18: 81.45 | E18: 79.2 | F18: 80.5 | G18: 80.65 | H18: 81 | I18: 5545273 | J18: 443818815.6 | K18: 2019-02-01 | L18: 22006 | M18: INE674K01013
A19: ABFRL | B19: EQ | C19: 209.5 | D19: 214.5 | E19: 207.55 | F19: 208.95 | G19: 208.85 | H19: 209.5 | I19: 659499 | J19: 139099303.1 | K19: 2019-02-01 | L19: 10344 | M19: INE647O01011
A20: ABSLNN50ET | B20: EQ | C20: 285.8 | D20: 285.8 | E20: 285.8 | F20: 285.8 | G20: 285.8 | H20: 287.33 | I20: 6 | J20: 1714.8 | K20: 2019-02-01 | L20: 1 | M20: INF209KB1B87
A21: ACC | B21: EQ | C21: 1416.3 | D21: 1448 | E21: 1401.25 | F21: 1415.55 | G21: 1416.3 | H21: 1423.35 | I21: 568663 | J21: 809104839.4 | K21: 2019-02-01 | L21: 39947 | M21: INE012A01025
A22: ACCELYA | B22: EQ | C22: 935 | D22: 948.75 | E22: 925.05 | F22: 930.3 | G22: 930 | H22: 922.4 | I22: 53805 | J22: 50325450.4 | K22: 2019-02-01 | L22: 1002 | M22: INE793A01012
A23: ACE | B23: EQ | C23: 88 | D23: 88.5 | E23: 86.4 | F23: 86.9 | G23: 87 | H23: 87.9 | I23: 110970 | J23: 9726326.3 | K23: 2019-02-01 | L23: 897 | M23: INE731H01025
A24: ADANIENT | B24: EQ | C24: 136.95 | D24: 144.8 | E24: 134.55 | F24: 143 | G24: 142.65 | H24: 137.15 | I24: 7091209 | J24: 998418569.5 | K24: 2019-02-01 | L24: 43786 | M24: INE423A01024
A25: ADANIGAS | B25: EQ | C25: 92.05 | D25: 93.3 | E25: 92 | F25: 92.45 | G25: 92.5 | H25: 92.45 | I25: 285635 | J25: 26446969.85 | K25: 2019-02-01 | L25: 1935 | M25: INE399L01023
A26: ADANIGREEN | B26: EQ | C26: 36.4 | D26: 37 | E26: 35.5 | F26: 35.75 | G26: 35.9 | H26: 35.6 | I26: 352935 | J26: 12728711.95 | K26: 2019-02-01 | L26: 2321 | M26: INE364U01010
A27: ADANIPORTS | B27: EQ | C27: 339.9 | D27: 346.8 | E27: 333.35 | F27: 338.45 | G27: 339.05 | H27: 338.65 | I27: 3119675 | J27: 1062315665 | K27: 2019-02-01 | L27: 45153 | M27: INE742F01042
A28: ADANIPOWER | B28: EQ | C28: 46.35 | D28: 46.85 | E28: 41.85 | F28: 44.2 | G28: 44.2 | H28: 45.5 | I28: 11033520 | J28: 499519107.2 | K28: 2019-02-01 | L28: 24723 | M28: INE814H01011
A29: ADANITRANS | B29: EQ | C29: 213.75 | D29: 216.95 | E29: 212.65 | F29: 215.15 | G29: 215.2 | H29: 213.4 | I29: 85059 | J29: 18282453.1 | K29: 2019-02-01 | L29: 4227 | M29: INE931S01010
A30: ADFFOODS | B30: EQ | C30: 243 | D30: 244.05 | E30: 234.05 | F30: 235.9 | G30: 235 | H30: 242.3 | I30: 40555 | J30: 9660047.45 | K30: 2019-02-01 | L30: 1360 | M30: INE982B01019
A31: ADHUNIK | B31: EQ | C31: 1.85 | D31: 1.9 | E31: 1.85 | F31: 1.85 | G31: 1.85 | H31: 1.9 | I31: 24740 | J31: 46057 | K31: 2019-02-01 | L31: 46 | M31: INE400H01019
A32: ADHUNIKIND | B32: EQ | C32: 44.9 | D32: 45 | E32: 42.05 | F32: 43 | G32: 43.55 | H32: 43.85 | I32: 36242 | J32: 1568207.85 | K32: 2019-02-01 | L32: 380 | M32: INE452L01012
A33: ADLABS | B33: EQ | C33: 9.4 | D33: 9.5 | E33: 9.2 | F33: 9.25 | G33: 9.25 | H33: 9.2 | I33: 59789 | J33: 556280.3 | K33: 2019-02-01 | L33: 163 | M33: INE172N01012
A34: ADORWELD | B34: EQ | C34: 352.05 | D34: 353.9 | E34: 335.6 | F34: 337.5 | G34: 337 | H34: 349.65 | I34: 5139 | J34: 1768343.3 | K34: 2019-02-01 | L34: 367 | M34: INE045A01017
A35: ADROITINFO | B35: EQ | C35: 18.4 | D35: 18.45 | E35: 17 | F35: 17.1 | G35: 17.1 | H35: 17.1 | I35: 2707 | J35: 46874.05 | K35: 2019-02-01 | L35: 21 | M35: INE737B01033
A36: ADSL | B36: EQ | C36: 12.8 | D36: 13.3 | E36: 12.8 | F36: 12.95 | G36: 13 | H36: 12.8 | I36: 7205 | J36: 92719.25 | K36: 2019-02-01 | L36: 29 | M36: INE102I01027
A37: ADVANIHOTR | B37: EQ | C37: 74.35 | D37: 74.35 | E37: 70 | F37: 70.95 | G37: 71 | H37: 72.25 | I37: 12447 | J37: 889617.45 | K37: 2019-02-01 | L37: 229 | M37: INE199C01026
A38: ADVENZYMES | B38: EQ | C38: 166 | D38: 166.45 | E38: 163 | F38: 164.4 | G38: 163.65 | H38: 166.5 | I38: 32811 | J38: 5406850.8 | K38: 2019-02-01 | L38: 761 | M38: INE837H01020
A39: AEGISCHEM | B39: EQ | C39: 190.65 | D39: 203.5 | E39: 190.5 | F39: 199.5 | G39: 199.35 | H39: 189.9 | I39: 365778 | J39: 73024260.55 | K39: 2019-02-01 | L39: 17076 | M39: INE208C01025
A40: AGARIND | B40: EQ | C40: 168.85 | D40: 199 | E40: 162.6 | F40: 186.1 | G40: 192 | H40: 168.8 | I40: 1831 | J40: 326280.65 | K40: 2019-02-01 | L40: 84 | M40: INE204E01012
A41: AGCNET | B41: EQ | C41: 116 | D41: 119 | E41: 114 | F41: 115.3 | G41: 115 | H41: 116 | I41: 14284 | J41: 1652563.95 | K41: 2019-02-01 | L41: 230 | M41: INE676A01019
A42: AGLSL | B42: EQ | C42: 64.5 | D42: 65.05 | E42: 64.5 | F42: 65 | G42: 65 | H42: 64 | I42: 1166 | J42: 75707.15 | K42: 2019-02-01 | L42: 32 | M42: INE517U01013
A43: AGRITECH | B43: EQ | C43: 58.5 | D43: 59.25 | E43: 56.45 | F43: 59.2 | G43: 59.25 | H43: 56.45 | I43: 12647 | J43: 747417 | K43: 2019-02-01 | L43: 176 | M43: INE449G01018
A44: AHLEAST | B44: EQ | C44: 247.9 | D44: 247.95 | E44: 236.8 | F44: 242.5 | G44: 242.5 | H44: 236.9 | I44: 167 | J44: 40525 | K44: 2019-02-01 | L44: 28 | M44: INE926K01017
A45: AHLUCONT | B45: EQ | C45: 280.4 | D45: 294.3 | E45: 275 | F45: 275.3 | G45: 276.95 | H45: 280 | I45: 17189 | J45: 4860546.9 | K45: 2019-02-01 | L45: 1261 | M45: INE758C01029
A46: AHLWEST | B46: EQ | C46: 341.9 | D46: 359 | E46: 317.95 | F46: 346.8 | G46: 335.1 | H46: 341.9 | I46: 6285 | J46: 2117947.65 | K46: 2019-02-01 | L46: 198 | M46: INE915K01010
A47: AIAENG | B47: EQ | C47: 1643 | D47: 1643 | E47: 1590.7 | F47: 1599.85 | G47: 1593.7 | H47: 1607.2 | I47: 11876 | J47: 19110598.05 | K47: 2019-02-01 | L47: 2846 | M47: INE212H01026
A48: AIFL | B48: EQ | C48: 18.2 | D48: 18.2 | E48: 17.5 | F48: 18.2 | G48: 18.2 | H48: 17.35 | I48: 158925 | J48: 2886821.1 | K48: 2019-02-01 | L48: 304 | M48: INE428O01016
A49: AIONJSW | B49: EQ | C49: 35.15 | D49: 35.15 | E49: 33.3 | F49: 34.35 | G49: 34.4 | H49: 35.15 | I49: 25603 | J49: 879086.65 | K49: 2019-02-01 | L49: 152 | M49: INE743C01021
A50: AJANTPHARM | B50: EQ | C50: 1025 | D50: 1030.9 | E50: 976.6 | F50: 982.8 | G50: 982 | H50: 1020.65 | I50: 801470 | J50: 793572491.4 | K50: 2019-02-01 | L50: 37183 | M50: INE031B01049
A51: AJMERA | B51: EQ | C51: 181.3 | D51: 192.85 | E51: 177.6 | F51: 181.1 | G51: 181 | H51: 180.15 | I51: 496123 | J51: 92013417 | K51: 2019-02-01 | L51: 10404 | M51: INE298G01027
A52: AKSHARCHEM | B52: EQ | C52: 399.85 | D52: 415 | E52: 396.5 | F52: 409.25 | G52: 412.2 | H52: 396.8 | I52: 8504 | J52: 3469517.05 | K52: 2019-02-01 | L52: 2318 | M52: INE542B01011
A53: AKSHOPTFBR | B53: EQ | C53: 21.95 | D53: 22.7 | E53: 21.75 | F53: 21.95 | G53: 21.95 | H53: 21.8 | I53: 864694 | J53: 19202908.3 | K53: 2019-02-01 | L53: 3700 | M53: INE523B01011
A54: AKZOINDIA | B54: EQ | C54: 1733.55 | D54: 1768 | E54: 1723.85 | F54: 1729.55 | G54: 1725 | H54: 1759.85 | I54: 3455 | J54: 6003823.75 | K54: 2019-02-01 | L54: 485 | M54: INE133A01011
A55: ALANKIT | B55: EQ | C55: 30 | D55: 32 | E55: 29.85 | F55: 30.2 | G55: 30.15 | H55: 29.95 | I55: 663507 | J55: 20126523.05 | K55: 2019-02-01 | L55: 1014 | M55: INE914E01040
A56: ALBERTDAVD | B56: EQ | C56: 377 | D56: 377.9 | E56: 372 | F56: 374.5 | G56: 374.8 | H56: 375.35 | I56: 1973 | J56: 739672.1 | K56: 2019-02-01 | L56: 142 | M56: INE155C01010
A57: ALBK | B57: EQ | C57: 45.85 | D57: 46.1 | E57: 43.5 | F57: 44.4 | G57: 43.85 | H57: 45.15 | I57: 4853011 | J57: 218794569.5 | K57: 2019-02-01 | L57: 12488 | M57: INE428A01015
A58: ALCHEM | B58: BE | C58: 2.5 | D58: 2.55 | E58: 2.35 | F58: 2.5 | G58: 2.5 | H58: 2.45 | I58: 5472 | J58: 13661.05 | K58: 2019-02-01 | L58: 16 | M58: INE964B01033
A59: ALEMBICLTD | B59: EQ | C59: 41 | D59: 41.4 | E59: 40.5 | F59: 40.6 | G59: 40.6 | H59: 40.9 | I59: 94248 | J59: 3850094.15 | K59: 2019-02-01 | L59: 865 | M59: INE426A01027
A60: ALICON | B60: EQ | C60: 535.15 | D60: 564.6 | E60: 535.15 | F60: 543.25 | G60: 547 | H60: 550 | I60: 1898 | J60: 1029717.35 | K60: 2019-02-01 | L60: 182 | M60: INE062D01024
A61: ALKALI | B61: EQ | C61: 48.75 | D61: 49.95 | E61: 46.4 | F61: 48.65 | G61: 49.1 | H61: 49.25 | I61: 4798 | J61: 229004.25 | K61: 2019-02-01 | L61: 132 | M61: INE773I01017
A62: ALKEM | B62: EQ | C62: 1878.55 | D62: 1908 | E62: 1872.3 | F62: 1888.45 | G62: 1904.9 | H62: 1883.2 | I62: 8300 | J62: 15707800.5 | K62: 2019-02-01 | L62: 1876 | M62: INE540L01014
A63: ALKYLAMINE | B63: EQ | C63: 754.2 | D63: 779.95 | E63: 740 | F63: 760.3 | G63: 765 | H63: 751.6 | I63: 9843 | J63: 7481496.15 | K63: 2019-02-01 | L63: 538 | M63: INE150B01021
A64: ALLCARGO | B64: EQ | C64: 106.55 | D64: 106.55 | E64: 103 | F64: 103.45 | G64: 103.45 | H64: 105.55 | I64: 43290 | J64: 4527306.95 | K64: 2019-02-01 | L64: 825 | M64: INE418H01029
A65: ALLSEC | B65: EQ | C65: 181.95 | D65: 186.7 | E65: 178 | F65: 179.95 | G65: 180 | H65: 182.95 | I65: 11437 | J65: 2061637.55 | K65: 2019-02-01 | L65: 326 | M65: INE835G01018
A66: ALMONDZ | B66: EQ | C66: 23.1 | D66: 23.95 | E66: 21.1 | F66: 22.65 | G66: 23.45 | H66: 22.45 | I66: 2507 | J66: 55681.05 | K66: 2019-02-01 | L66: 39 | M66: INE326B01027
A67: ALOKTEXT | B67: EQ | C67: 3.95 | D67: 4 | E67: 3.75 | F67: 3.8 | G67: 3.8 | H67: 3.85 | I67: 2210097 | J67: 8485739.4 | K67: 2019-02-01 | L67: 645 | M67: INE270A01011
A68: ALPA | B68: EQ | C68: 24.25 | D68: 25.3 | E68: 24.2 | F68: 24.45 | G68: 24.45 | H68: 24.65 | I68: 9764 | J68: 240563.5 | K68: 2019-02-01 | L68: 139 | M68: INE385I01010
A69: ALPHAGEO | B69: EQ | C69: 465.05 | D69: 466.65 | E69: 440 | F69: 451.8 | G69: 450 | H69: 464.3 | I69: 10895 | J69: 4871870.65 | K69: 2019-02-01 | L69: 753 | M69: INE137C01018
A70: AMARAJABAT | B70: EQ | C70: 750 | D70: 775 | E70: 748 | F70: 769.6 | G70: 772.65 | H70: 744.95 | I70: 473123 | J70: 360273639.2 | K70: 2019-02-01 | L70: 15274 | M70: INE885A01032
A71: AMBER | B71: EQ | C71: 743 | D71: 760 | E71: 712.05 | F71: 721.9 | G71: 720.5 | H71: 742.35 | I71: 7097 | J71: 5164493.7 | K71: 2019-02-01 | L71: 1211 | M71: INE371P01015
A72: AMBIKCO | B72: EQ | C72: 1144 | D72: 1145 | E72: 1135 | F72: 1140.55 | G72: 1142 | H72: 1143.4 | I72: 1167 | J72: 1333121.6 | K72: 2019-02-01 | L72: 122 | M72: INE540G01014
A73: AMBUJACEM | B73: EQ | C73: 210.8 | D73: 215.35 | E73: 209.6 | F73: 212.5 | G73: 212.35 | H73: 209.9 | I73: 3350137 | J73: 712631991.7 | K73: 2019-02-01 | L73: 79708 | M73: INE079A01024
A74: AMDIND | B74: EQ | C74: 22.05 | D74: 22.65 | E74: 21.8 | F74: 22 | G74: 22 | H74: 22 | I74: 1482 | J74: 32619.7 | K74: 2019-02-01 | L74: 22 | M74: INE005I01014
A75: AMJLAND | B75: EQ | C75: 19.55 | D75: 20.2 | E75: 19.2 | F75: 19.35 | G75: 19.3 | H75: 20.05 | I75: 13817 | J75: 269768.3 | K75: 2019-02-01 | L75: 139 | M75: INE606A01024
A76: AMRUTANJAN | B76: EQ | C76: 306 | D76: 310 | E76: 303.35 | F76: 308.05 | G76: 308 | H76: 305.25 | I76: 15798 | J76: 4842512.15 | K76: 2019-02-01 | L76: 563 | M76: INE098F01031
A77: ANANTRAJ | B77: EQ | C77: 33.45 | D77: 34.75 | E77: 32.6 | F77: 33.9 | G77: 33.85 | H77: 33.4 | I77: 377415 | J77: 12847541.6 | K77: 2019-02-01 | L77: 2166 | M77: INE242C01024
A78: ANDHRABANK | B78: EQ | C78: 25.45 | D78: 25.8 | E78: 25.15 | F78: 25.45 | G78: 25.45 | H78: 25.25 | I78: 858446 | J78: 21875301.4 | K78: 2019-02-01 | L78: 2463 | M78: INE434A01013
A79: ANDHRACEMT | B79: EQ | C79: 4.55 | D79: 4.75 | E79: 4.5 | F79: 4.7 | G79: 4.75 | H79: 4.55 | I79: 41398 | J79: 192062.1 | K79: 2019-02-01 | L79: 142 | M79: INE666E01012
A80: ANDHRSUGAR | B80: EQ | C80: 311.25 | D80: 311.35 | E80: 302.4 | F80: 307 | G80: 305.5 | H80: 308.35 | I80: 9250 | J80: 2844626.4 | K80: 2019-02-01 | L80: 470 | M80: INE715B01013
A81: ANGIND | B81: BE | C81: 0.95 | D81: 0.95 | E81: 0.9 | F81: 0.95 | G81: 0.95 | H81: 0.9 | I81: 5402 | J81: 5043.45 | K81: 2019-02-01 | L81: 11 | M81: INE017D01010
A82: ANIKINDS | B82: EQ | C82: 16.8 | D82: 17.55 | E82: 16.3 | F82: 17.15 | G82: 17.5 | H82: 16.95 | I82: 8467 | J82: 142344.65 | K82: 2019-02-01 | L82: 77 | M82: INE087B01017
A83: ANKITMETAL | B83: BE | C83: 0.45 | D83: 0.5 | E83: 0.45 | F83: 0.45 | G83: 0.45 | H83: 0.4 | I83: 92154 | J83: 45540.95 | K83: 2019-02-01 | L83: 35 | M83: INE106I01010
A84: ANSALAPI | B84: EQ | C84: 12 | D84: 13.9 | E84: 12 | F84: 12.25 | G84: 12.15 | H84: 12 | I84: 591091 | J84: 7544085.15 | K84: 2019-02-01 | L84: 2120 | M84: INE436A01026
A85: ANSALHSG | B85: EQ | C85: 12.65 | D85: 13.5 | E85: 12.5 | F85: 13.15 | G85: 13.2 | H85: 12.3 | I85: 859825 | J85: 11360705.1 | K85: 2019-02-01 | L85: 3131 | M85: INE880B01015
A86: ANTGRAPHIC | B86: BE | C86: 0.45 | D86: 0.5 | E86: 0.45 | F86: 0.5 | G86: 0.5 | H86: 0.5 | I86: 15723 | J86: 7658.85 | K86: 2019-02-01 | L86: 18 | M86: INE414B01021
A87: APARINDS | B87: EQ | C87: 624 | D87: 624.9 | E87: 613.05 | F87: 614.85 | G87: 614 | H87: 621.7 | I87: 20976 | J87: 12974626.85 | K87: 2019-02-01 | L87: 987 | M87: INE372A01015
A88: APCL | B88: EQ | C88: 113 | D88: 114.7 | E88: 103.95 | F88: 108.55 | G88: 111.95 | H88: 110 | I88: 4169 | J88: 454469.4 | K88: 2019-02-01 | L88: 126 | M88: INE071F01012
A89: APCOTEXIND | B89: EQ | C89: 459.3 | D89: 468.5 | E89: 459.3 | F89: 464.3 | G89: 465.4 | H89: 459.3 | I89: 3824 | J89: 1776062.65 | K89: 2019-02-01 | L89: 225 | M89: INE116A01024
A90: APEX | B90: EQ | C90: 355.4 | D90: 356 | E90: 325 | F90: 331.7 | G90: 328.2 | H90: 354.15 | I90: 495598 | J90: 168951318.8 | K90: 2019-02-01 | L90: 12487 | M90: INE346W01013
A91: APLAPOLLO | B91: EQ | C91: 1111.85 | D91: 1136 | E91: 1100 | F91: 1133.65 | G91: 1129 | H91: 1110.3 | I91: 7307 | J91: 8230706.3 | K91: 2019-02-01 | L91: 978 | M91: INE702C01019
A92: APLLTD | B92: EQ | C92: 596.6 | D92: 602.9 | E92: 588 | F92: 591.85 | G92: 594.3 | H92: 593.65 | I92: 23201 | J92: 13795521.1 | K92: 2019-02-01 | L92: 4308 | M92: INE901L01018
A93: APOLLO | B93: EQ | C93: 114.5 | D93: 118.65 | E93: 108.05 | F93: 109 | G93: 108.65 | H93: 116.75 | I93: 33487 | J93: 3741992.65 | K93: 2019-02-01 | L93: 862 | M93: INE713T01010
A94: APOLLOHOSP | B94: EQ | C94: 1320 | D94: 1357.9 | E94: 1320 | F94: 1341.25 | G94: 1341 | H94: 1325.65 | I94: 530789 | J94: 711005678.5 | K94: 2019-02-01 | L94: 36759 | M94: INE437A01024
A95: APOLLOTYRE | B95: EQ | C95: 204.65 | D95: 210.75 | E95: 203.6 | F95: 207.85 | G95: 208 | H95: 204.35 | I95: 1670882 | J95: 345611740.6 | K95: 2019-02-01 | L95: 18078 | M95: INE438A01022
A96: APOLSINHOT | B96: BE | C96: 885 | D96: 948 | E96: 860 | F96: 904.7 | G96: 903.5 | H96: 902.95 | I96: 51 | J96: 45912.05 | K96: 2019-02-01 | L96: 14 | M96: INE451F01024
A97: APTECHT | B97: EQ | C97: 170.85 | D97: 179.95 | E97: 167.6 | F97: 171.5 | G97: 169.7 | H97: 170.15 | I97: 424655 | J97: 74071669.55 | K97: 2019-02-01 | L97: 7146 | M97: INE266F01018
A98: ARCHIDPLY | B98: EQ | C98: 39 | D98: 41.5 | E98: 38 | F98: 38.45 | G98: 38.05 | H98: 38.5 | I98: 7883 | J98: 307957.4 | K98: 2019-02-01 | L98: 209 | M98: INE877I01016
A99: ARCHIES | B99: EQ | C99: 27.25 | D99: 28 | E99: 27 | F99: 27.25 | G99: 27.5 | H99: 27.5 | I99: 47219 | J99: 1291129.75 | K99: 2019-02-01 | L99: 327 | M99: INE731A01020
A100: ARCOTECH | B100: EQ | C100: 5.85 | D100: 5.95 | E100: 5.5 | F100: 5.5 | G100: 5.6 | H100: 5.7 | I100: 191089 | J100: 1081855.95 | K100: 2019-02-01 | L100: 328 | M100: INE574I01035
A101: ARIES | B101: EQ | C101: 92.9 | D101: 95.8 | E101: 90.5 | F101: 91.2 | G101: 91.6 | H101: 92.15 | I101: 59881 | J101: 5616385.75 | K101: 2019-02-01 | L101: 1240 | M101: INE298I01015
A102: ARIHANT | B102: EQ | C102: 33.55 | D102: 34.85 | E102: 33.55 | F102: 33.9 | G102: 33.7 | H102: 34.15 | I102: 1744 | J102: 59338.1 | K102: 2019-02-01 | L102: 17 | M102: INE413D01011
A103: ARIHANTSUP | B103: EQ | C103: 50.8 | D103: 53.3 | E103: 50.55 | F103: 51.45 | G103: 51.5 | H103: 50.8 | I103: 21272 | J103: 1099593.5 | K103: 2019-02-01 | L103: 420 | M103: INE643K01018
A104: ARMANFIN | B104: EQ | C104: 377.35 | D104: 378 | E104: 369.1 | F104: 374.55 | G104: 375 | H104: 370.5 | I104: 2918 | J104: 1093489.3 | K104: 2019-02-01 | L104: 92 | M104: INE109C01017
A105: AROGRANITE | B105: EQ | C105: 49.4 | D105: 51.85 | E105: 49.25 | F105: 50.35 | G105: 50.25 | H105: 49.5 | I105: 8613 | J105: 432774.8 | K105: 2019-02-01 | L105: 142 | M105: INE210C01013
A106: ARROWGREEN | B106: BE | C106: 100 | D106: 100 | E106: 94 | F106: 96.75 | G106: 98 | H106: 98.15 | I106: 1527 | J106: 147831.4 | K106: 2019-02-01 | L106: 43 | M106: INE570D01018
A107: ARROWTEX | B107: EQ | C107: 16.45 | D107: 16.85 | E107: 16.3 | F107: 16.7 | G107: 16.8 | H107: 16.65 | I107: 10740 | J107: 177108.7 | K107: 2019-02-01 | L107: 61 | M107: INE933J01015
A108: ARSHIYA | B108: EQ | C108: 29.2 | D108: 30 | E108: 28.5 | F108: 29.3 | G108: 29.6 | H108: 29.55 | I108: 49488 | J108: 1454835.95 | K108: 2019-02-01 | L108: 548 | M108: INE968D01022
A109: ARSSINFRA | B109: EQ | C109: 30.5 | D109: 31.9 | E109: 29.45 | F109: 30.85 | G109: 31.85 | H109: 30.4 | I109: 8265 | J109: 251628.5 | K109: 2019-02-01 | L109: 87 | M109: INE267I01010
A110: ARVIND | B110: EQ | C110: 88.5 | D110: 89.4 | E110: 87.05 | F110: 88.45 | G110: 88.15 | H110: 88.15 | I110: 1493066 | J110: 131906541.6 | K110: 2019-02-01 | L110: 9963 | M110: INE034A01011
A111: ARVSMART | B111: EQ | C111: 125.7 | D111: 129 | E111: 124.1 | F111: 125.7 | G111: 125 | H111: 124.65 | I111: 36071 | J111: 4559528.05 | K111: 2019-02-01 | L111: 636 | M111: INE034S01021
A112: ASAHIINDIA | B112: EQ | C112: 255.25 | D112: 258 | E112: 254.9 | F112: 256.7 | G112: 258 | H112: 255.1 | I112: 17119 | J112: 4371146.15 | K112: 2019-02-01 | L112: 213 | M112: INE439A01020
A113: ASAHISONG | B113: EQ | C113: 188.95 | D113: 189 | E113: 182.4 | F113: 186.55 | G113: 186 | H113: 184.35 | I113: 1953 | J113: 360876.05 | K113: 2019-02-01 | L113: 97 | M113: INE228I01012
A114: ASAL | B114: EQ | C114: 56.95 | D114: 57.15 | E114: 54.1 | F114: 55.05 | G114: 54.1 | H114: 56.05 | I114: 1773 | J114: 99634.55 | K114: 2019-02-01 | L114: 41 | M114: INE900C01027
A115: ASHAPURMIN | B115: EQ | C115: 26.9 | D115: 26.9 | E115: 25.7 | F115: 26 | G115: 26.15 | H115: 26.35 | I115: 23412 | J115: 612599.2 | K115: 2019-02-01 | L115: 230 | M115: INE348A01023
A116: ASHIANA | B116: EQ | C116: 114 | D116: 117 | E116: 111 | F116: 111.8 | G116: 111 | H116: 114.35 | I116: 55179 | J116: 6356540.75 | K116: 2019-02-01 | L116: 587 | M116: INE365D01021
A117: ASHIMASYN | B117: BE | C117: 14.45 | D117: 14.95 | E117: 13.75 | F117: 13.85 | G117: 13.75 | H117: 14.25 | I117: 23462 | J117: 341449.25 | K117: 2019-02-01 | L117: 143 | M117: INE440A01010
A118: ASHOKA | B118: EQ | C118: 120.05 | D118: 123.45 | E118: 120.05 | F118: 121.15 | G118: 121.2 | H118: 119.7 | I118: 166368 | J118: 20240751.35 | K118: 2019-02-01 | L118: 2505 | M118: INE442H01029
A119: ASHOKLEY | B119: EQ | C119: 81.75 | D119: 87.2 | E119: 80.85 | F119: 83.55 | G119: 84.2 | H119: 81.3 | I119: 65021097 | J119: 5506803281 | K119: 2019-02-01 | L119: 192210 | M119: INE208A01029
A120: ASIANHOTNR | B120: EQ | C120: 149.95 | D120: 150 | E120: 145.1 | F120: 149.9 | G120: 149.95 | H120: 147.95 | I120: 362 | J120: 54131.45 | K120: 2019-02-01 | L120: 21 | M120: INE363A01022
A121: ASIANPAINT | B121: EQ | C121: 1412.4 | D121: 1469.65 | E121: 1408.2 | F121: 1457.2 | G121: 1455 | H121: 1412.6 | I121: 2077539 | J121: 2997082951 | K121: 2019-02-01 | L121: 95731 | M121: INE021A01026
A122: ASIANTILES | B122: EQ | C122: 157 | D122: 162.8 | E122: 155 | F122: 157.6 | G122: 157 | H122: 157.1 | I122: 70597 | J122: 11115430.75 | K122: 2019-02-01 | L122: 948 | M122: INE022I01019
A123: ASPINWALL | B123: EQ | C123: 157 | D123: 157 | E123: 150 | F123: 154.9 | G123: 152 | H123: 157 | I123: 1067 | J123: 166278.85 | K123: 2019-02-01 | L123: 32 | M123: INE991I01015
A124: ASSAMCO | B124: EQ | C124: 1.8 | D124: 1.85 | E124: 1.75 | F124: 1.8 | G124: 1.85 | H124: 1.8 | I124: 246326 | J124: 443670.55 | K124: 2019-02-01 | L124: 126 | M124: INE442A01024
A125: ASTEC | B125: EQ | C125: 515 | D125: 524.9 | E125: 500.5 | F125: 507.7 | G125: 508.9 | H125: 511.85 | I125: 7841 | J125: 3977217.75 | K125: 2019-02-01 | L125: 524 | M125: INE563J01010
A126: ASTERDM | B126: EQ | C126: 156.4 | D126: 156.5 | E126: 152.05 | F126: 155 | G126: 155 | H126: 155 | I126: 26189 | J126: 4057536.85 | K126: 2019-02-01 | L126: 989 | M126: INE914M01019
A127: ASTRAL | B127: EQ | C127: 1130 | D127: 1154.9 | E127: 1101 | F127: 1106.9 | G127: 1110.95 | H127: 1131.2 | I127: 37427 | J127: 42313092.7 | K127: 2019-02-01 | L127: 8628 | M127: INE006I01046
A128: ASTRAMICRO | B128: EQ | C128: 79.4 | D128: 79.7 | E128: 77 | F128: 77.55 | G128: 77.55 | H128: 78.4 | I128: 78925 | J128: 6176852.75 | K128: 2019-02-01 | L128: 757 | M128: INE386C01029
A129: ASTRAZEN | B129: EQ | C129: 1602.95 | D129: 1668 | E129: 1580.05 | F129: 1653.95 | G129: 1652.9 | H129: 1601.7 | I129: 7075 | J129: 11560971.4 | K129: 2019-02-01 | L129: 875 | M129: INE203A01020
A130: ASTRON | B130: EQ | C130: 119 | D130: 119.4 | E130: 113 | F130: 114.45 | G130: 113.9 | H130: 118.95 | I130: 115361 | J130: 13403213.25 | K130: 2019-02-01 | L130: 2736 | M130: INE646X01014
A131: ATFL | B131: EQ | C131: 568.7 | D131: 595.95 | E131: 568.7 | F131: 577.9 | G131: 572.4 | H131: 560.3 | I131: 25428 | J131: 14892941.05 | K131: 2019-02-01 | L131: 1278 | M131: INE209A01019
A132: ATLANTA | B132: EQ | C132: 18.3 | D132: 18.65 | E132: 18.15 | F132: 18.45 | G132: 18.65 | H132: 18.3 | I132: 90369 | J132: 1659341.75 | K132: 2019-02-01 | L132: 2229 | M132: INE285H01022
A133: ATLASCYCLE | B133: BE | C133: 74.5 | D133: 77.95 | E133: 73.1 | F133: 73.45 | G133: 73.1 | H133: 74.5 | I133: 1059 | J133: 78322.55 | K133: 2019-02-01 | L133: 21 | M133: INE446A01025
A134: ATUL | B134: EQ | C134: 3500 | D134: 3545 | E134: 3489.95 | F134: 3512.2 | G134: 3505 | H134: 3466.2 | I134: 5512 | J134: 19377618.75 | K134: 2019-02-01 | L134: 1923 | M134: INE100A01010
A135: ATULAUTO | B135: EQ | C135: 308.3 | D135: 315.4 | E135: 300 | F135: 301.65 | G135: 302.95 | H135: 305.55 | I135: 40458 | J135: 12414107.3 | K135: 2019-02-01 | L135: 1539 | M135: INE951D01028
A136: AUBANK | B136: EQ | C136: 585.6 | D136: 593.8 | E136: 576 | F136: 579.55 | G136: 578.8 | H136: 584.25 | I136: 263192 | J136: 153604478.4 | K136: 2019-02-01 | L136: 19825 | M136: INE949L01017
A137: AURIONPRO | B137: EQ | C137: 123.4 | D137: 123.4 | E137: 115.9 | F137: 116.2 | G137: 116.95 | H137: 119.35 | I137: 15938 | J137: 1863310.8 | K137: 2019-02-01 | L137: 378 | M137: INE132H01018
A138: AUROPHARMA | B138: EQ | C138: 782.05 | D138: 802 | E138: 780 | F138: 797.8 | G138: 797.8 | H138: 787.8 | I138: 1212130 | J138: 956842278.7 | K138: 2019-02-01 | L138: 43160 | M138: INE406A01037
A139: AUSOMENT | B139: EQ | C139: 39.45 | D139: 39.45 | E139: 36.5 | F139: 37 | G139: 37.05 | H139: 37.75 | I139: 5876 | J139: 218533.1 | K139: 2019-02-01 | L139: 57 | M139: INE218C01016
A140: AUTOAXLES | B140: EQ | C140: 1113 | D140: 1230.2 | E140: 1111 | F140: 1211.05 | G140: 1210 | H140: 1125.25 | I140: 28592 | J140: 33930158.5 | K140: 2019-02-01 | L140: 3627 | M140: INE449A01011
A141: AUTOIND | B141: EQ | C141: 62.85 | D141: 62.85 | E141: 61.05 | F141: 61.45 | G141: 61.4 | H141: 63.05 | I141: 25396 | J141: 1562843.9 | K141: 2019-02-01 | L141: 320 | M141: INE718H01014
A142: AUTOLITIND | B142: EQ | C142: 37.5 | D142: 37.8 | E142: 35.95 | F142: 36.4 | G142: 36.15 | H142: 37.4 | I142: 3384 | J142: 123923.05 | K142: 2019-02-01 | L142: 78 | M142: INE448A01013
A143: AVADHSUGAR | B143: EQ | C143: 359.55 | D143: 361.7 | E143: 350.05 | F143: 351.95 | G143: 351.85 | H143: 358.4 | I143: 10314 | J143: 3671831 | K143: 2019-02-01 | L143: 485 | M143: INE349W01017
A144: AVANTIFEED | B144: EQ | C144: 360 | D144: 376.7 | E144: 343 | F144: 346.05 | G144: 344.35 | H144: 356.7 | I144: 1891549 | J144: 679668330.7 | K144: 2019-02-01 | L144: 48235 | M144: INE871C01038
A145: AVTNPL | B145: EQ | C145: 23.85 | D145: 24 | E145: 22.95 | F145: 23.2 | G145: 23.45 | H145: 23.3 | I145: 45513 | J145: 1071023.6 | K145: 2019-02-01 | L145: 224 | M145: INE488D01021
A146: AXISBANK | B146: EQ | C146: 720.75 | D146: 726.4 | E146: 705.4 | F146: 717.25 | G146: 717.3 | H146: 722.7 | I146: 13792059 | J146: 9891122545 | K146: 2019-02-01 | L146: 208032 | M146: INE238A01034
A147: AXISCADES | B147: EQ | C147: 63.95 | D147: 64 | E147: 61.65 | F147: 62.3 | G147: 61.7 | H147: 62.25 | I147: 24466 | J147: 1536361 | K147: 2019-02-01 | L147: 568 | M147: INE555B01013
A148: AXISGOLD | B148: EQ | C148: 2891 | D148: 2911 | E148: 2861 | F148: 2900.15 | G148: 2902 | H148: 2869.3 | I148: 711 | J148: 2054872.75 | K148: 2019-02-01 | L148: 67 | M148: INF846K01347
A149: AXISNIFTY | B149: EQ | C149: 1112.58 | D149: 1112.58 | E149: 1112.58 | F149: 1112.58 | G149: 1112.58 | H149: 1086.74 | I149: 2 | J149: 2225.16 | K149: 2019-02-01 | L149: 1 | M149: INF846K01ZL0
A150: AYMSYNTEX | B150: EQ | C150: 35.2 | D150: 39.7 | E150: 35.2 | F150: 37.7 | G150: 36.7 | H150: 34.7 | I150: 39205 | J150: 1490921.45 | K150: 2019-02-01 | L150: 412 | M150: INE193B01039
A151: BAFNAPHARM | B151: EQ | C151: 10.4 | D151: 10.65 | E151: 10.25 | F151: 10.5 | G151: 10.6 | H151: 10.5 | I151: 5806 | J151: 60606.4 | K151: 2019-02-01 | L151: 86 | M151: INE878I01014
A152: BAGFILMS | B152: EQ | C152: 4.5 | D152: 4.55 | E152: 4.4 | F152: 4.4 | G152: 4.4 | H152: 4.45 | I152: 89203 | J152: 401056.05 | K152: 2019-02-01 | L152: 183 | M152: INE116D01028
A153: BAJAJ-AUTO | B153: EQ | C153: 2560 | D153: 2670 | E153: 2543 | F153: 2602.75 | G153: 2607 | H153: 2554.55 | I153: 1028186 | J153: 2677183827 | K153: 2019-02-01 | L153: 71856 | M153: INE917I01010
A154: BAJAJCON | B154: EQ | C154: 354.95 | D154: 357.9 | E154: 350 | F154: 354.8 | G154: 356 | H154: 354.1 | I154: 27699 | J154: 9814121.1 | K154: 2019-02-01 | L154: 3393 | M154: INE933K01021
A155: BAJAJELEC | B155: EQ | C155: 460 | D155: 470 | E155: 458 | F155: 467 | G155: 468 | H155: 458.2 | I155: 158772 | J155: 73874250.2 | K155: 2019-02-01 | L155: 12907 | M155: INE193E01025
A156: BAJAJFINSV | B156: EQ | C156: 6123.9 | D156: 6250 | E156: 6055 | F156: 6096.95 | G156: 6110.8 | H156: 6091.9 | I156: 311984 | J156: 1916008778 | K156: 2019-02-01 | L156: 44856 | M156: INE918I01018
A157: BAJAJHIND | B157: EQ | C157: 8.05 | D157: 8.3 | E157: 7.7 | F157: 7.9 | G157: 8 | H157: 8.05 | I157: 2365742 | J157: 18979428.8 | K157: 2019-02-01 | L157: 2764 | M157: INE306A01021
A158: BAJAJHLDNG | B158: EQ | C158: 2850 | D158: 2925.95 | E158: 2850 | F158: 2865.9 | G158: 2865 | H158: 2847.05 | I158: 16406 | J158: 47046621.25 | K158: 2019-02-01 | L158: 2889 | M158: INE118A01012
A159: BAJFINANCE | B159: EQ | C159: 2575 | D159: 2687.9 | E159: 2575 | F159: 2628.4 | G159: 2629 | H159: 2574.85 | I159: 2117768 | J159: 5571520248 | K159: 2019-02-01 | L159: 92973 | M159: INE296A01024
A160: BALAJITELE | B160: EQ | C160: 92.45 | D160: 95 | E160: 88.2 | F160: 88.75 | G160: 88.8 | H160: 90.85 | I160: 111945 | J160: 10225956.2 | K160: 2019-02-01 | L160: 1369 | M160: INE794B01026
A161: BALAMINES | B161: EQ | C161: 419 | D161: 420.05 | E161: 401.1 | F161: 402.45 | G161: 403 | H161: 419.85 | I161: 70430 | J161: 28539259 | K161: 2019-02-01 | L161: 1478 | M161: INE050E01027
A162: BALKRISHNA | B162: EQ | C162: 40.9 | D162: 40.9 | E162: 39.35 | F162: 39.95 | G162: 39.9 | H162: 39.8 | I162: 2295 | J162: 91770.8 | K162: 2019-02-01 | L162: 72 | M162: INE875R01011
A163: BALKRISIND | B163: EQ | C163: 813.9 | D163: 836.45 | E163: 810 | F163: 820.9 | G163: 819 | H163: 810.6 | I163: 533172 | J163: 438629216.5 | K163: 2019-02-01 | L163: 19114 | M163: INE787D01026
A164: BALLARPUR | B164: EQ | C164: 3.6 | D164: 3.7 | E164: 3.55 | F164: 3.55 | G164: 3.55 | H164: 3.65 | I164: 434344 | J164: 1560878.3 | K164: 2019-02-01 | L164: 411 | M164: INE294A01037
A165: BALMLAWRIE | B165: EQ | C165: 186.1 | D165: 189.5 | E165: 186 | F165: 186.9 | G165: 186 | H165: 188.2 | I165: 24264 | J165: 4551455.05 | K165: 2019-02-01 | L165: 534 | M165: INE164A01016
A166: BALPHARMA | B166: EQ | C166: 73.95 | D166: 74 | E166: 72.6 | F166: 73.3 | G166: 73.05 | H166: 73.05 | I166: 9881 | J166: 725002.6 | K166: 2019-02-01 | L166: 193 | M166: INE083D01012
A167: BALRAMCHIN | B167: EQ | C167: 102.5 | D167: 103.9 | E167: 101.45 | F167: 102.6 | G167: 102.95 | H167: 101.9 | I167: 1158751 | J167: 118796504.5 | K167: 2019-02-01 | L167: 5738 | M167: INE119A01028
A168: BANARBEADS | B168: EQ | C168: 49.9 | D168: 49.9 | E168: 44.2 | F168: 45.7 | G168: 46 | H168: 45.45 | I168: 3253 | J168: 149666.05 | K168: 2019-02-01 | L168: 298 | M168: INE655B01011
A169: BANARISUG | B169: EQ | C169: 1452.15 | D169: 1475 | E169: 1451 | F169: 1466.5 | G169: 1468.95 | H169: 1475.8 | I169: 132 | J169: 192803.2 | K169: 2019-02-01 | L169: 22 | M169: INE459A01010
A170: BANCOINDIA | B170: EQ | C170: 170.9 | D170: 171.5 | E170: 166 | F170: 169.5 | G170: 169.95 | H170: 169.35 | I170: 14593 | J170: 2471250.05 | K170: 2019-02-01 | L170: 430 | M170: INE213C01025
A171: BANDHANBNK | B171: EQ | C171: 404.5 | D171: 410.65 | E171: 397.95 | F171: 404.85 | G171: 405 | H171: 403.95 | I171: 1216281 | J171: 490619215.3 | K171: 2019-02-01 | L171: 18087 | M171: INE545U01014
A172: BANG | B172: EQ | C172: 56.2 | D172: 56.25 | E172: 54.4 | F172: 55.4 | G172: 54.45 | H172: 55.75 | I172: 66207 | J172: 3674367.45 | K172: 2019-02-01 | L172: 289 | M172: INE863I01016
A173: BANKBARODA | B173: EQ | C173: 113.45 | D173: 114 | E173: 109.2 | F173: 111.1 | G173: 110.75 | H173: 112.45 | I173: 16494373 | J173: 1844627511 | K173: 2019-02-01 | L173: 54705 | M173: INE028A01039
A174: BANKBEES | B174: EQ | C174: 2834.8 | D174: 2890.4 | E174: 2747.5 | F174: 2764.97 | G174: 2766.09 | H174: 2779.22 | I174: 41607 | J174: 116253126.2 | K174: 2019-02-01 | L174: 839 | M174: INF732E01078
A175: BANKINDIA | B175: EQ | C175: 106.4 | D175: 106.65 | E175: 88.85 | F175: 94.85 | G175: 94.6 | H175: 102.8 | I175: 25180357 | J175: 2507912710 | K175: 2019-02-01 | L175: 88029 | M175: INE084A01016
A176: BANSWRAS | B176: EQ | C176: 70.1 | D176: 72.4 | E176: 68.1 | F176: 68.35 | G176: 68.1 | H176: 70.05 | I176: 2002 | J176: 137699.2 | K176: 2019-02-01 | L176: 46 | M176: INE629D01012
A177: BARTRONICS | B177: EQ | C177: 6.5 | D177: 6.75 | E177: 6.35 | F177: 6.45 | G177: 6.5 | H177: 6.35 | I177: 11944 | J177: 78397.9 | K177: 2019-02-01 | L177: 37 | M177: INE855F01034
A178: BASF | B178: EQ | C178: 1343.05 | D178: 1365 | E178: 1340 | F178: 1347.6 | G178: 1354 | H178: 1352.7 | I178: 3474 | J178: 4684843.3 | K178: 2019-02-01 | L178: 764 | M178: INE373A01013
A179: BASML | B179: EQ | C179: 195 | D179: 196 | E179: 190.25 | F179: 190.65 | G179: 190.65 | H179: 195.95 | I179: 228 | J179: 44553.15 | K179: 2019-02-01 | L179: 7 | M179: INE186H01014
A180: BATAINDIA | B180: EQ | C180: 1115.65 | D180: 1153.95 | E180: 1115.65 | F180: 1143.95 | G180: 1152 | H180: 1118.6 | I180: 447755 | J180: 509056680.7 | K180: 2019-02-01 | L180: 18840 | M180: INE176A01028
A181: BAYERCROP | B181: EQ | C181: 4445.95 | D181: 4446 | E181: 4330.05 | F181: 4368.4 | G181: 4350 | H181: 4377.55 | I181: 4471 | J181: 19528315.45 | K181: 2019-02-01 | L181: 2031 | M181: INE462A01022
A182: BBL | B182: EQ | C182: 1127.85 | D182: 1130.95 | E182: 1095.95 | F182: 1113.9 | G182: 1119 | H182: 1125.8 | I182: 2815 | J182: 3133840.2 | K182: 2019-02-01 | L182: 482 | M182: INE464A01028
A183: BBTC | B183: EQ | C183: 1209.9 | D183: 1223 | E183: 1189.05 | F183: 1205.95 | G183: 1207.8 | H183: 1205.25 | I183: 66041 | J183: 79783151.25 | K183: 2019-02-01 | L183: 3408 | M183: INE050A01025
A184: BCG | B184: EQ | C184: 3.1 | D184: 3.2 | E184: 3 | F184: 3 | G184: 3 | H184: 3.15 | I184: 373538 | J184: 1149839.75 | K184: 2019-02-01 | L184: 262 | M184: INE425B01027
A185: BDL | B185: EQ | C185: 258.75 | D185: 264 | E185: 256 | F185: 257.2 | G185: 256.75 | H185: 258.05 | I185: 14481 | J185: 3759503.2 | K185: 2019-02-01 | L185: 756 | M185: INE171Z01018
A186: BEARDSELL | B186: EQ | C186: 17.95 | D186: 17.95 | E186: 16.75 | F186: 16.9 | G186: 16.8 | H186: 16.85 | I186: 1207 | J186: 21018.9 | K186: 2019-02-01 | L186: 35 | M186: INE520H01022
A187: BEDMUTHA | B187: EQ | C187: 20.6 | D187: 22.1 | E187: 20.6 | F187: 21.55 | G187: 21.7 | H187: 21.2 | I187: 1182 | J187: 25277.45 | K187: 2019-02-01 | L187: 11 | M187: INE844K01012
A188: BEL | B188: EQ | C188: 84.15 | D188: 86.2 | E188: 83.25 | F188: 84.6 | G188: 84.45 | H188: 83.65 | I188: 9737752 | J188: 826190112.8 | K188: 2019-02-01 | L188: 33866 | M188: INE263A01024
A189: BEML | B189: EQ | C189: 801.85 | D189: 817.6 | E189: 791.05 | F189: 799.2 | G189: 798.8 | H189: 794.15 | I189: 1652856 | J189: 1331008829 | K189: 2019-02-01 | L189: 34152 | M189: INE258A01016
A190: BEPL | B190: EQ | C190: 68.25 | D190: 72.35 | E190: 66.5 | F190: 70.6 | G190: 71.9 | H190: 68.55 | I190: 426245 | J190: 29284049.55 | K190: 2019-02-01 | L190: 3899 | M190: INE922A01025
A191: BERGEPAINT | B191: EQ | C191: 319 | D191: 329.55 | E191: 318.1 | F191: 325.4 | G191: 323.75 | H191: 318.75 | I191: 973395 | J191: 315935855.2 | K191: 2019-02-01 | L191: 14328 | M191: INE463A01038
A192: BFINVEST | B192: EQ | C192: 221.5 | D192: 225.35 | E192: 215.1 | F192: 217.5 | G192: 217.5 | H192: 219.8 | I192: 52626 | J192: 11580448.65 | K192: 2019-02-01 | L192: 2218 | M192: INE878K01010
A193: BFUTILITIE | B193: EQ | C193: 201 | D193: 202.9 | E193: 193.6 | F193: 196.35 | G193: 196.45 | H193: 200.75 | I193: 242094 | J193: 48199868.7 | K193: 2019-02-01 | L193: 6433 | M193: INE243D01012
A194: BGLOBAL | B194: BE | C194: 2.6 | D194: 2.7 | E194: 2.55 | F194: 2.7 | G194: 2.7 | H194: 2.65 | I194: 3313 | J194: 8611.15 | K194: 2019-02-01 | L194: 9 | M194: INE224M01013
A195: BGRENERGY | B195: EQ | C195: 54.6 | D195: 55.55 | E195: 53.15 | F195: 53.4 | G195: 53.4 | H195: 54.6 | I195: 46045 | J195: 2475645.35 | K195: 2019-02-01 | L195: 520 | M195: INE661I01014
A196: BHAGERIA | B196: EQ | C196: 239 | D196: 246.4 | E196: 232 | F196: 234.3 | G196: 234.05 | H196: 231.55 | I196: 16203 | J196: 3838817.45 | K196: 2019-02-01 | L196: 862 | M196: INE354C01027
A197: BHAGYANGR | B197: EQ | C197: 31.45 | D197: 35.05 | E197: 31.45 | F197: 33.95 | G197: 34 | H197: 33.25 | I197: 1455 | J197: 48251 | K197: 2019-02-01 | L197: 30 | M197: INE458B01036
A198: BHAGYAPROP | B198: EQ | C198: 28.5 | D198: 29.9 | E198: 28.15 | F198: 29.05 | G198: 29.7 | H198: 29 | I198: 3520 | J198: 103183.5 | K198: 2019-02-01 | L198: 26 | M198: INE363W01018
A199: BHANDARI | B199: EQ | C199: 1.9 | D199: 1.95 | E199: 1.85 | F199: 1.9 | G199: 1.9 | H199: 1.9 | I199: 74001 | J199: 141400.15 | K199: 2019-02-01 | L199: 65 | M199: INE474E01029
A200: BHARATFIN | B200: EQ | C200: 946.5 | D200: 963 | E200: 937.75 | F200: 947.8 | G200: 949 | H200: 946.3 | I200: 448069 | J200: 426488089.9 | K200: 2019-02-01 | L200: 15544 | M200: INE180K01011
... 1431 more rows

Sheet Sheet1 (hidden)

Sheet Sheet3 (hidden)
